Ref No,Fund Type,Dept,Cost Centre Description    ,Description    ,Creditor Name    ,GL Code Net Amount,Payment date        
2,Revenue,CAHD,Younger MH non-res purchasing,Supported Living,.,1267.42, 16-Feb-2016
3,Revenue,CAHD,Bed Purchasing - South,Permanent Residential,.,3143.76, 16-Feb-2016
4,Revenue,CAHD,Bed Purchasing - South,Permanent Nursing,.,1722.64, 16-Feb-2016
5,Revenue,CAHD,18-25 Year Olds,Permanent Residential,1 St Georges House,13350.08, 16-Feb-2016
6,Revenue,CAHD,Supporting People Programme,Grants to Voluntary Bodies,1625 Independent People,16872.78, 01-Feb-2016
7,Revenue,CAHD,Home Care - Elderly - North,Supported Living,3 Trees Community Support Limited,639.80, 16-Feb-2016
8,Revenue,CAHD,Home Care - Elderly - South,Day Care / Social Activities,3 Trees Community Support Ltd,198.88, 10-Feb-2016
9,Revenue,CAHD,Home Care - Elderly - North,Day Care / Social Activities,3 Trees Community Support Ltd,3362.88, 10-Feb-2016
10,Revenue,CAHD,Home Care - Elderly - North,Other Small Contracts,3 Trees Community Support Ltd,113.00, 10-Feb-2016
11,Revenue,CAHD,Home Care - Elderly - North,Supported Living,3 Trees Community Support Ltd,10072.01, 10-Feb-2016
12,Revenue,CAHD,Home Care - Elderly - South,Day Care / Social Activities,3 Trees Community Support Ltd,198.88, 15-Feb-2016
13,Revenue,CAHD,Home Care - Elderly - North,Day Care / Social Activities,3 Trees Community Support Ltd,3308.64, 15-Feb-2016
14,Revenue,CAHD,Home Care - Elderly - North,Other Small Contracts,3 Trees Community Support Ltd,108.48, 15-Feb-2016
15,Revenue,CAHD,Home Care - Elderly - North,Supported Living,3 Trees Community Support Ltd,9374.13, 15-Feb-2016
16,Revenue,CAHD,Home Care - Elderly - South,Day Care / Social Activities,3 Trees Community Support Ltd,198.88, 23-Feb-2016
17,Revenue,CAHD,Home Care - Elderly - North,Day Care / Social Activities,3 Trees Community Support Ltd,3430.68, 23-Feb-2016
18,Revenue,CAHD,Home Care - Elderly - North,Other Small Contracts,3 Trees Community Support Ltd,108.48, 23-Feb-2016
19,Revenue,CAHD,Home Care - Elderly - North,Supported Living,3 Trees Community Support Ltd,9400.54, 23-Feb-2016
20,Revenue,CAHD,Home Care - Elderly - South,Day Care / Social Activities,3 Trees Community Support Ltd,198.88, 23-Feb-2016
21,Revenue,CAHD,Home Care - Elderly - North,Day Care / Social Activities,3 Trees Community Support Ltd,3417.12, 23-Feb-2016
22,Revenue,CAHD,Home Care - Elderly - North,Other Small Contracts,3 Trees Community Support Ltd,108.48, 23-Feb-2016
23,Revenue,CAHD,Home Care - Elderly - North,Supported Living,3 Trees Community Support Ltd,9524.20, 23-Feb-2016
24,Revenue,CAHD,Home Care - Elderly - South,Day Care / Social Activities,3 Trees Community Support Ltd,916.86, 01-Feb-2016
25,Revenue,CAHD,Bed Purchasing - South,Permanent Residential,5Th Floor Harlech Court,16236.56, 16-Feb-2016
26,Revenue,CAHD,18-25 Year Olds,Permanent Residential,5Th Floor Harlech Court,13837.80, 16-Feb-2016
27,Revenue,CAHD,18-25 Year Olds,Permanent Residential,5Th Floor Harlech Court,14114.08, 16-Feb-2016
28,Revenue,CAHD,18-25 Year Olds,Permanent Residential,5Th Floor Harlech Court,12656.32, 16-Feb-2016
29,Revenue,CAHD,Bed Purchasing - North,Respite Planned - Residential,5Th Floor Harlech Court,5346.06, 16-Feb-2016
30,Revenue,CAHD,Bed Purchasing - North,Permanent Residential,5Th Floor Harlech Court,16769.20, 16-Feb-2016
31,Revenue,CAHD,18-25 Year Olds,Permanent Residential,5Th Floor Harlech Court,15925.08, 16-Feb-2016
32,Revenue,CAHD,Bed Purchasing - South,Permanent Residential,5Th Floor Harlech Court,9403.36, 16-Feb-2016
33,Revenue,CAHD,Bed purchasing - S28A Under 65 - South,Permanent Residential,5Th Floor Harlech Court,9854.40, 16-Feb-2016
34,Revenue,CAHD,Bed Purchasing - South,Permanent Residential,5Th Floor Harlech Court,72467.64, 16-Feb-2016
35,Revenue,CAHD,18-25 Year Olds,Carers Breaks & Services,A Vaulters Installations Limited,6670.00, 24-Feb-2016
36,Revenue,CAHD,Bed Purchasing - North,Permanent Nursing,ABI Development Limited,7046.44, 16-Feb-2016
37,Revenue,CAHD,Bed and Breakfast,Storage & Removal,Ablemove-Wottons,768.00, 23-Feb-2016
38,Revenue,CAHD,Day Care - North,Day Care / Social Activities,About Me Care and Support Limited,514.80, 15-Feb-2016
39,Revenue,CAHD,Day Care - North,Day Care / Social Activities,About Me Care and Support Limited,709.32, 15-Feb-2016
40,Revenue,CAHD,Day Care - South,Day Care / Social Activities,About Me Care and Support Limited,1202.19, 23-Feb-2016
41,Revenue,CAHD,Day Care - North,Day Care / Social Activities,About Me Care and Support Limited,509.60, 29-Feb-2016
42,Revenue,CAHD,Day Care - North,Day Care / Social Activities,About Me Care and Support Limited,652.78, 29-Feb-2016
43,Revenue,CAHD,Day Care - South,Day Care / Social Activities,About Me Care and Support Limited,713.43, 23-Feb-2016
44,Revenue,CAHD,Information Systems - Software,Software Support & Maintenance,Abritas Ltd,6559.00, 26-Feb-2016
45,Revenue,CAHD,Day Care - South,Private & Voluntary Home Care,Action on Hearing Loss,790.60, 26-Feb-2016
46,Revenue,CAHD,Home Care - Elderly - South,Other Small Contracts,Agincare Chippenham,1347.50, 01-Feb-2016
47,Revenue,CAHD,Home Care - Elderly - South,Other Small Contracts,Agincare Chippenham,1339.80, 01-Feb-2016
48,Revenue,CAHD,Home Care - Elderly - North,Other Small Contracts,Agincare Chippenham,107.80, 01-Feb-2016
49,Revenue,CAHD,Home Care - Elderly - South,Other Small Contracts,Agincare Chippenham,1297.45, 23-Feb-2016
50,Revenue,CAHD,Home Care - Elderly - North,Other Small Contracts,Agincare Chippenham,107.80, 23-Feb-2016
51,Revenue,CAHD,Home Care - Elderly - South,Other Small Contracts,Agincare Chippenham,1344.70, 23-Feb-2016
52,Revenue,CAHD,Home Care - Elderly - North,Other Small Contracts,Agincare Chippenham,107.80, 23-Feb-2016
53,Revenue,CAHD,Home Care - Elderly - South,Other Small Contracts,Agincare Chippenham,1251.25, 23-Feb-2016
54,Revenue,CAHD,Home Care - Elderly - North,Other Small Contracts,Agincare Chippenham,107.80, 23-Feb-2016
55,Revenue,CAHD,Home Care - Elderly - South,Other Small Contracts,Agincare UK Limited,1066.45, 01-Feb-2016
56,Revenue,CAHD,Home Care - Elderly - North,Other Small Contracts,Agincare UK Limited,596.75, 01-Feb-2016
57,Revenue,CAHD,Home Care - Elderly - South,Other Small Contracts,Agincare UK Limited,1043.35, 01-Feb-2016
58,Revenue,CAHD,Home Care - Elderly - North,Other Small Contracts,Agincare UK Limited,627.55, 01-Feb-2016
59,Revenue,CAHD,Home Care - Elderly - South,Other Small Contracts,Agincare UK Limited,1081.85, 10-Feb-2016
60,Revenue,CAHD,Home Care - Elderly - North,Other Small Contracts,Agincare UK Limited,627.55, 10-Feb-2016
61,Revenue,CAHD,Home Care - Elderly - South,Other Small Contracts,Agincare UK Limited,977.90, 10-Feb-2016
62,Revenue,CAHD,Home Care - Elderly - North,Other Small Contracts,Agincare UK Limited,627.55, 10-Feb-2016
63,Revenue,CAHD,Home Care - Elderly - South,Other Small Contracts,Agincare UK Limited,1062.60, 19-Feb-2016
64,Revenue,CAHD,Home Care - Elderly - North,Other Small Contracts,Agincare UK Limited,627.55, 19-Feb-2016
65,Revenue,CAHD,Home Care - Elderly - North,Other Small Contracts,Agincare UK Nutfield,1566.95, 01-Feb-2016
66,Revenue,CAHD,Home Care - Elderly - North,Other Small Contracts,Agincare UK Nutfield,1513.05, 23-Feb-2016
67,Revenue,CAHD,Home Care - Elderly - North,Other Small Contracts,Agincare UK Nutfield,1740.20, 23-Feb-2016
68,Revenue,CAHD,Home Care - Elderly - North,Other Small Contracts,Agincare UK Nutfield,1759.45, 23-Feb-2016
69,Revenue,CAHD,Home Care - Elderly - South,Other Small Contracts,AliMo Care Ltd,1011.56, 03-Feb-2016
70,Revenue,CAHD,Home Care - Elderly - South,Other Small Contracts,AliMo Care Ltd,1028.28, 10-Feb-2016
71,Revenue,CAHD,Home Care - Elderly - South,Other Small Contracts,AliMo Care Ltd,1203.84, 17-Feb-2016
72,Revenue,CAHD,Home Care - Elderly - South,Other Small Contracts,AliMo Care Ltd,1182.94, 25-Feb-2016
73,Revenue,CAHD,Bed Purchasing - South,Permanent Nursing,Ambleside Nusing Ho!,1534.12, 16-Feb-2016
74,Revenue,CAHD,Bed Purchasing - Southmead Hospital,Permanent Nursing,Amerind Grove Nursing Home,1924.68, 16-Feb-2016
75,Revenue,CAHD,Bed Purchasing - Southmead Hospital,Permanent Nursing,Amerind Grove Nursing Home,1696.32, 16-Feb-2016
76,Revenue,CAHD,Alexandra Way,Premises Maintenance by Contractor,Amy Flooring Limited,479.00, 22-Feb-2016
77,Revenue,CAHD,Supporting People Programme,Grants to Voluntary Bodies,Anchor Housing,905.17, 01-Feb-2016
78,Revenue,CAHD,Section 117 Placements MH Younger,Day Care / Social Activities,Archcare Services,16080.00, 01-Feb-2016
79,Revenue,CAHD,Bed Purchasing - North,Permanent Residential,Ark Care Homes Ltd,10348.28, 16-Feb-2016
80,Revenue,CAHD,S117 Placements PCT,Permanent Residential,Ash View House,7052.76, 16-Feb-2016
81,Revenue,CAHD,18-25 Year Olds,Permanent Residential,Ash View House,6225.80, 16-Feb-2016
82,Revenue,CAHD,Section 117 Placements MH Younger,Permanent Residential,Ash View House,6565.76, 16-Feb-2016
83,Revenue,CAHD,Bed purchasing - Elderly S117 - South,Permanent Residential,Ash View House,6246.76, 16-Feb-2016
84,Revenue,CAHD,Bed Purchasing - North,Permanent Residential,Aspects 2 Limited,6428.16, 16-Feb-2016
85,Revenue,CAHD,Supporting People Programme,Grants to Voluntary Bodies,Aspects and Milestones Trust,3254.35, 01-Feb-2016
86,Revenue,CAHD,Supporting People Programme,Grants to Voluntary Bodies,Aspects and Milestones Trust,1631.60, 01-Feb-2016
87,Revenue,CAHD,Supporting People Programme,Grants to Voluntary Bodies,Aspects and Milestones Trust,2476.54, 01-Feb-2016
88,Revenue,CAHD,Bed Purchasing - South,Permanent Residential,Autism Specialised Care Homes,5672.64, 16-Feb-2016
89,Revenue,CAHD,Bed Purchasing - North,Respite Planned - Residential,Avery Homes WSM Limited,605.71, 16-Feb-2016
90,Revenue,CAHD,Younger Adult Mental Health,Health Services (Third Party Payments),Avon & Wiltshire Mental Health,1666.00, 04-Feb-2016
91,Revenue,CAHD,Pathway 2 - (Interim Beds),Permanent Nursing,Avon Lodge Care Centre,10200.00, 02-Feb-2016
92,Revenue,CAHD,Bed Purchasing - Southmead Hospital,Permanent Nursing,Bayview Nursing & Residential Home,1494.36, 16-Feb-2016
93,Revenue,CAHD,Pathway 3 - (Complex Beds),Permanent Nursing,Beaufort Care Ltd,5200.00, 24-Feb-2016
94,Revenue,CAHD,South Glos Users in South Glos Homes,Permanent Nursing,Beaufort Grange Care Home,672.00, 16-Feb-2016
95,Revenue,CAHD,Bed Purchasing - Elderly S117- North,Permanent Nursing,Beaufort Grange Care Home,4352.00, 16-Feb-2016
96,Revenue,CAHD,Bed Purchasing - Elderly S117- North,Permanent Nursing,Beaufort Grange Care Home,4552.00, 16-Feb-2016
97,Revenue,CAHD,Bed Purchasing - North,Permanent Residential,Beaufort House,1686.44, 16-Feb-2016
98,Revenue,CAHD,Bed Purchasing - North,Permanent Residential,Beaufort House,1894.80, 16-Feb-2016
99,Revenue,CAHD,Bed Purchasing - North,Permanent Residential,Beaufort House,2425.92, 16-Feb-2016
100,Revenue,CAHD,Bed Purchasing - North,Respite Planned - Residential,Beaufort House,600.00, 16-Feb-2016
101,Revenue,CAHD,Bed Purchasing - North,Permanent Residential,Beaufort House,1894.80, 16-Feb-2016
102,Revenue,CAHD,Bed Purchasing - North,Permanent Residential,Beaufort House,1395.68, 16-Feb-2016
103,Revenue,CAHD,Bed Purchasing - South,Permanent Residential,Beaufort House,1447.40, 16-Feb-2016
104,Revenue,CAHD,Bed Purchasing - North,Permanent Residential,Beaufort House,1822.84, 16-Feb-2016
105,Revenue,CAHD,Bed Purchasing - Southmead Hospital,Permanent Residential,Beaufort House,1270.48, 16-Feb-2016
106,Revenue,CAHD,Bed purchasing - Elderly S117 - South,Permanent Residential,Beaufort House,2400.00, 16-Feb-2016
107,Revenue,CAHD,Bed Purchasing - North,Permanent Residential,Beaufort House,1365.16, 16-Feb-2016
108,Revenue,CAHD,Bed Purchasing - North,Permanent Residential,Beaufort House,1960.72, 16-Feb-2016
109,Revenue,CAHD,Bed Purchasing - Southmead Hospital,Permanent Residential,Beaufort House,1894.80, 16-Feb-2016
110,Revenue,CAHD,Bed Purchasing - Southmead Hospital,Permanent Residential,Beaufort House,1832.64, 16-Feb-2016
111,Revenue,CAHD,Bed Purchasing - Southmead Hospital,Permanent Residential,Beaufort House,1374.48, 16-Feb-2016
112,Revenue,CAHD,Bed Purchasing - North,Respite Emergency - Residential,Beaufort House,857.14, 16-Feb-2016
113,Revenue,CAHD,Bed Purchasing - North,Respite Emergency - Residential,Beaufort House,2828.57, 16-Feb-2016
114,Revenue,CAHD,Bed Purchasing - South,Permanent Residential,Bedrock Lodge,3186.88, 16-Feb-2016
115,Revenue,CAHD,Bed Purchasing - South,Permanent Residential,Bedrock Lodge,2976.96, 16-Feb-2016
116,Revenue,CAHD,Section 117 Placements MH Younger,Permanent Residential,Bedrock Lodge,1885.04, 16-Feb-2016
117,Revenue,CAHD,Bed Purchasing - South,Permanent Residential,Beech House,1270.80, 16-Feb-2016
118,Revenue,CAHD,Bed Purchasing - North,Permanent Nursing,Beech House,1663.92, 16-Feb-2016
119,Revenue,CAHD,Bed Purchasing - North,Permanent Nursing,Beech House,2115.56, 16-Feb-2016
120,Revenue,CAHD,Bed Purchasing - North,Permanent Residential,Beech House,1442.80, 16-Feb-2016
121,Revenue,CAHD,Bed Purchasing - North,Permanent Residential,Beech House,1413.56, 16-Feb-2016
122,Revenue,CAHD,Bed Purchasing - North,Permanent Residential,Beech House,4447.14, 16-Feb-2016
123,Revenue,CAHD,Swift Dump Code,Permanent Residential,Beech House,1140.44, 16-Feb-2016
124,Revenue,CAHD,Home Care - Elderly - North,Other Small Contracts,Bibby Factors Bristol Limited,6846.00, 26-Feb-2016
125,Revenue,CAHD,Home Care - Elderly - North,Day Care / Social Activities,Bibby Factors Bristol Limited,67.20, 26-Feb-2016
126,Revenue,CAHD,Home Care - Elderly - North,Other Small Contracts,Bibby Factors Bristol Limited,7975.80, 26-Feb-2016
127,Revenue,CAHD,Home Care - Elderly - North,Day Care / Social Activities,Bibby Factors Bristol Limited,134.40, 26-Feb-2016
128,Revenue,CAHD,Home Care - Elderly - North,Other Small Contracts,Bibby Factors Bristol Limited,8106.00, 26-Feb-2016
129,Revenue,CAHD,User Involvement,Fees - General,Blake Morgan LLP,486.00, 26-Feb-2016
130,Revenue,CAHD,Bed Purchasing - Elderly S117- North,Permanent Nursing,Blossom Field,2012.00, 16-Feb-2016
131,Revenue,CAHD,Bed purchasing - Elderly S117 - South,Permanent Nursing,Blossom Field,4400.00, 16-Feb-2016
132,Revenue,CAHD,Bed purchasing - Elderly S117 - South,Permanent Nursing,Blossom Field,4352.00, 16-Feb-2016
133,Revenue,CAHD,Bed Purchasing - North,Permanent Nursing,Blossom Field,2850.96, 16-Feb-2016
134,Revenue,CAHD,Bed Purchasing - North,Permanent Nursing,Blossom Field,2729.24, 16-Feb-2016
135,Revenue,CAHD,Bed Purchasing - North,Permanent Nursing,Blossom Fields,1874.48, 16-Feb-2016
136,Revenue,CAHD,Bed Purchasing - Southmead Hospital,Permanent Nursing,Blossom Fields,2111.72, 16-Feb-2016
137,Revenue,CAHD,Bed Purchasing - North,Permanent Nursing,Blossom Fields,2616.92, 16-Feb-2016
138,Revenue,CAHD,Home Care - Elderly - North,Other Small Contracts,Bluebird Care (South Gloucestershire),1321.65, 10-Feb-2016
139,Revenue,CAHD,Home Care - Elderly - North,Other Small Contracts,Bluebird Care (South Gloucestershire),2287.88, 10-Feb-2016
140,Revenue,CAHD,Home Care - Elderly - North,Other Small Contracts,Bluebird Care (South Gloucestershire),2322.36, 10-Feb-2016
141,Revenue,CAHD,Home Care - Elderly - South,Other Small Contracts,Bluebird Care (South Gloucestershire),321.75, 10-Feb-2016
142,Revenue,CAHD,Home Care - Elderly - North,Other Small Contracts,Bluebird Care (South Gloucestershire),2436.38, 10-Feb-2016
143,Revenue,CAHD,Bed purchasing - S28A Under 65 - South,Permanent Residential,Bradbury House,4156.72, 16-Feb-2016
144,Revenue,CAHD,Bed Purchasing - South,Permanent Residential,Bradbury House,7835.00, 16-Feb-2016
145,Revenue,CAHD,Bed purchasing - S28A Under 65 - South,Permanent Residential,Bradbury House,6461.08, 16-Feb-2016
146,Revenue,CAHD,18-25 Year Olds,Permanent Residential,Bradbury House,8855.64, 16-Feb-2016
147,Revenue,CAHD,Bed purchasing - Elderly S117 - South,Permanent Residential,Bradbury House,11450.92, 16-Feb-2016
148,Revenue,CAHD,Bed Purchasing - North,Permanent Residential,Bradley House,1546.32, 16-Feb-2016
149,Revenue,CAHD,Home Care - Elderly - North,Other Small Contracts,Bradley House Home Care Services,514.08, 10-Feb-2016
150,Revenue,CAHD,Home Care - Elderly - North,Other Small Contracts,Bradley House Home Care Services,535.68, 10-Feb-2016
151,Revenue,CAHD,Home Care - Elderly - North,Other Small Contracts,Bradley House Home Care Services,527.04, 10-Feb-2016
152,Revenue,CAHD,Home Care - Elderly - North,Other Small Contracts,Bradley House Home Care Services,540.00, 19-Feb-2016
153,Revenue,CAHD,Home Care - Elderly - North,Other Small Contracts,Bradley House Home Care Services,535.68, 19-Feb-2016
154,Revenue,CAHD,Home Care - Elderly - North,Other Small Contracts,Bradley House Home Care Services,501.12, 29-Feb-2016
155,Revenue,CAHD,Bed Purchasing - S28A - Over 65- North,Permanent Residential,Brandon Trust,3126.48, 16-Feb-2016
156,Revenue,CAHD,Bed Purchasing - South,Permanent Residential,Brandon Trust,10380.40, 16-Feb-2016
157,Revenue,CAHD,Bed Purchasing - South,Permanent Residential,Brandon Trust,4080.76, 16-Feb-2016
158,Revenue,CAHD,Bed Purchasing - Southmead Hospital,Permanent Nursing,Brandon Trust,4603.08, 16-Feb-2016
159,Revenue,CAHD,Bed Purchasing - South,Permanent Nursing,Brandon Trust,5092.48, 16-Feb-2016
160,Revenue,CAHD,Bed purchasing - S28A Under 65 - South,Permanent Nursing,Brandon Trust,5474.04, 16-Feb-2016
161,Revenue,CAHD,Bed purchasing - S28A Under 65 - South,Permanent Residential,Brandon Trust,4354.48, 16-Feb-2016
162,Revenue,CAHD,Bed Purchasing - LD S28A- Over 65- South,Permanent Nursing,Brandon Trust,5190.64, 16-Feb-2016
163,Revenue,CAHD,Bed Purchasing - LD S28A- Over 65- South,Permanent Nursing,Brandon Trust,4904.80, 16-Feb-2016
164,Revenue,CAHD,Bed Purchasing - South,Permanent Residential,Brandon Trust,3309.88, 16-Feb-2016
165,Revenue,CAHD,Bed purchasing - S28A Under 65 - South,Permanent Residential,Brandon Trust,5260.00, 16-Feb-2016
166,Revenue,CAHD,Bed purchasing - S28A Under 65 - South,Permanent Residential,Brandon Trust,5316.28, 16-Feb-2016
167,Revenue,CAHD,Bed purchasing - S28A Under 65 - South,Permanent Nursing,Brandon Trust,5418.04, 16-Feb-2016
168,Revenue,CAHD,Bed purchasing -S28A  Under 65 - North,Permanent Nursing,Brandon Trust,4835.88, 16-Feb-2016
169,Revenue,CAHD,Bed purchasing - S28A Under 65 - South,Permanent Residential,Brandon Trust,5316.28, 16-Feb-2016
170,Revenue,CAHD,Bed Purchasing - LD S28A- Over 65- South,Permanent Residential,Brandon Trust,4795.44, 16-Feb-2016
171,Revenue,CAHD,Home Care - Elderly - North,Day Care / Social Activities,Bridge House (Residential Home) Limited,4248.00, 22-Feb-2016
172,Revenue,CAHD,Home Care - Elderly - North,Day Care / Social Activities,Bridge House (Residential Home) Limited,1121.00, 08-Feb-2016
173,Revenue,CAHD,Bed Purchasing - North,Permanent Residential,Bridge House Care Home,1533.60, 16-Feb-2016
174,Revenue,CAHD,Bed Purchasing - North,Permanent Residential,Bridge House Care Home,1221.13, 16-Feb-2016
175,Revenue,CAHD,Bed Purchasing - North,Permanent Residential,Bridge House Care Home,1079.20, 16-Feb-2016
176,Revenue,CAHD,Bed Purchasing - North,Permanent Residential,Bridge House Care Home,1531.48, 16-Feb-2016
177,Revenue,CAHD,Bed Purchasing - North,Permanent Residential,Bridge House Care Home,1544.60, 16-Feb-2016
178,Revenue,CAHD,Bed Purchasing - North,Permanent Residential,Bridgwater Court,10055.68, 16-Feb-2016
179,Revenue,CAHD,Bed Purchasing - South,Permanent Residential,Brightbow,2113.88, 16-Feb-2016
180,Revenue,CAHD,MH Purchasing - Younger,Permanent Residential,Brightbow,1503.92, 16-Feb-2016
181,Revenue,CAHD,Prison Assessments & Costs,Other Supplies & Services,Bristol Community Health CIC,40190.67, 01-Feb-2016
182,Revenue,CAHD,Supporting People Programme,Grants to Voluntary Bodies,Bristol Missing Link,2012.42, 01-Feb-2016
183,Revenue,CAHD,Supporting People Programme,Grants to Voluntary Bodies,Bristol Missing Link,1464.82, 01-Feb-2016
184,Revenue,CAHD,Tenancy Start Up Scheme,Other Supplies & Services,Bristol Property Centre,1687.50, 03-Feb-2016
185,Revenue,CAHD,Tenancy Start Up Scheme,Other Supplies & Services,Bristol Property Partnership,1050.00, 19-Feb-2016
186,Revenue,CAHD,Woodleaze,Water Charges,Bristol Wessex Billing Services Limited,3401.36, 26-Feb-2016
187,Revenue,CAHD,18-25 Year Olds,SU Employment Support,Britannia House,1734.00, 16-Feb-2016
188,Revenue,CAHD,Home Care - Elderly - North,SU Employment Support,Britannia House,693.60, 16-Feb-2016
189,Revenue,CAHD,Home Care - Elderly - North,Day Care / Social Activities,Britannia House,924.80, 16-Feb-2016
190,Revenue,CAHD,Home Care - Elderly - North,Day Care / Social Activities,Britannia House,1213.80, 16-Feb-2016
191,Revenue,CAHD,Home Care - Elderly - North,Day Care / Social Activities,Britannia House,693.60, 16-Feb-2016
192,Revenue,CAHD,Home Care - Elderly - North,Day Care / Social Activities,Britannia House,693.60, 16-Feb-2016
193,Revenue,CAHD,Home Care - Elderly - North,Day Care / Social Activities,Britannia House,924.80, 16-Feb-2016
194,Revenue,CAHD,Home Care - Elderly - South,Day Care / Social Activities,Britannia House,1156.00, 16-Feb-2016
195,Revenue,CAHD,Home Care - Elderly - South,Day Care / Social Activities,Britannia House,693.60, 16-Feb-2016
196,Revenue,CAHD,Home Care - Elderly - South,Day Care / Social Activities,Britannia House,693.60, 16-Feb-2016
197,Revenue,CAHD,Home Care - Elderly - South,Day Care / Social Activities,Britannia House,693.60, 16-Feb-2016
198,Revenue,CAHD,Supporting People Programme,Grants to Voluntary Bodies,Bromford Housing Group,14201.99, 01-Feb-2016
199,Revenue,CAHD,Home Care - Elderly - North,Private & Voluntary Home Care,Brunelcare,23822.65, 02-Feb-2016
200,Revenue,CAHD,Home Care - Elderly - North,Private & Voluntary Home Care,Brunelcare,23822.65, 08-Feb-2016
201,Revenue,CAHD,Home Care - Elderly - North,Private & Voluntary Home Care,Brunelcare,23822.65, 15-Feb-2016
202,Revenue,CAHD,Home Care - Elderly - North,Private & Voluntary Home Care,Brunelcare,23822.65, 22-Feb-2016
203,Revenue,CAHD,Home Care - Elderly - North,Private & Voluntary Home Care,Brunelcare,23822.65, 29-Feb-2016
204,Revenue,CAHD,Bed Purchasing - Southmead Hospital,Permanent Nursing,Brunelcare,2253.74, 23-Feb-2016
205,Revenue,CAHD,Bed Purchasing - South,Permanent Nursing,Brunelcare,2147.59, 23-Feb-2016
206,Revenue,CAHD,Bed Purchasing - South,Permanent Nursing,Brunelcare,2530.57, 23-Feb-2016
207,Revenue,CAHD,Bed Purchasing - Elderly S117- North,Permanent Nursing,Brunelcare,3135.43, 23-Feb-2016
208,Revenue,CAHD,Bed Purchasing - South,Permanent Nursing,Brunelcare,2320.39, 23-Feb-2016
209,Revenue,CAHD,Bed Purchasing - Southmead Hospital,Permanent Nursing,Brunelcare,2498.20, 23-Feb-2016
210,Revenue,CAHD,Bed Purchasing - Southmead Hospital,Permanent Nursing,Brunelcare,1435.39, 23-Feb-2016
211,Revenue,CAHD,Bed Purchasing - Southmead Hospital,Permanent Nursing,Brunelcare,2461.13, 23-Feb-2016
212,Revenue,CAHD,Bed Purchasing - South,Permanent Nursing,Brunelcare,2576.10, 23-Feb-2016
213,Revenue,CAHD,Bed Purchasing - South,Permanent Nursing,Brunelcare,2285.50, 23-Feb-2016
214,Revenue,CAHD,Bed purchasing - Elderly S117 - South,Permanent Nursing,Brunelcare,3135.43, 23-Feb-2016
215,Revenue,CAHD,Bed Purchasing - North,Permanent Nursing,Brunelcare,2501.61, 23-Feb-2016
216,Revenue,CAHD,Bed Purchasing - Southmead Hospital,Permanent Nursing,Brunelcare,2400.42, 23-Feb-2016
217,Revenue,CAHD,Bed Purchasing - North,Permanent Nursing,Brunelcare,2516.31, 23-Feb-2016
218,Revenue,CAHD,Bed Purchasing - North,Permanent Nursing,Brunelcare,2576.10, 23-Feb-2016
219,Revenue,CAHD,Bed Purchasing - Southmead Hospital,Permanent Nursing,Brunelcare,2576.10, 23-Feb-2016
220,Revenue,CAHD,Bed Purchasing - Southmead Hospital,Permanent Nursing,Brunelcare,2478.23, 23-Feb-2016
221,Revenue,CAHD,Bed Purchasing - Elderly S117- North,Permanent Nursing,Brunelcare,3135.43, 23-Feb-2016
222,Revenue,CAHD,Bed Purchasing - North,Respite Planned - Nursing,Brunelcare,1011.43, 23-Feb-2016
223,Revenue,CAHD,Bed Purchasing - South,Respite Planned - Nursing,Brunelcare,1517.14, 23-Feb-2016
224,Revenue,CAHD,Bed Purchasing - South,Respite Planned - Nursing,Brunelcare,708.00, 23-Feb-2016
225,Revenue,CAHD,Bed Purchasing - South,Respite Planned - Nursing,Brunelcare,809.14, 23-Feb-2016
226,Revenue,CAHD,Bed Purchasing - South,Permanent Nursing,Brunelcare,1065.65, 23-Feb-2016
227,Revenue,CAHD,Pathway 2 - (Interim Beds),Permanent Nursing,Brunelcare,15200.00, 22-Feb-2016
228,Revenue,CAHD,Home Care - Elderly - South,Other Small Contracts,Brunelcare,2440.83, 03-Feb-2016
229,Revenue,CAHD,Home Care - Elderly - North,Other Small Contracts,Brunelcare,1817.20, 03-Feb-2016
230,Revenue,CAHD,Day Care - South,Day Care / Social Activities,Brunelcare,24.78, 03-Feb-2016
231,Revenue,CAHD,Home Care - Elderly - South,Other Small Contracts,Brunelcare,2643.20, 03-Feb-2016
232,Revenue,CAHD,Home Care - Elderly - North,Other Small Contracts,Brunelcare,1784.16, 03-Feb-2016
233,Revenue,CAHD,Day Care - South,Day Care / Social Activities,Brunelcare,24.78, 03-Feb-2016
234,Revenue,CAHD,Home Care - Elderly - South,Other Small Contracts,Brunelcare,2614.29, 01-Feb-2016
235,Revenue,CAHD,Home Care - Elderly - North,Other Small Contracts,Brunelcare,2209.55, 01-Feb-2016
236,Revenue,CAHD,Day Care - South,Day Care / Social Activities,Brunelcare,28.91, 01-Feb-2016
237,Revenue,CAHD,Home Care - Elderly - South,Other Small Contracts,Brunelcare,2453.22, 03-Feb-2016
238,Revenue,CAHD,Home Care - Elderly - North,Other Small Contracts,Brunelcare,2135.21, 03-Feb-2016
239,Revenue,CAHD,Home Care - Elderly - South,Other Small Contracts,Brunelcare,2544.08, 03-Feb-2016
240,Revenue,CAHD,Home Care - Elderly - North,Other Small Contracts,Brunelcare,2168.25, 03-Feb-2016
241,Revenue,CAHD,Day Care - South,Day Care / Social Activities,Brunelcare,28.91, 03-Feb-2016
242,Revenue,CAHD,Home Care - Elderly - South,Other Small Contracts,Brunelcare,2531.69, 25-Feb-2016
243,Revenue,CAHD,Home Care - Elderly - North,Other Small Contracts,Brunelcare,2143.47, 25-Feb-2016
244,Revenue,CAHD,Day Care - South,Day Care / Social Activities,Brunelcare,24.78, 25-Feb-2016
245,Revenue,CAHD,Home Care - Elderly - South,Other Small Contracts,Brunelcare,2424.31, 25-Feb-2016
246,Revenue,CAHD,Home Care - Elderly - North,Other Small Contracts,Brunelcare,2118.69, 25-Feb-2016
247,Revenue,CAHD,Day Care - South,Day Care / Social Activities,Brunelcare,33.04, 25-Feb-2016
248,Revenue,CAHD,Home Care - Elderly - South,Other Small Contracts,Brunelcare,2597.77, 25-Feb-2016
249,Revenue,CAHD,Home Care - Elderly - North,Other Small Contracts,Brunelcare,2205.42, 25-Feb-2016
250,Revenue,CAHD,Day Care - South,Day Care / Social Activities,Brunelcare,24.78, 25-Feb-2016
251,Revenue,CAHD,Information Systems - Software,Computer Equipment - Purchase,BT Global Services Solutions,985.98, 22-Feb-2016
252,Revenue,CAHD,Bed Purchasing - North,Permanent Nursing,Bupa Care Services  Bridge House,12004.80, 16-Feb-2016
253,Revenue,CAHD,South Glos Users in all other LA Homes,Permanent Nursing,Bupa Care Services  Bridge House,1233.12, 16-Feb-2016
254,Revenue,CAHD,Bed Purchasing - Southmead Hospital,Permanent Nursing,Bupa Care Services  Bridge House,6460.41, 16-Feb-2016
255,Revenue,CAHD,Home Care - Elderly - North,Day Care / Social Activities,Camphill Communities Thornbury Limited,204.88, 03-Feb-2016
256,Revenue,CAHD,Home Care - Elderly - North,Other Small Contracts,Camphill Communities Thornbury Limited,94.56, 03-Feb-2016
257,Revenue,CAHD,Home Care - Elderly - North,Supported Living,Camphill Communities Thornbury Limited,382.18, 03-Feb-2016
258,Revenue,CAHD,Home Care - Elderly - North,Day Care / Social Activities,Camphill Communities Thornbury Limited,1099.26, 10-Feb-2016
259,Revenue,CAHD,Home Care - Elderly - North,Other Small Contracts,Camphill Communities Thornbury Limited,47.28, 10-Feb-2016
260,Revenue,CAHD,Home Care - Elderly - North,Supported Living,Camphill Communities Thornbury Limited,1260.80, 10-Feb-2016
261,Revenue,CAHD,Home Care - Elderly - North,Day Care / Social Activities,Camphill Communities Thornbury Limited,981.06, 17-Feb-2016
262,Revenue,CAHD,Home Care - Elderly - North,Other Small Contracts,Camphill Communities Thornbury Limited,145.78, 17-Feb-2016
263,Revenue,CAHD,Home Care - Elderly - North,Supported Living,Camphill Communities Thornbury Limited,1382.94, 17-Feb-2016
264,Revenue,CAHD,Home Care - Elderly - North,Day Care / Social Activities,Camphill Communities Thornbury Limited,1122.90, 24-Feb-2016
265,Revenue,CAHD,Home Care - Elderly - North,Other Small Contracts,Camphill Communities Thornbury Limited,141.84, 24-Feb-2016
266,Revenue,CAHD,Home Care - Elderly - North,Supported Living,Camphill Communities Thornbury Limited,1420.91, 24-Feb-2016
267,Revenue,CAHD,Bed Purchasing - Elderly S117- North,Permanent Residential,Canjayor,2359.24, 16-Feb-2016
268,Revenue,CAHD,Home Care - Elderly - South,Other Small Contracts,Care 1st Homecare,5877.75, 10-Feb-2016
269,Revenue,CAHD,Home Care - Elderly - South,Supported Living,Care 1st Homecare,17.00, 10-Feb-2016
270,Revenue,CAHD,Home Care - Elderly - North,One-off Planned Direct Payment,Care 1st Homecare,21.25, 10-Feb-2016
271,Revenue,CAHD,Home Care - Elderly - North,Other Small Contracts,Care 1st Homecare,3612.50, 10-Feb-2016
272,Revenue,CAHD,Home Care - Elderly - South,Other Small Contracts,Care 1st Homecare,5550.50, 10-Feb-2016
273,Revenue,CAHD,Home Care - Elderly - South,Supported Living,Care 1st Homecare,21.25, 10-Feb-2016
274,Revenue,CAHD,Home Care - Elderly - North,One-off Planned Direct Payment,Care 1st Homecare,42.50, 10-Feb-2016
275,Revenue,CAHD,Home Care - Elderly - North,Other Small Contracts,Care 1st Homecare,3587.00, 10-Feb-2016
276,Revenue,CAHD,Purchase of Non-Res Care - South,Day Care / Social Activities,Care Futures,2096.32, 12-Feb-2016
277,Revenue,CAHD,Supported Living - North,Private & Voluntary Home Care,Care Horizons Limited,2544.88, 04-Feb-2016
278,Revenue,CAHD,Supported Living - North,Private & Voluntary Home Care,Care Horizons Limited,2544.88, 04-Feb-2016
279,Revenue,CAHD,Home Care - Elderly - South,Other Small Contracts,Care Horizons Limited,346.50, 10-Feb-2016
280,Revenue,CAHD,Home Care - Elderly - North,Day Care / Social Activities,Care Horizons Limited,162.00, 10-Feb-2016
281,Revenue,CAHD,Home Care - Elderly - North,Other Small Contracts,Care Horizons Limited,423.00, 10-Feb-2016
282,Revenue,CAHD,Home Care - Elderly - South,Other Small Contracts,Care Horizons Limited,346.50, 16-Feb-2016
283,Revenue,CAHD,Home Care - Elderly - North,Day Care / Social Activities,Care Horizons Limited,157.50, 16-Feb-2016
284,Revenue,CAHD,Home Care - Elderly - North,Other Small Contracts,Care Horizons Limited,508.50, 16-Feb-2016
285,Revenue,CAHD,Home Care - Elderly - South,Other Small Contracts,Care Horizons Limited,342.00, 23-Feb-2016
286,Revenue,CAHD,Home Care - Elderly - North,Day Care / Social Activities,Care Horizons Limited,162.00, 23-Feb-2016
287,Revenue,CAHD,Home Care - Elderly - North,Other Small Contracts,Care Horizons Limited,504.00, 23-Feb-2016
288,Revenue,CAHD,Supported Living - North,Private & Voluntary Home Care,Care Horizons Limited,3643.17, 25-Feb-2016
289,Revenue,CAHD,Supported Living - North,Private & Voluntary Home Care,Care Horizons Limited,3643.17, 25-Feb-2016
290,Revenue,CAHD,Purchase of Non-Res Care - North,Day Care / Social Activities,Care Horizons Limited,1031.35, 24-Feb-2016
291,Revenue,CAHD,Purchase of Non-Res Care - North,Day Care / Social Activities,Care Horizons Limited,1585.95, 24-Feb-2016
292,Revenue,CAHD,Home Care - Elderly - South,Other Small Contracts,Care UK,3104.54, 01-Feb-2016
293,Revenue,CAHD,Home Care - Elderly - North,Other Small Contracts,Care UK,1063.96, 01-Feb-2016
294,Revenue,CAHD,Home Care - Elderly - South,Other Small Contracts,Care UK,3267.31, 01-Feb-2016
295,Revenue,CAHD,Home Care - Elderly - North,Other Small Contracts,Care UK,1095.72, 01-Feb-2016
296,Revenue,CAHD,Home Care - Elderly - South,Other Small Contracts,Care UK,3648.43, 01-Feb-2016
297,Revenue,CAHD,Home Care - Elderly - North,Other Small Contracts,Care UK,1480.81, 01-Feb-2016
298,Revenue,CAHD,Home Care - Elderly - South,Other Small Contracts,Care UK,3473.75, 01-Feb-2016
299,Revenue,CAHD,Home Care - Elderly - North,Other Small Contracts,Care UK,1464.93, 01-Feb-2016
300,Revenue,CAHD,Home Care - Elderly - South,Other Small Contracts,Care UK,3338.77, 25-Feb-2016
301,Revenue,CAHD,Home Care - Elderly - North,Other Small Contracts,Care UK,1484.78, 25-Feb-2016
302,Revenue,CAHD,Home Care - Elderly - South,Other Small Contracts,Care UK,3473.75, 25-Feb-2016
303,Revenue,CAHD,Home Care - Elderly - North,Other Small Contracts,Care UK,1401.41, 25-Feb-2016
304,Revenue,CAHD,Home Care - Elderly - South,Other Small Contracts,Care UK,3441.99, 25-Feb-2016
305,Revenue,CAHD,Home Care - Elderly - North,Other Small Contracts,Care UK,1393.47, 25-Feb-2016
306,Revenue,CAHD,Home Care - Elderly - South,Other Small Contracts,Carers R Us (Bristol) Limited,618.12, 15-Feb-2016
307,Revenue,CAHD,Home Care - Elderly - South,Other Small Contracts,Carers R Us (Bristol) Limited,634.28, 15-Feb-2016
308,Revenue,CAHD,Home Care - Elderly - South,Other Small Contracts,Carers R Us (Bristol) Limited,634.28, 15-Feb-2016
309,Revenue,CAHD,Home Care - Elderly - South,Other Small Contracts,Carers R Us (Bristol) Limited,646.40, 15-Feb-2016
310,Revenue,CAHD,Home Care - Elderly - South,Other Small Contracts,Caring Comes 1st Ltd,1339.20, 02-Feb-2016
311,Revenue,CAHD,Alexandra Way,Prop.Serv. General Repairs,Casa Environmental Services Ltd,564.00, 09-Feb-2016
312,Revenue,CAHD,Woodleaze,Prop.Serv. General Repairs,Casa Environmental Services Ltd,1695.00, 09-Feb-2016
313,Revenue,CAHD,Social Lettings Agency,Fees - General,Individual,10.53, 01-Feb-2016
314,Revenue,CAHD,Social Lettings Agency,Fees & Charges Income - General,Individual,541.11, 01-Feb-2016
315,Revenue,CAHD,Bed Purchasing - North,Permanent Residential,Charlton House,919.52, 16-Feb-2016
316,Revenue,CAHD,Training - Adult Services,Training Expenses,Chartered Institute of Environmental Health,1863.75, 01-Feb-2016
317,Revenue,CAHD,Home Care - Elderly - South,Other Small Contracts,Cherish Able Care Limited,4916.30, 04-Feb-2016
318,Revenue,CAHD,Home Care - Elderly - North,Other Small Contracts,Cherish Able Care Limited,122.38, 04-Feb-2016
319,Revenue,CAHD,Home Care - Elderly - South,Other Small Contracts,Cherish Able Care Limited,5245.46, 12-Feb-2016
320,Revenue,CAHD,Home Care - Elderly - North,Other Small Contracts,Cherish Able Care Limited,286.96, 12-Feb-2016
321,Revenue,CAHD,Home Care - Elderly - South,Other Small Contracts,Cherish Able Care Limited,5431.14, 18-Feb-2016
322,Revenue,CAHD,Home Care - Elderly - North,Other Small Contracts,Cherish Able Care Limited,324.94, 18-Feb-2016
323,Revenue,CAHD,Home Care - Elderly - South,Other Small Contracts,Cherish Able Care Limited,5431.14, 25-Feb-2016
324,Revenue,CAHD,Home Care - Elderly - North,Other Small Contracts,Cherish Able Care Limited,324.94, 25-Feb-2016
325,Revenue,CAHD,Bed purchasing -S28A  Under 65 - North,Permanent Residential,Chescombe Lodge,8791.96, 16-Feb-2016
326,Revenue,CAHD,Bed Purchasing - Southmead Hospital,Permanent Nursing,Cholwell House Nursing Home Ltd,1989.76, 16-Feb-2016
327,Revenue,CAHD,Bed Purchasing - Southmead Hospital,Permanent Nursing,Churchill Property Services,1698.04, 16-Feb-2016
328,Revenue,CAHD,18-25 Year Olds,Permanent Residential,Citibase Watford,7088.60, 16-Feb-2016
329,Revenue,CAHD,Bed Purchasing - Elderly S117- North,Permanent Residential,Citibase Watford,9028.60, 16-Feb-2016
330,Revenue,CAHD,18-25 Year Olds,Permanent Residential,Citibase Watford,5514.44, 16-Feb-2016
331,Revenue,CAHD,Home Care - Elderly - South,Other Small Contracts,Cleeve Care Group,598.26, 26-Feb-2016
332,Revenue,CAHD,Bed Purchasing - South,Permanent Residential,Cleeve Lodge,568.08, 16-Feb-2016
333,Revenue,CAHD,Bed Purchasing - Southmead Hospital,Permanent Residential,Cleeve Lodge,1475.80, 16-Feb-2016
334,Revenue,CAHD,Bed Purchasing - South,Permanent Residential,Cleeve Lodge,1833.04, 16-Feb-2016
335,Revenue,CAHD,Bed Purchasing - South,Permanent Residential,Cleeve Lodge,1827.76, 16-Feb-2016
336,Revenue,CAHD,Bed Purchasing - South,Permanent Residential,Collingwood Residential Home,1456.80, 16-Feb-2016
337,Revenue,CAHD,Bed Purchasing - South,Permanent Residential,Collingwood Residential Home,1466.04, 16-Feb-2016
338,Revenue,CAHD,Bed Purchasing - South,Permanent Residential,Collingwood Residential Home,1079.12, 16-Feb-2016
339,Revenue,CAHD,Bed Purchasing - South,Permanent Residential,Collingwood Residential Home,1333.28, 16-Feb-2016
340,Revenue,CAHD,Bed Purchasing - South,Permanent Residential,Collingwood Residential Home,1327.16, 16-Feb-2016
341,Revenue,CAHD,Bed Purchasing - South,Permanent Nursing,Community Integrated Care,664.84, 16-Feb-2016
342,Revenue,CAHD,Community Support - North,Preventative Assistance,Community Therapeutic Services,3466.18, 25-Feb-2016
343,Revenue,CAHD,Bed and Breakfast,Bed & Breakfast,Connolly & Callaghan Limited,651.00, 29-Feb-2016
344,Revenue,CAHD,Bed and Breakfast,Bed & Breakfast,Connolly & Callaghan Limited,441.00, 10-Feb-2016
345,Revenue,CAHD,Bed and Breakfast,Bed & Breakfast,Connolly & Callaghan Limited,476.00, 10-Feb-2016
346,Revenue,CAHD,Bed and Breakfast,Bed & Breakfast,Connolly & Callaghan Limited,686.00, 10-Feb-2016
347,Revenue,CAHD,Bed and Breakfast,Bed & Breakfast,Connolly & Callaghan Limited,476.00, 10-Feb-2016
348,Revenue,CAHD,Bed and Breakfast,Bed & Breakfast,Connolly & Callaghan Limited,700.00, 10-Feb-2016
349,Revenue,CAHD,Bed and Breakfast,Bed & Breakfast,Connolly & Callaghan Limited,476.00, 24-Feb-2016
350,Revenue,CAHD,Bed and Breakfast,Bed & Breakfast,Connolly & Callaghan Limited,476.00, 03-Feb-2016
351,Revenue,CAHD,Bed and Breakfast,Bed & Breakfast,Connolly & Callaghan Limited,700.00, 03-Feb-2016
352,Revenue,CAHD,Bed and Breakfast,Bed & Breakfast,Connolly & Callaghan Limited,511.00, 03-Feb-2016
353,Revenue,CAHD,Bed and Breakfast,Bed & Breakfast,Connolly & Callaghan Limited,511.00, 03-Feb-2016
354,Revenue,CAHD,Bed and Breakfast,Bed & Breakfast,Connolly & Callaghan Limited,616.00, 03-Feb-2016
355,Revenue,CAHD,Bed and Breakfast,Bed & Breakfast,Connolly & Callaghan Limited,476.00, 03-Feb-2016
356,Revenue,CAHD,Bed and Breakfast,Bed & Breakfast,Connolly & Callaghan Limited,700.00, 01-Feb-2016
357,Revenue,CAHD,Bed and Breakfast,Bed & Breakfast,Connolly & Callaghan Limited,511.00, 01-Feb-2016
358,Revenue,CAHD,Bed and Breakfast,Bed & Breakfast,Connolly & Callaghan Limited,511.00, 01-Feb-2016
359,Revenue,CAHD,Bed and Breakfast,Bed & Breakfast,Connolly & Callaghan Limited,616.00, 01-Feb-2016
360,Revenue,CAHD,Bed and Breakfast,Bed & Breakfast,Connolly & Callaghan Limited,476.00, 01-Feb-2016
361,Revenue,CAHD,Bed and Breakfast,Bed & Breakfast,Connolly & Callaghan Limited,476.00, 01-Feb-2016
362,Revenue,CAHD,Bed and Breakfast,Bed & Breakfast,Connolly & Callaghan Limited,700.00, 01-Feb-2016
363,Revenue,CAHD,Bed and Breakfast,Bed & Breakfast,Connolly & Callaghan Limited,511.00, 11-Feb-2016
364,Revenue,CAHD,Bed and Breakfast,Bed & Breakfast,Connolly & Callaghan Limited,511.00, 01-Feb-2016
365,Revenue,CAHD,Bed and Breakfast,Bed & Breakfast,Connolly & Callaghan Limited,616.00, 01-Feb-2016
366,Revenue,CAHD,Bed and Breakfast,Bed & Breakfast,Connolly & Callaghan Limited,476.00, 11-Feb-2016
367,Revenue,CAHD,Bed and Breakfast,Bed & Breakfast,Connolly & Callaghan Limited,700.00, 11-Feb-2016
368,Revenue,CAHD,Bed and Breakfast,Bed & Breakfast,Connolly & Callaghan Limited,476.00, 10-Feb-2016
369,Revenue,CAHD,Bed and Breakfast,Bed & Breakfast,Connolly & Callaghan Limited,511.00, 11-Feb-2016
370,Revenue,CAHD,Bed and Breakfast,Bed & Breakfast,Connolly & Callaghan Limited,476.00, 04-Feb-2016
371,Revenue,CAHD,Bed and Breakfast,Bed & Breakfast,Connolly & Callaghan Limited,616.00, 01-Feb-2016
372,Revenue,CAHD,Bed and Breakfast,Bed & Breakfast,Connolly & Callaghan Limited,476.00, 11-Feb-2016
373,Revenue,CAHD,Bed and Breakfast,Bed & Breakfast,Connolly & Callaghan Limited,700.00, 11-Feb-2016
374,Revenue,CAHD,Bed and Breakfast,Bed & Breakfast,Connolly & Callaghan Limited,476.00, 10-Feb-2016
375,Revenue,CAHD,Bed and Breakfast,Bed & Breakfast,Connolly & Callaghan Limited,511.00, 11-Feb-2016
376,Revenue,CAHD,Bed and Breakfast,Bed & Breakfast,Connolly & Callaghan Limited,476.00, 04-Feb-2016
377,Revenue,CAHD,Bed and Breakfast,Bed & Breakfast,Connolly & Callaghan Limited,616.00, 01-Feb-2016
378,Revenue,CAHD,Bed and Breakfast,Bed & Breakfast,Connolly & Callaghan Limited,581.00, 11-Feb-2016
379,Revenue,CAHD,Bed and Breakfast,Bed & Breakfast,Connolly & Callaghan Limited,686.00, 11-Feb-2016
380,Revenue,CAHD,Bed and Breakfast,Bed & Breakfast,Connolly & Callaghan Limited,546.00, 11-Feb-2016
381,Revenue,CAHD,Bed and Breakfast,Bed & Breakfast,Connolly & Callaghan Limited,700.00, 10-Feb-2016
382,Revenue,CAHD,Bed and Breakfast,Bed & Breakfast,Connolly & Callaghan Limited,476.00, 11-Feb-2016
383,Revenue,CAHD,Bed and Breakfast,Bed & Breakfast,Connolly & Callaghan Limited,476.00, 10-Feb-2016
384,Revenue,CAHD,Bed and Breakfast,Bed & Breakfast,Connolly & Callaghan Limited,616.00, 10-Feb-2016
385,Revenue,CAHD,Bed and Breakfast,Bed & Breakfast,Connolly & Callaghan Limited,651.00, 11-Feb-2016
386,Revenue,CAHD,Bed and Breakfast,Bed & Breakfast,Connolly & Callaghan Limited,700.00, 24-Feb-2016
387,Revenue,CAHD,Bed and Breakfast,Bed & Breakfast,Connolly & Callaghan Limited,476.00, 24-Feb-2016
388,Revenue,CAHD,Bed and Breakfast,Bed & Breakfast,Connolly & Callaghan Limited,616.00, 24-Feb-2016
389,Revenue,CAHD,Bed and Breakfast,Bed & Breakfast,Connolly & Callaghan Limited,476.00, 09-Feb-2016
390,Revenue,CAHD,Bed and Breakfast,Bed & Breakfast,Connolly & Callaghan Limited,581.00, 08-Feb-2016
391,Revenue,CAHD,Bed and Breakfast,Bed & Breakfast,Connolly & Callaghan Limited,686.00, 08-Feb-2016
392,Revenue,CAHD,Bed and Breakfast,Bed & Breakfast,Connolly & Callaghan Limited,546.00, 08-Feb-2016
393,Revenue,CAHD,Bed and Breakfast,Bed & Breakfast,Connolly & Callaghan Limited,546.00, 08-Feb-2016
394,Revenue,CAHD,Bed and Breakfast,Bed & Breakfast,Connolly & Callaghan Limited,700.00, 09-Feb-2016
395,Revenue,CAHD,Bed and Breakfast,Bed & Breakfast,Connolly & Callaghan Limited,476.00, 08-Feb-2016
396,Revenue,CAHD,Bed and Breakfast,Bed & Breakfast,Connolly & Callaghan Limited,546.00, 09-Feb-2016
397,Revenue,CAHD,Bed and Breakfast,Bed & Breakfast,Connolly & Callaghan Limited,476.00, 09-Feb-2016
398,Revenue,CAHD,Bed and Breakfast,Bed & Breakfast,Connolly & Callaghan Limited,511.00, 08-Feb-2016
399,Revenue,CAHD,Bed and Breakfast,Bed & Breakfast,Connolly & Callaghan Limited,441.00, 08-Feb-2016
400,Revenue,CAHD,Bed and Breakfast,Bed & Breakfast,Connolly & Callaghan Limited,616.00, 09-Feb-2016
401,Revenue,CAHD,Bed and Breakfast,Bed & Breakfast,Connolly & Callaghan Limited,546.00, 08-Feb-2016
402,Revenue,CAHD,Bed and Breakfast,Bed & Breakfast,Connolly & Callaghan Limited,651.00, 08-Feb-2016
403,Revenue,CAHD,Bed and Breakfast,Bed & Breakfast,Connolly & Callaghan Limited,476.00, 18-Feb-2016
404,Revenue,CAHD,Bed and Breakfast,Bed & Breakfast,Connolly & Callaghan Limited,581.00, 18-Feb-2016
405,Revenue,CAHD,Bed and Breakfast,Bed & Breakfast,Connolly & Callaghan Limited,686.00, 18-Feb-2016
406,Revenue,CAHD,Bed and Breakfast,Bed & Breakfast,Connolly & Callaghan Limited,546.00, 18-Feb-2016
407,Revenue,CAHD,Bed and Breakfast,Bed & Breakfast,Connolly & Callaghan Limited,700.00, 18-Feb-2016
408,Revenue,CAHD,Bed and Breakfast,Bed & Breakfast,Connolly & Callaghan Limited,476.00, 18-Feb-2016
409,Revenue,CAHD,Bed and Breakfast,Bed & Breakfast,Connolly & Callaghan Limited,546.00, 18-Feb-2016
410,Revenue,CAHD,Bed and Breakfast,Bed & Breakfast,Connolly & Callaghan Limited,511.00, 18-Feb-2016
411,Revenue,CAHD,Bed and Breakfast,Bed & Breakfast,Connolly & Callaghan Limited,616.00, 18-Feb-2016
412,Revenue,CAHD,Bed and Breakfast,Bed & Breakfast,Connolly & Callaghan Limited,651.00, 18-Feb-2016
413,Revenue,CAHD,Bed and Breakfast,Bed & Breakfast,Connolly & Callaghan Limited,581.00, 23-Feb-2016
414,Revenue,CAHD,Bed and Breakfast,Bed & Breakfast,Connolly & Callaghan Limited,686.00, 23-Feb-2016
415,Revenue,CAHD,Bed and Breakfast,Bed & Breakfast,Connolly & Callaghan Limited,546.00, 23-Feb-2016
416,Revenue,CAHD,Bed and Breakfast,Bed & Breakfast,Connolly & Callaghan Limited,546.00, 23-Feb-2016
417,Revenue,CAHD,Bed and Breakfast,Bed & Breakfast,Connolly & Callaghan Limited,476.00, 23-Feb-2016
418,Revenue,CAHD,Bed and Breakfast,Bed & Breakfast,Connolly & Callaghan Limited,546.00, 23-Feb-2016
419,Revenue,CAHD,Bed and Breakfast,Bed & Breakfast,Connolly & Callaghan Limited,476.00, 24-Feb-2016
420,Revenue,CAHD,Bed and Breakfast,Bed & Breakfast,Connolly & Callaghan Limited,511.00, 23-Feb-2016
421,Revenue,CAHD,Bed and Breakfast,Bed & Breakfast,Connolly & Callaghan Limited,616.00, 24-Feb-2016
422,Revenue,CAHD,Bed and Breakfast,Bed & Breakfast,Connolly & Callaghan Limited,651.00, 25-Feb-2016
423,Revenue,CAHD,Bed and Breakfast,Bed & Breakfast,Connolly & Callaghan Limited,581.00, 29-Feb-2016
424,Revenue,CAHD,Bed and Breakfast,Bed & Breakfast,Connolly & Callaghan Limited,686.00, 29-Feb-2016
425,Revenue,CAHD,Bed and Breakfast,Bed & Breakfast,Connolly & Callaghan Limited,546.00, 29-Feb-2016
426,Revenue,CAHD,Bed and Breakfast,Bed & Breakfast,Connolly & Callaghan Limited,546.00, 29-Feb-2016
427,Revenue,CAHD,Bed and Breakfast,Bed & Breakfast,Connolly & Callaghan Limited,476.00, 29-Feb-2016
428,Revenue,CAHD,Bed and Breakfast,Bed & Breakfast,Connolly & Callaghan Limited,546.00, 29-Feb-2016
429,Revenue,CAHD,Bed and Breakfast,Bed & Breakfast,Connolly & Callaghan Limited,441.00, 29-Feb-2016
430,Revenue,CAHD,Bed and Breakfast,Bed & Breakfast,Connolly & Callaghan Limited,700.00, 24-Feb-2016
431,Revenue,CAHD,Bed Purchasing - Southmead Hospital,Permanent Residential,Coombs Wood House,1192.80, 16-Feb-2016
432,Revenue,CAHD,Bed Purchasing - S28A - Over 65- North,Permanent Residential,Cream Ii Ltd  Longrun House,8102.76, 16-Feb-2016
433,Revenue,CAHD,Bed Purchasing - South,Permanent Residential,Cream Ii Ltd  Longrun House,5689.32, 16-Feb-2016
434,Revenue,CAHD,Bed purchasing -S28A  Under 65 - North,Permanent Residential,Creedy Court,9392.72, 16-Feb-2016
435,Revenue,CAHD,Bed Purchasing - S28A - Over 65- North,Permanent Residential,Creedy Court,7806.28, 16-Feb-2016
436,Revenue,CAHD,Bed Purchasing - North,Permanent Residential,Creedy Court,12716.84, 16-Feb-2016
437,Revenue,CAHD,Brokerage and Information Service,Grants to Voluntary Bodies,D H I,23269.00, 17-Feb-2016
438,Revenue,CAHD,Bed Purchasing - South,Permanent Residential,Daneswood,11113.64, 16-Feb-2016
439,Revenue,CAHD,Bed Purchasing - North,Permanent Residential,Daneswood,9213.64, 16-Feb-2016
440,Revenue,CAHD,Bed Purchasing - Elderly S117- North,Permanent Nursing,Danshell Healthcare Group,11653.52, 16-Feb-2016
441,Revenue,CAHD,Learning Difficulties PSL,Other Supplies & Services,Individual,2105.50, 22-Feb-2016
442,Revenue,CAHD,Home Care - Elderly - South,Supported Living,Design House,2674.68, 16-Feb-2016
443,Revenue,CAHD,Home Care - Elderly - South,Supported Living,Design House,2859.20, 16-Feb-2016
444,Revenue,CAHD,Home Care - Elderly - South,Supported Living,Design House,2924.32, 16-Feb-2016
445,Revenue,CAHD,Home Care - Elderly - South,Supported Living,Design House,2794.08, 16-Feb-2016
446,Revenue,CAHD,Home Care - Elderly - South,Supported Living,Design House,2463.04, 16-Feb-2016
447,Revenue,CAHD,Home Care - Elderly - South,Supported Living,Design House,2463.04, 16-Feb-2016
448,Revenue,CAHD,Home Care - Elderly - South,Supported Living,Design House,2349.08, 16-Feb-2016
449,Revenue,CAHD,Home Care - Elderly - South,Supported Living,Design House,3800.40, 16-Feb-2016
450,Revenue,CAHD,Home Care - Elderly - South,Supported Living,Design House,2707.24, 16-Feb-2016
451,Revenue,CAHD,Home Care - Elderly - South,Supported Living,Design House,2756.08, 16-Feb-2016
452,Revenue,CAHD,Home Care - Elderly - South,Supported Living,Design House,2107.28, 16-Feb-2016
453,Revenue,CAHD,Home Care - Elderly - South,Supported Living,Design House,2107.28, 16-Feb-2016
454,Revenue,CAHD,Bed Purchasing - South,Permanent Residential,Devon & Cornwall Autistic Community Trus,8880.84, 16-Feb-2016
455,Revenue,CAHD,Home Care - Elderly - South,Day Care / Social Activities,Dhek Bhal,279.30, 16-Feb-2016
456,Revenue,CAHD,Home Care - Elderly - South,Other Small Contracts,Dhek Bhal,249.90, 16-Feb-2016
457,Revenue,CAHD,Home Care - Elderly - North,Other Small Contracts,Dhek Bhal,117.60, 16-Feb-2016
458,Revenue,CAHD,Home Care - Elderly - South,Day Care / Social Activities,Dhek Bhal,274.40, 03-Feb-2016
459,Revenue,CAHD,Home Care - Elderly - South,Other Small Contracts,Dhek Bhal,274.40, 03-Feb-2016
460,Revenue,CAHD,Home Care - Elderly - North,Other Small Contracts,Dhek Bhal,117.60, 03-Feb-2016
461,Revenue,CAHD,Home Care - Elderly - South,Day Care / Social Activities,Dhek Bhal,117.60, 16-Feb-2016
462,Revenue,CAHD,Home Care - Elderly - South,Other Small Contracts,Dhek Bhal,279.30, 16-Feb-2016
463,Revenue,CAHD,Home Care - Elderly - North,Other Small Contracts,Dhek Bhal,112.70, 16-Feb-2016
464,Revenue,CAHD,Home Care - Elderly - South,Day Care / Social Activities,Dhek Bhal,137.20, 23-Feb-2016
465,Revenue,CAHD,Home Care - Elderly - South,Other Small Contracts,Dhek Bhal,274.40, 23-Feb-2016
466,Revenue,CAHD,Home Care - Elderly - North,Other Small Contracts,Dhek Bhal,117.60, 23-Feb-2016
467,Revenue,CAHD,Home Care - Elderly - South,Day Care / Social Activities,Dhek Bhal,196.00, 23-Feb-2016
468,Revenue,CAHD,Home Care - Elderly - South,Other Small Contracts,Dhek Bhal,274.40, 23-Feb-2016
469,Revenue,CAHD,Home Care - Elderly - North,Other Small Contracts,Dhek Bhal,117.60, 23-Feb-2016
470,Revenue,CAHD,Bed Purchasing - South,Permanent Residential,Dimensions  Suite 2,4933.76, 16-Feb-2016
471,Revenue,CAHD,Supported Living - South,Private & Voluntary Home Care,Dimensions (UK) Ltd,7490.12, 29-Feb-2016
472,Revenue,CAHD,Training - Adult Services,Training Expenses,Do The Write Thing,850.00, 12-Feb-2016
473,Revenue,CAHD,Home Care - Elderly - South,Day Care / Social Activities,DoCare Ltd,40.24, 25-Feb-2016
474,Revenue,CAHD,Home Care - Elderly - South,Other Small Contracts,DoCare Ltd,1614.63, 25-Feb-2016
475,Revenue,CAHD,Home Care - Elderly - North,Other Small Contracts,DoCare Ltd,4828.80, 25-Feb-2016
476,Revenue,CAHD,Social Lettings Agency,Other Supplies & Services,Individual,605.64, 24-Feb-2016
477,Revenue,CAHD,Community Support - North,Preventative Assistance,Dr Simon Gerhand,800.00, 22-Feb-2016
478,Revenue,CAHD,MH Purchasing - Younger,Permanent Residential,Dunraven House,1875.40, 16-Feb-2016
479,Revenue,CAHD,Bed Purchasing - Southmead Hospital,Permanent Residential,Dylan House,790.42, 16-Feb-2016
480,Revenue,CAHD,Bed and Breakfast,Bed & Breakfast,E J Bartlett,539.00, 18-Feb-2016
481,Revenue,CAHD,Bed and Breakfast,Bed & Breakfast,E J Bartlett,776.00, 18-Feb-2016
482,Revenue,CAHD,Bed and Breakfast,Bed & Breakfast,E J Bartlett,679.00, 23-Feb-2016
483,Revenue,CAHD,Bed and Breakfast,Bed & Breakfast,E J Bartlett,420.00, 29-Feb-2016
484,Revenue,CAHD,Bed and Breakfast,Bed & Breakfast,E J Bartlett,420.00, 29-Feb-2016
485,Revenue,CAHD,Bed and Breakfast,Bed & Breakfast,E J Bartlett,679.00, 29-Feb-2016
486,Revenue,CAHD,Bed Purchasing - North,Permanent Residential,East Court,2238.40, 16-Feb-2016
487,Revenue,CAHD,Minor Adaptations Service,Operational Equipment,Eastman & Co (Timber) Limited,609.00, 22-Feb-2016
488,Revenue,CAHD,Home Care - Elderly - South,Day Care / Social Activities,Easton Community Centre,526.08, 16-Feb-2016
489,Revenue,CAHD,Home Care - Elderly - South,Day Care / Social Activities,Easton Community Centre,526.08, 16-Feb-2016
490,Revenue,CAHD,Home Care - Elderly - North,Day Care / Social Activities,Easton Community Centre,526.08, 16-Feb-2016
491,Revenue,CAHD,Home Care - Elderly - North,Day Care / Social Activities,Easton Community Centre,526.08, 16-Feb-2016
492,Revenue,CAHD,Home Care - Elderly - South,Day Care / Social Activities,Eclipse Office Park,743.04, 16-Feb-2016
493,Revenue,CAHD,Home Care - Elderly - North,Day Care / Social Activities,Eclipse Office Park,990.72, 16-Feb-2016
494,Revenue,CAHD,Home Care - Elderly - South,Day Care / Social Activities,Eclipse Office Park,619.20, 16-Feb-2016
495,Revenue,CAHD,Home Care - Elderly - South,Day Care / Social Activities,Eclipse Office Park,743.04, 16-Feb-2016
496,Revenue,CAHD,Home Care - Elderly - South,Day Care / Social Activities,Eclipse Office Park,866.88, 16-Feb-2016
497,Revenue,CAHD,Home Care - Elderly - South,Day Care / Social Activities,Eclipse Office Park,743.04, 16-Feb-2016
498,Revenue,CAHD,Home Care - Elderly - South,Day Care / Social Activities,Eclipse Office Park,866.88, 16-Feb-2016
499,Revenue,CAHD,Home Care - Elderly - South,Day Care / Social Activities,Eclipse Office Park,1238.40, 16-Feb-2016
500,Revenue,CAHD,Home Care - Elderly - South,Day Care / Social Activities,Eclipse Office Park,743.04, 16-Feb-2016
501,Revenue,CAHD,Home Care - Elderly - South,Day Care / Social Activities,Eclipse Office Park,866.88, 16-Feb-2016
502,Revenue,CAHD,Home Care - Elderly - South,Day Care / Social Activities,Eclipse Office Park,990.72, 16-Feb-2016
503,Revenue,CAHD,Bed Purchasing - Southmead Hospital,Permanent Residential,Edgecumbe Lodge,1776.00, 16-Feb-2016
504,Revenue,CAHD,Bed Purchasing - South,Permanent Residential,Edgecumbe Lodge,1201.56, 16-Feb-2016
505,Revenue,CAHD,Bed Purchasing - South,Permanent Residential,Edgecumbe Lodge,1060.40, 16-Feb-2016
506,Revenue,CAHD,Bed Purchasing - Southmead Hospital,Permanent Residential,Edgecumbe Lodge,1617.48, 16-Feb-2016
507,Revenue,CAHD,Bed Purchasing - North,Permanent Residential,Edgecumbe Lodge,1022.44, 16-Feb-2016
508,Revenue,CAHD,Bed Purchasing - South,Permanent Residential,Edgecumbe Lodge,1569.60, 16-Feb-2016
509,Revenue,CAHD,Bed Purchasing - Southmead Hospital,Permanent Residential,Edgecumbe Lodge,1546.32, 16-Feb-2016
510,Revenue,CAHD,Bed Purchasing - South,Permanent Residential,Edgecumbe Lodge,1145.92, 16-Feb-2016
511,Revenue,CAHD,Bed Purchasing - North,Permanent Residential,Edgecumbe Lodge,1406.80, 16-Feb-2016
512,Revenue,CAHD,Bed Purchasing - North,Respite Planned - Residential,Edgemont House Ltd,3880.00, 16-Feb-2016
513,Revenue,CAHD,Bed Purchasing - South,Respite Planned - Residential,Edgemont House Ltd,623.57, 16-Feb-2016
514,Revenue,CAHD,Bed Purchasing - South,Permanent Residential,Edgemont House Ltd,1150.20, 16-Feb-2016
515,Revenue,CAHD,Bed Purchasing - Southmead Hospital,Permanent Residential,Edgemont House Ltd,1322.80, 16-Feb-2016
516,Revenue,CAHD,Bed Purchasing - North,Permanent Residential,Edgemont House Ltd,3920.60, 16-Feb-2016
517,Revenue,CAHD,Swift Dump Code,Permanent Residential,Edgemont House Ltd,2054.98, 16-Feb-2016
518,Revenue,CAHD,Bed Purchasing - South,Permanent Residential,Edgemont House Ltd,1311.36, 16-Feb-2016
519,Revenue,CAHD,Bed Purchasing - South,Permanent Nursing,Edgemont View Nursing Home,1402.24, 16-Feb-2016
520,Revenue,CAHD,Bed Purchasing - South,Permanent Nursing,Edgemont View Nursing Home,1763.04, 16-Feb-2016
521,Revenue,CAHD,Bed Purchasing - South,Permanent Nursing,Edgemont View Nursing Home,1457.44, 16-Feb-2016
522,Revenue,CAHD,Bed Purchasing - South,Permanent Nursing,Edgemont View Nursing Home,1648.40, 16-Feb-2016
523,Revenue,CAHD,Planning and Partnerships Procurement,Other Supplies & Services,Eldercare,1459.85, 22-Feb-2016
524,Revenue,CAHD,Planning and Partnerships Procurement,Other Supplies & Services,Eldercare,1436.57, 22-Feb-2016
525,Revenue,CAHD,Planning and Partnerships Procurement,Other Supplies & Services,Eldercare,1467.61, 19-Feb-2016
526,Revenue,CAHD,Planning and Partnerships Procurement,Other Supplies & Services,Eldercare,1500.59, 19-Feb-2016
527,Revenue,CAHD,Planning and Partnerships Procurement,Other Supplies & Services,Eldercare,1514.17, 19-Feb-2016
528,Revenue,CAHD,Supporting People Programme,Grants to Voluntary Bodies,Elim Housing Association Limited,5072.70, 01-Feb-2016
529,Revenue,CAHD,Home Care - Elderly - South,Day Care / Social Activities,Elite Home Care Ltd,35.36, 05-Feb-2016
530,Revenue,CAHD,Home Care - Elderly - South,Other Small Contracts,Elite Home Care Ltd,6055.40, 05-Feb-2016
531,Revenue,CAHD,Home Care - Elderly - North,Other Small Contracts,Elite Home Care Ltd,335.92, 05-Feb-2016
532,Revenue,CAHD,Home Care - Elderly - South,Day Care / Social Activities,Elite Home Care Ltd,35.36, 10-Feb-2016
533,Revenue,CAHD,Home Care - Elderly - South,Other Small Contracts,Elite Home Care Ltd,5768.10, 10-Feb-2016
534,Revenue,CAHD,Home Care - Elderly - North,Other Small Contracts,Elite Home Care Ltd,331.50, 10-Feb-2016
535,Revenue,CAHD,Home Care - Elderly - South,Day Care / Social Activities,Elite Home Care Ltd,35.36, 16-Feb-2016
536,Revenue,CAHD,Home Care - Elderly - South,Other Small Contracts,Elite Home Care Ltd,5887.44, 16-Feb-2016
537,Revenue,CAHD,Home Care - Elderly - North,Other Small Contracts,Elite Home Care Ltd,335.92, 16-Feb-2016
538,Revenue,CAHD,Home Care - Elderly - South,Day Care / Social Activities,Elite Home Care Ltd,35.36, 23-Feb-2016
539,Revenue,CAHD,Home Care - Elderly - South,Other Small Contracts,Elite Home Care Ltd,5741.58, 23-Feb-2016
540,Revenue,CAHD,Home Care - Elderly - North,Other Small Contracts,Elite Home Care Ltd,335.92, 23-Feb-2016
541,Revenue,CAHD,Bed Purchasing - North,Permanent Residential,Epworth House,1053.36, 16-Feb-2016
542,Revenue,CAHD,Home Care - Elderly - South,Other Small Contracts,Everycare (Bristol) Ltd,3689.40, 10-Feb-2016
543,Revenue,CAHD,Home Care - Elderly - North,Day Care / Social Activities,Everycare (Bristol) Ltd,111.80, 10-Feb-2016
544,Revenue,CAHD,Home Care - Elderly - North,Other Small Contracts,Everycare (Bristol) Ltd,841.28, 10-Feb-2016
545,Revenue,CAHD,Home Care - Elderly - South,Other Small Contracts,Everycare (Bristol) Ltd,3663.60, 10-Feb-2016
546,Revenue,CAHD,Home Care - Elderly - North,Day Care / Social Activities,Everycare (Bristol) Ltd,111.80, 10-Feb-2016
547,Revenue,CAHD,Home Care - Elderly - North,Other Small Contracts,Everycare (Bristol) Ltd,946.00, 10-Feb-2016
548,Revenue,CAHD,Home Care - Elderly - South,Other Small Contracts,Everycare (Bristol) Ltd,3693.70, 15-Feb-2016
549,Revenue,CAHD,Home Care - Elderly - North,Day Care / Social Activities,Everycare (Bristol) Ltd,103.20, 15-Feb-2016
550,Revenue,CAHD,Home Care - Elderly - North,Other Small Contracts,Everycare (Bristol) Ltd,1264.20, 15-Feb-2016
551,Revenue,CAHD,Home Care - Elderly - South,Other Small Contracts,Everycare (Bristol) Ltd,3594.80, 15-Feb-2016
552,Revenue,CAHD,Home Care - Elderly - North,Day Care / Social Activities,Everycare (Bristol) Ltd,111.80, 15-Feb-2016
553,Revenue,CAHD,Home Care - Elderly - North,Other Small Contracts,Everycare (Bristol) Ltd,1380.30, 15-Feb-2016
554,Revenue,CAHD,Home Care - Elderly - South,Other Small Contracts,Everycare (Bristol) Ltd,3543.20, 26-Feb-2016
555,Revenue,CAHD,Home Care - Elderly - North,Day Care / Social Activities,Everycare (Bristol) Ltd,51.60, 26-Feb-2016
556,Revenue,CAHD,Home Care - Elderly - North,Other Small Contracts,Everycare (Bristol) Ltd,1371.70, 26-Feb-2016
557,Revenue,CAHD,Bed Purchasing - South,Permanent Nursing,Fairview Court,2446.80, 16-Feb-2016
558,Revenue,CAHD,Bed Purchasing - Southmead Hospital,Permanent Nursing,Fairview Court,1896.04, 16-Feb-2016
559,Revenue,CAHD,Bed Purchasing - Southmead Hospital,Permanent Nursing,Fairview Court,1204.96, 16-Feb-2016
560,Revenue,CAHD,Bed purchasing - Elderly S117 - South,Permanent Nursing,Fairview Court,2012.00, 16-Feb-2016
561,Revenue,CAHD,Bed Purchasing - South,Permanent Nursing,Fairview Court,10911.30, 16-Feb-2016
562,Revenue,CAHD,Bed Purchasing - South,Permanent Nursing,Fairview Court,2197.96, 16-Feb-2016
563,Revenue,CAHD,Bed Purchasing - North,Permanent Nursing,Fairview Court,2410.80, 16-Feb-2016
564,Revenue,CAHD,South Glos Users in South Glos Homes,Permanent Nursing,Fairview Court,1008.00, 16-Feb-2016
565,Revenue,CAHD,Bed Purchasing - South,Permanent Nursing,Fairview Court,1786.36, 16-Feb-2016
566,Revenue,CAHD,Bed Purchasing - South,Permanent Nursing,Fairview Court,2019.04, 16-Feb-2016
567,Revenue,CAHD,Bed Purchasing - Southmead Hospital,Permanent Nursing,Fairview Court,2349.72, 16-Feb-2016
568,Revenue,CAHD,Bed Purchasing - South,Permanent Nursing,Fairview Court Care Home,1208.42, 02-Feb-2016
569,Revenue,CAHD,Bed Purchasing - South,Permanent Nursing,Fairview Court Care Home,1017.69, 02-Feb-2016
570,Revenue,CAHD,Bed Purchasing - South,Permanent Nursing,Fairview Court Care Home,2081.47, 02-Feb-2016
571,Revenue,CAHD,Bed Purchasing - South,Permanent Nursing,Fairview Court Care Home,2081.47, 02-Feb-2016
572,Revenue,CAHD,Bed Purchasing - North,Permanent Nursing,Fairview Court Care Home,1718.37, 02-Feb-2016
573,Revenue,CAHD,Bed purchasing - Elderly S117 - South,Permanent Nursing,Fairview Court Care Home,2640.80, 02-Feb-2016
574,Revenue,CAHD,Pathway 2 - (Interim Beds),Permanent Nursing,Fairview Court Care Home,10200.00, 08-Feb-2016
575,Revenue,CAHD,Bed purchasing - Elderly S117 - South,Permanent Residential,Fairview House,1937.56, 16-Feb-2016
576,Revenue,CAHD,Bed Purchasing - Southmead Hospital,Permanent Residential,Fairview House,1043.16, 16-Feb-2016
577,Revenue,CAHD,Bed Purchasing - South,Permanent Residential,Fairview House,868.80, 16-Feb-2016
578,Revenue,CAHD,Bed Purchasing - South,Permanent Residential,Fairview House,669.04, 16-Feb-2016
579,Revenue,CAHD,Bed Purchasing - South,Permanent Residential,Fairview House,1278.80, 16-Feb-2016
580,Revenue,CAHD,Bed Purchasing - South,Permanent Residential,Fairview House,2007.89, 16-Feb-2016
581,Revenue,CAHD,Bed Purchasing - South,Permanent Residential,Fairview House,1222.60, 16-Feb-2016
582,Revenue,CAHD,Bed Purchasing - South,Permanent Residential,Fairview House,1134.96, 16-Feb-2016
583,Revenue,CAHD,Bed Purchasing - South,Permanent Residential,Fairview House,1044.00, 16-Feb-2016
584,Revenue,CAHD,Bed Purchasing - South,Permanent Residential,Fairview House,1455.56, 16-Feb-2016
585,Revenue,CAHD,Bed Purchasing - Southmead Hospital,Permanent Residential,Fairview House,1407.12, 16-Feb-2016
586,Revenue,CAHD,Bed Purchasing - Southmead Hospital,Permanent Residential,Faith House,560.04, 16-Feb-2016
587,Revenue,CAHD,Bed Purchasing - Southmead Hospital,Permanent Residential,Faith House,1252.12, 16-Feb-2016
588,Revenue,CAHD,Bed Purchasing - North,Permanent Residential,Fernbank,7790.28, 16-Feb-2016
589,Revenue,CAHD,Bed Purchasing - North,Permanent Nursing,Field House Care Home,2530.80, 16-Feb-2016
590,Revenue,CAHD,Home Care - Elderly - South,Other Small Contracts,Firstpoint Homecare Ltd,1847.75, 03-Feb-2016
591,Revenue,CAHD,Home Care - Elderly - North,Day Care / Social Activities,Firstpoint Homecare Ltd,46.68, 03-Feb-2016
592,Revenue,CAHD,Home Care - Elderly - North,Other Small Contracts,Firstpoint Homecare Ltd,707.98, 03-Feb-2016
593,Revenue,CAHD,Home Care - Elderly - South,Other Small Contracts,Firstpoint Homecare Ltd,1664.92, 03-Feb-2016
594,Revenue,CAHD,Home Care - Elderly - North,Day Care / Social Activities,Firstpoint Homecare Ltd,46.68, 03-Feb-2016
595,Revenue,CAHD,Home Care - Elderly - North,Other Small Contracts,Firstpoint Homecare Ltd,665.19, 03-Feb-2016
596,Revenue,CAHD,Home Care - Elderly - South,Other Small Contracts,Firstpoint Homecare Ltd,1664.92, 03-Feb-2016
597,Revenue,CAHD,Home Care - Elderly - North,Day Care / Social Activities,Firstpoint Homecare Ltd,42.79, 03-Feb-2016
598,Revenue,CAHD,Home Care - Elderly - North,Other Small Contracts,Firstpoint Homecare Ltd,529.06, 03-Feb-2016
599,Revenue,CAHD,Home Care - Elderly - South,Other Small Contracts,Firstpoint Homecare Ltd,1894.43, 03-Feb-2016
600,Revenue,CAHD,Home Care - Elderly - North,Day Care / Social Activities,Firstpoint Homecare Ltd,46.68, 03-Feb-2016
601,Revenue,CAHD,Home Care - Elderly - North,Other Small Contracts,Firstpoint Homecare Ltd,552.38, 03-Feb-2016
602,Revenue,CAHD,Home Care - Elderly - South,Other Small Contracts,Firstpoint Homecare Ltd,1847.75, 26-Feb-2016
603,Revenue,CAHD,Home Care - Elderly - North,Day Care / Social Activities,Firstpoint Homecare Ltd,46.68, 26-Feb-2016
604,Revenue,CAHD,Home Care - Elderly - North,Other Small Contracts,Firstpoint Homecare Ltd,556.27, 26-Feb-2016
605,Revenue,CAHD,Home Care - Elderly - South,Other Small Contracts,Firstpoint Homecare Ltd,1871.09, 26-Feb-2016
606,Revenue,CAHD,Home Care - Elderly - North,Day Care / Social Activities,Firstpoint Homecare Ltd,35.01, 26-Feb-2016
607,Revenue,CAHD,Home Care - Elderly - North,Other Small Contracts,Firstpoint Homecare Ltd,501.81, 26-Feb-2016
608,Revenue,CAHD,Bed Purchasing - South,Permanent Residential,Four Seasons Health Care,7052.97, 16-Feb-2016
609,Revenue,CAHD,Home Care - Elderly - South,Day Care / Social Activities,Fourways Care Limited,465.50, 01-Feb-2016
610,Revenue,CAHD,Home Care - Elderly - South,Other Small Contracts,Fourways Care Limited,2745.50, 01-Feb-2016
611,Revenue,CAHD,Home Care - Elderly - North,Other Small Contracts,Fourways Care Limited,527.25, 01-Feb-2016
612,Revenue,CAHD,Home care - Elderly MH - North,Other Small Contracts,Fourways Care Limited,228.00, 01-Feb-2016
613,Revenue,CAHD,Home Care - Elderly - South,Day Care / Social Activities,Fourways Care Limited,470.25, 10-Feb-2016
614,Revenue,CAHD,Home Care - Elderly - South,Other Small Contracts,Fourways Care Limited,2916.50, 10-Feb-2016
615,Revenue,CAHD,Home Care - Elderly - North,Other Small Contracts,Fourways Care Limited,446.50, 10-Feb-2016
616,Revenue,CAHD,Home Care - Elderly - South,Day Care / Social Activities,Fourways Care Limited,460.75, 15-Feb-2016
617,Revenue,CAHD,Home Care - Elderly - South,Other Small Contracts,Fourways Care Limited,3215.75, 15-Feb-2016
618,Revenue,CAHD,Home Care - Elderly - North,Other Small Contracts,Fourways Care Limited,788.50, 15-Feb-2016
619,Revenue,CAHD,Home Care - Elderly - South,Day Care / Social Activities,Fourways Care Limited,470.25, 19-Feb-2016
620,Revenue,CAHD,Home Care - Elderly - South,Other Small Contracts,Fourways Care Limited,3196.75, 19-Feb-2016
621,Revenue,CAHD,Home Care - Elderly - North,Other Small Contracts,Fourways Care Limited,517.75, 19-Feb-2016
622,Revenue,CAHD,Home Care - Elderly - South,Day Care / Social Activities,Fourways Care Limited,456.00, 26-Feb-2016
623,Revenue,CAHD,Home Care - Elderly - South,Other Small Contracts,Fourways Care Limited,3524.50, 26-Feb-2016
624,Revenue,CAHD,Home Care - Elderly - North,Other Small Contracts,Fourways Care Limited,693.50, 26-Feb-2016
625,Revenue,CAHD,Supporting People Programme,Grants to Voluntary Bodies,Freeways Trust Limited,8053.04, 01-Feb-2016
626,Revenue,CAHD,Freeways,Permanent Residential,Freeways Trust Limited,3651.28, 03-Feb-2016
627,Revenue,CAHD,Freeways,Permanent Residential,Freeways Trust Limited,2294.48, 03-Feb-2016
628,Revenue,CAHD,Freeways,Permanent Residential,Freeways Trust Limited,2372.68, 03-Feb-2016
629,Revenue,CAHD,Freeways,Permanent Residential,Freeways Trust Limited,2948.28, 03-Feb-2016
630,Revenue,CAHD,Freeways,Permanent Residential,Freeways Trust Limited,2294.48, 03-Feb-2016
631,Revenue,CAHD,Freeways,Permanent Residential,Freeways Trust Limited,3395.68, 03-Feb-2016
632,Revenue,CAHD,Freeways,Permanent Residential,Freeways Trust Limited,2695.08, 03-Feb-2016
633,Revenue,CAHD,Freeways,Permanent Residential,Freeways Trust Limited,3560.84, 03-Feb-2016
634,Revenue,CAHD,Freeways,Permanent Residential,Freeways Trust Limited,2695.08, 03-Feb-2016
635,Revenue,CAHD,Freeways,Permanent Residential,Freeways Trust Limited,2711.48, 03-Feb-2016
636,Revenue,CAHD,Freeways,Permanent Residential,Freeways Trust Limited,3456.40, 03-Feb-2016
637,Revenue,CAHD,Freeways,Permanent Residential,Freeways Trust Limited,3111.64, 03-Feb-2016
638,Revenue,CAHD,Freeways,Permanent Residential,Freeways Trust Limited,3608.28, 03-Feb-2016
639,Revenue,CAHD,Freeways,Permanent Residential,Freeways Trust Limited,7355.16, 03-Feb-2016
640,Revenue,CAHD,Supported Living - South,Private & Voluntary Home Care,Freeways Trust Limited,1031.40, 09-Feb-2016
641,Revenue,CAHD,Supported Living - South,Private & Voluntary Home Care,Freeways Trust Limited,1237.68, 16-Feb-2016
642,Revenue,CAHD,Supported Living - South,Private & Voluntary Home Care,Freeways Trust Limited,1219.73, 16-Feb-2016
643,Revenue,CAHD,Bed Purchasing - North,Permanent Residential,Freeways Trust Ltd,2891.96, 16-Feb-2016
644,Revenue,CAHD,Bed purchasing - S28A Under 65 - South,Permanent Residential,Freeways Trust Ltd,2959.48, 16-Feb-2016
645,Revenue,CAHD,Bed Purchasing - North,Permanent Residential,Freeways Trust Ltd,3164.68, 16-Feb-2016
646,Revenue,CAHD,Bed Purchasing - North,Permanent Residential,Freeways Trust Ltd,2312.72, 16-Feb-2016
647,Revenue,CAHD,Bed Purchasing - North,Permanent Residential,Freeways Trust Ltd,2761.92, 16-Feb-2016
648,Revenue,CAHD,Bed Purchasing - South,Permanent Residential,Freeways Trust Ltd,3375.88, 16-Feb-2016
649,Revenue,CAHD,Bed Purchasing - North,Permanent Residential,Freeways Trust Ltd,2286.84, 16-Feb-2016
650,Revenue,CAHD,Bed Purchasing - South,Permanent Residential,Freeways Trust Ltd,2426.72, 16-Feb-2016
651,Revenue,CAHD,Bed Purchasing - North,Permanent Residential,Freeways Trust Ltd,2683.12, 16-Feb-2016
652,Revenue,CAHD,Bed Purchasing - North,Permanent Residential,Freeways Trust Ltd,3185.76, 16-Feb-2016
653,Revenue,CAHD,18-25 Year Olds,Permanent Residential,Freeways Trust Ltd,3409.64, 16-Feb-2016
654,Revenue,CAHD,Bed Purchasing - North,Permanent Residential,Freeways Trust Ltd,3866.08, 16-Feb-2016
655,Revenue,CAHD,Pathway 3 - (Complex Beds),Permanent Nursing,Frenchay House,3120.00, 04-Feb-2016
656,Revenue,CAHD,Bed Purchasing - South,Permanent Nursing,Frenchay Park Nursing Home,1634.27, 16-Feb-2016
657,Revenue,CAHD,Bed Purchasing - South,Permanent Nursing,Frenchay Park Nursing Home,1508.40, 16-Feb-2016
658,Revenue,CAHD,Bed Purchasing - Southmead Hospital,Permanent Nursing,Frenchay Park Nursing Home,2200.00, 16-Feb-2016
659,Revenue,CAHD,Bed Purchasing - South,Permanent Nursing,Fshc  1St Floor,900.32, 16-Feb-2016
660,Revenue,CAHD,Bed Purchasing - South,Permanent Nursing,Fshc  1St Floor,1054.36, 16-Feb-2016
661,Revenue,CAHD,Bed Purchasing - Southmead Hospital,Permanent Residential,Fshc  1St Floor,896.92, 16-Feb-2016
662,Revenue,CAHD,Bed Purchasing - South,Permanent Nursing,Fshc  1St Floor,1013.96, 16-Feb-2016
663,Revenue,CAHD,Bed Purchasing - Southmead Hospital,Permanent Nursing,Fshc  1St Floor,1308.48, 16-Feb-2016
664,Revenue,CAHD,Bed Purchasing - Southmead Hospital,Permanent Nursing,Fshc  1St Floor,1362.80, 16-Feb-2016
665,Revenue,CAHD,Bed Purchasing - Southmead Hospital,Respite Planned - Nursing,Fshc  1St Floor,2858.14, 16-Feb-2016
666,Revenue,CAHD,Bed Purchasing - Southmead Hospital,Permanent Nursing,Fshc  1St Floor,1398.80, 16-Feb-2016
667,Revenue,CAHD,Bed Purchasing - Southmead Hospital,Permanent Nursing,Fshc  1St Floor,1398.80, 16-Feb-2016
668,Revenue,CAHD,Bed Purchasing - Southmead Hospital,Permanent Nursing,Fshc  1St Floor,1064.28, 16-Feb-2016
669,Revenue,CAHD,Bed Purchasing - Southmead Hospital,Permanent Nursing,Fshc  1St Floor,1746.80, 16-Feb-2016
670,Revenue,CAHD,Bed Purchasing - Southmead Hospital,Permanent Nursing,Fshc  1St Floor,1398.80, 16-Feb-2016
671,Revenue,CAHD,Bed Purchasing - Southmead Hospital,Permanent Nursing,Fshc  1St Floor,1382.44, 16-Feb-2016
672,Revenue,CAHD,Bed Purchasing - South,Permanent Nursing,Fshc  1St Floor,1344.08, 16-Feb-2016
673,Revenue,CAHD,Bed Purchasing - Southmead Hospital,Permanent Nursing,Fshc  1St Floor,1398.80, 16-Feb-2016
674,Revenue,CAHD,Bed Purchasing - Southmead Hospital,Permanent Residential,Fshc  1St Floor,546.36, 16-Feb-2016
675,Revenue,CAHD,Bed Purchasing - South,Permanent Nursing,Fshc  1St Floor,3648.78, 16-Feb-2016
676,Revenue,CAHD,Bed Purchasing - South,Permanent Nursing,Fshc  1St Floor,1174.32, 16-Feb-2016
677,Revenue,CAHD,Bed Purchasing - North,Permanent Nursing,Fshc  1St Floor,1904.00, 16-Feb-2016
678,Revenue,CAHD,Bed Purchasing - Southmead Hospital,Permanent Nursing,Fshc  1St Floor,1398.80, 16-Feb-2016
679,Revenue,CAHD,Bed Purchasing - Southmead Hospital,Permanent Nursing,Fshc  1St Floor,1207.68, 16-Feb-2016
680,Revenue,CAHD,Bed Purchasing - South,Permanent Nursing,Fshc  1St Floor,1398.80, 16-Feb-2016
681,Revenue,CAHD,South Glos Users in South Glos Homes,Permanent Nursing,Fshc  1St Floor,928.00, 16-Feb-2016
682,Revenue,CAHD,Bed Purchasing - South,Permanent Nursing,Fshc  1St Floor,1354.20, 16-Feb-2016
683,Revenue,CAHD,South Glos Users in South Glos Homes,Permanent Nursing,Fshc  1St Floor,912.00, 16-Feb-2016
684,Revenue,CAHD,Bed Purchasing - Southmead Hospital,Permanent Nursing,Fshc  1St Floor,1398.80, 16-Feb-2016
685,Revenue,CAHD,Bed Purchasing - North,Permanent Nursing,Fshc  1St Floor,1097.68, 16-Feb-2016
686,Revenue,CAHD,Bed Purchasing - North,Permanent Residential,Fshc  1St Floor,1270.80, 16-Feb-2016
687,Revenue,CAHD,Bed Purchasing - Southmead Hospital,Permanent Nursing,Fshc  1St Floor,1023.00, 16-Feb-2016
688,Revenue,CAHD,Bed Purchasing - Southmead Hospital,Permanent Nursing,Fshc  1St Floor,1622.04, 16-Feb-2016
689,Revenue,CAHD,Bed Purchasing - Southmead Hospital,Permanent Nursing,Fshc  1St Floor,935.04, 16-Feb-2016
690,Revenue,CAHD,Bed Purchasing - Southmead Hospital,Permanent Residential,Fshc  1St Floor,1158.00, 16-Feb-2016
691,Revenue,CAHD,Bed Purchasing - Southmead Hospital,Permanent Nursing,Fshc  1St Floor,1112.44, 16-Feb-2016
692,Revenue,CAHD,Bed Purchasing - Southmead Hospital,Permanent Nursing,Fshc  1St Floor,1132.12, 16-Feb-2016
693,Revenue,CAHD,Bed Purchasing - Southmead Hospital,Permanent Nursing,Fshc  1St Floor,1315.04, 16-Feb-2016
694,Revenue,CAHD,Bed Purchasing - Southmead Hospital,Permanent Nursing,Fshc  1St Floor,1398.80, 16-Feb-2016
695,Revenue,CAHD,Bed Purchasing - North,Permanent Nursing,Fshc  1St Floor,4873.52, 16-Feb-2016
696,Revenue,CAHD,Bed Purchasing - North,Permanent Nursing,Fshc  1St Floor,1324.84, 16-Feb-2016
697,Revenue,CAHD,Bed Purchasing - Southmead Hospital,Permanent Nursing,Fshc  1St Floor,1130.76, 16-Feb-2016
698,Revenue,CAHD,Bed Purchasing - North,Permanent Residential,Fshc  1St Floor,1248.40, 16-Feb-2016
699,Revenue,CAHD,Bed Purchasing - South,Permanent Residential,Fshc  1St Floor,1148.76, 16-Feb-2016
700,Revenue,CAHD,Bed Purchasing - Southmead Hospital,Permanent Nursing,Fshc  1St Floor,2080.00, 16-Feb-2016
701,Revenue,CAHD,Bed Purchasing - Southmead Hospital,Permanent Nursing,Fshc  1St Floor,1393.24, 16-Feb-2016
702,Revenue,CAHD,Bed Purchasing - Southmead Hospital,Permanent Nursing,Fshc  1St Floor,1398.80, 16-Feb-2016
703,Revenue,CAHD,Bed Purchasing - North,Permanent Nursing,Fshc  1St Floor,545.84, 16-Feb-2016
704,Revenue,CAHD,Bed Purchasing - North,Permanent Nursing,Fshc  1St Floor,1501.92, 16-Feb-2016
705,Revenue,CAHD,Bed Purchasing - Southmead Hospital,Permanent Residential,Fshc  1St Floor,619.48, 16-Feb-2016
706,Revenue,CAHD,Bed Purchasing - Southmead Hospital,Permanent Nursing,Fshc  1St Floor,1385.72, 16-Feb-2016
707,Revenue,CAHD,Bed Purchasing - North,Permanent Nursing,Fshc  1St Floor,1270.20, 16-Feb-2016
708,Revenue,CAHD,Bed Purchasing - North,Permanent Nursing,Fshc  1St Floor,908.28, 16-Feb-2016
709,Revenue,CAHD,Bed Purchasing - North,Permanent Nursing,Fshc  1St Floor,1398.80, 16-Feb-2016
710,Revenue,CAHD,Bed Purchasing - North,Permanent Nursing,Fshc  1St Floor,1489.56, 16-Feb-2016
711,Revenue,CAHD,Bed Purchasing - North,Permanent Residential,Fshc  1St Floor,1421.84, 16-Feb-2016
712,Revenue,CAHD,Bed Purchasing - North,Permanent Nursing,Fshc  1St Floor,1007.00, 16-Feb-2016
713,Revenue,CAHD,Bed Purchasing - North,Permanent Residential,Fshc  1St Floor,1268.08, 16-Feb-2016
714,Revenue,CAHD,Bed Purchasing - Southmead Hospital,Permanent Nursing,Fshc  1St Floor,1108.28, 16-Feb-2016
715,Revenue,CAHD,Bed Purchasing - North,Permanent Nursing,Fshc  1St Floor,1422.80, 16-Feb-2016
716,Revenue,CAHD,Bed Purchasing - North,Permanent Residential,Fshc  1St Floor,1421.60, 16-Feb-2016
717,Revenue,CAHD,Bed Purchasing - North,Permanent Nursing,Fshc  1St Floor,1602.80, 16-Feb-2016
718,Revenue,CAHD,Bed Purchasing - North,Permanent Nursing,Fshc  1St Floor,1398.80, 16-Feb-2016
719,Revenue,CAHD,Bed Purchasing - Southmead Hospital,Respite Emergency - Nursing,Fshc  1St Floor,2012.00, 16-Feb-2016
720,Revenue,CAHD,Bed Purchasing - Southmead Hospital,Respite Emergency - Residential,Fshc  1St Floor,862.29, 16-Feb-2016
721,Revenue,CAHD,Bed Purchasing - Southmead Hospital,Respite Emergency - Nursing,Fshc  1St Floor,862.29, 16-Feb-2016
722,Revenue,CAHD,Bed Purchasing - South,Permanent Nursing,Fshc  1St Floor,1418.80, 16-Feb-2016
723,Revenue,CAHD,Bed Purchasing - Southmead Hospital,Permanent Nursing,Fshc  1St Floor,1197.88, 16-Feb-2016
724,Revenue,CAHD,Bed Purchasing - North,Respite Emergency - Nursing,Fshc  1St Floor,1952.00, 16-Feb-2016
725,Revenue,CAHD,Bed Purchasing - North,Respite Emergency - Residential,Fshc  1St Floor,1742.86, 16-Feb-2016
726,Revenue,CAHD,Bed Purchasing - North,Respite Emergency - Nursing,Fshc  1St Floor,1742.86, 16-Feb-2016
727,Revenue,CAHD,South Glos Users in South Glos Homes,Permanent Nursing,Fshc  1St Floor,1296.00, 16-Feb-2016
728,Revenue,CAHD,Bed Purchasing - North,Permanent Nursing,Fshc  1St Floor,1054.32, 16-Feb-2016
729,Revenue,CAHD,Bed Purchasing - Southmead Hospital,Permanent Residential,Fshc  1St Floor,1171.20, 16-Feb-2016
730,Revenue,CAHD,Bed Purchasing - Southmead Hospital,Permanent Nursing,Fshc  1St Floor,1344.04, 16-Feb-2016
731,Revenue,CAHD,Bed Purchasing - North,Permanent Nursing,Fshc  1St Floor,1019.44, 16-Feb-2016
732,Revenue,CAHD,Bed Purchasing - North,Permanent Nursing,Fshc  1St Floor,1433.84, 16-Feb-2016
733,Revenue,CAHD,Bed Purchasing - Southmead Hospital,Permanent Nursing,Fshc  1St Floor,582.08, 16-Feb-2016
734,Revenue,CAHD,Bed Purchasing - Southmead Hospital,Permanent Nursing,Fshc  1St Floor,1398.80, 16-Feb-2016
735,Revenue,CAHD,Bed Purchasing - Southmead Hospital,Permanent Nursing,Fshc  1St Floor,874.00, 16-Feb-2016
736,Revenue,CAHD,Bed Purchasing - Southmead Hospital,Permanent Nursing,Fshc  1St Floor,1398.80, 16-Feb-2016
737,Revenue,CAHD,Bed Purchasing - Southmead Hospital,Permanent Nursing,Fshc  1St Floor,718.16, 16-Feb-2016
738,Revenue,CAHD,Bed Purchasing - North,Permanent Nursing,Fshc  1St Floor,1503.40, 16-Feb-2016
739,Revenue,CAHD,Bed Purchasing - Southmead Hospital,Permanent Nursing,Fshc  1St Floor,1329.40, 16-Feb-2016
740,Revenue,CAHD,Bed Purchasing - North,Permanent Nursing,Fshc  1St Floor,1287.04, 16-Feb-2016
741,Revenue,CAHD,Bed Purchasing - Southmead Hospital,Permanent Nursing,Fshc  1St Floor,1271.84, 16-Feb-2016
742,Revenue,CAHD,Bed Purchasing - North,Permanent Nursing,Fshc  1St Floor,1023.84, 16-Feb-2016
743,Revenue,CAHD,Bed Purchasing - Southmead Hospital,Permanent Nursing,Fshc  1St Floor,6627.25, 16-Feb-2016
744,Revenue,CAHD,Bed Purchasing - Southmead Hospital,Permanent Nursing,Fshc  1St Floor,1848.92, 16-Feb-2016
745,Revenue,CAHD,Bed Purchasing - North,Permanent Residential,Fshc  1St Floor,3034.68, 16-Feb-2016
746,Revenue,CAHD,Bed Purchasing - North,Permanent Nursing,Fshc  1St Floor,1405.04, 16-Feb-2016
747,Revenue,CAHD,Bed Purchasing - South,Permanent Nursing,Fshc  1St Floor,1198.76, 16-Feb-2016
748,Revenue,CAHD,Bed Purchasing - South,Permanent Nursing,Fshc  1St Floor,5193.92, 16-Feb-2016
749,Revenue,CAHD,Bed Purchasing - South,Permanent Nursing,Fshc  1St Floor,1298.48, 16-Feb-2016
750,Revenue,CAHD,Bed Purchasing - Southmead Hospital,Permanent Nursing,Fshc  1St Floor,1335.04, 16-Feb-2016
751,Revenue,CAHD,Bed Purchasing - North,Permanent Nursing,Fshc  1St Floor,689.48, 16-Feb-2016
752,Revenue,CAHD,Bed Purchasing - South,Respite Planned - Nursing,Fshc  1St Floor,503.00, 16-Feb-2016
753,Revenue,CAHD,Bed Purchasing - South,Permanent Nursing,Fshc  1St Floor,1904.00, 16-Feb-2016
754,Revenue,CAHD,Bed Purchasing - Southmead Hospital,Permanent Residential,Fshc  1St Floor,1494.80, 16-Feb-2016
755,Revenue,CAHD,Bed Purchasing - South,Permanent Residential,Fshc  1St Floor,949.60, 16-Feb-2016
756,Revenue,CAHD,Bed Purchasing - North,Permanent Residential,Fshc  1St Floor,1179.64, 16-Feb-2016
757,Revenue,CAHD,Bed Purchasing - North,Permanent Nursing,Fshc  1St Floor,1144.52, 16-Feb-2016
758,Revenue,CAHD,Bed Purchasing - South,Permanent Residential,Fshc  1St Floor,1045.60, 16-Feb-2016
759,Revenue,CAHD,Bed Purchasing - South,Permanent Nursing,Fshc  1St Floor,1374.80, 16-Feb-2016
760,Revenue,CAHD,Bed Purchasing - Southmead Hospital,Permanent Nursing,Fshc  1St Floor,1398.80, 16-Feb-2016
761,Revenue,CAHD,Bed Purchasing - South,Permanent Nursing,Fshc  1St Floor,9849.25, 16-Feb-2016
762,Revenue,CAHD,Bed Purchasing - South,Permanent Nursing,Fshc  1St Floor,1498.80, 16-Feb-2016
763,Revenue,CAHD,South Glos Users in South Glos Homes,Permanent Nursing,Fshc  1St Floor,1552.00, 16-Feb-2016
764,Revenue,CAHD,Bed Purchasing - Southmead Hospital,Permanent Nursing,Fshc  1St Floor,1378.24, 16-Feb-2016
765,Revenue,CAHD,Bed Purchasing - Southmead Hospital,Permanent Nursing,Fshc  1St Floor,1210.67, 16-Feb-2016
766,Revenue,CAHD,Bed Purchasing - Southmead Hospital,Permanent Nursing,Fshc  1St Floor,1252.64, 16-Feb-2016
767,Revenue,CAHD,Bed Purchasing - South,Permanent Nursing,Fshc  1St Floor,1240.84, 16-Feb-2016
768,Revenue,CAHD,Bed Purchasing - South,Permanent Residential,Fshc  1St Floor,5355.51, 16-Feb-2016
769,Revenue,CAHD,Bed Purchasing - South,Permanent Residential,Fshc  1St Floor,1270.80, 16-Feb-2016
770,Revenue,CAHD,Bed Purchasing - Southmead Hospital,Permanent Nursing,Fshc  1St Floor,1304.40, 16-Feb-2016
771,Revenue,CAHD,Bed Purchasing - South,Permanent Residential,Fshc  1St Floor,1270.80, 16-Feb-2016
772,Revenue,CAHD,Bed Purchasing - Southmead Hospital,Permanent Nursing,Fshc  1St Floor,1398.80, 16-Feb-2016
773,Revenue,CAHD,Bed Purchasing - Southmead Hospital,Respite Emergency - Nursing,Fshc  1St Floor,1904.00, 16-Feb-2016
774,Revenue,CAHD,Bed Purchasing - Southmead Hospital,Permanent Nursing,Fshc  1St Floor,1398.80, 16-Feb-2016
775,Revenue,CAHD,Bed Purchasing - Southmead Hospital,Permanent Nursing,Fshc  1St Floor,1324.72, 16-Feb-2016
776,Revenue,CAHD,Bed Purchasing - South,Permanent Nursing,Fshc  1St Floor,1240.16, 16-Feb-2016
777,Revenue,CAHD,Bed Purchasing - Southmead Hospital,Permanent Residential,Fshc  1St Floor,1484.16, 16-Feb-2016
778,Revenue,CAHD,Bed Purchasing - Southmead Hospital,Permanent Nursing,Fshc  1St Floor,1398.80, 16-Feb-2016
779,Revenue,CAHD,Bed purchasing - Elderly S117 - South,Permanent Nursing,Fshc  1St Floor,1904.00, 16-Feb-2016
780,Revenue,CAHD,Bed Purchasing - Southmead Hospital,Permanent Residential,Fshc  1St Floor,1131.52, 16-Feb-2016
781,Revenue,CAHD,Bed Purchasing - South,Permanent Nursing,Fshc  1St Floor,1402.52, 16-Feb-2016
782,Revenue,CAHD,Bed Purchasing - South,Permanent Residential,Fshc  1St Floor,1386.96, 16-Feb-2016
783,Revenue,CAHD,Bed Purchasing - South,Permanent Nursing,Fshc  1St Floor,9192.11, 16-Feb-2016
784,Revenue,CAHD,Bed Purchasing - South,Permanent Nursing,Fshc  1St Floor,1398.80, 16-Feb-2016
785,Revenue,CAHD,Bed Purchasing - South,Permanent Nursing,Fshc  1St Floor,1398.80, 16-Feb-2016
786,Revenue,CAHD,Bed Purchasing - North,Permanent Residential,Fshc  1St Floor,1233.32, 16-Feb-2016
787,Revenue,CAHD,Bed Purchasing - South,Permanent Nursing,Fshc  1St Floor,1267.20, 16-Feb-2016
788,Revenue,CAHD,Bed Purchasing - South,Permanent Nursing,Fshc  1St Floor,1352.12, 16-Feb-2016
789,Revenue,CAHD,Bed Purchasing - Southmead Hospital,Permanent Nursing,Fshc  1St Floor,2294.80, 16-Feb-2016
790,Revenue,CAHD,Bed Purchasing - Southmead Hospital,Permanent Nursing,Fshc  1St Floor,573.70, 16-Feb-2016
791,Revenue,CAHD,Bed Purchasing - South,Permanent Nursing,Fshc  1St Floor,1681.08, 16-Feb-2016
792,Revenue,CAHD,Bed purchasing - Elderly S117 - South,Permanent Nursing,Fshc  1St Floor,2720.00, 16-Feb-2016
793,Revenue,CAHD,Bed purchasing - Elderly S117 - South,Permanent Nursing,Fshc  1St Floor,1904.00, 16-Feb-2016
794,Revenue,CAHD,Bed Purchasing - South,Permanent Nursing,Fshc  1St Floor,1132.64, 16-Feb-2016
795,Revenue,CAHD,Bed Purchasing - Southmead Hospital,Permanent Nursing,Fshc  1St Floor,1240.64, 16-Feb-2016
796,Revenue,CAHD,Bed Purchasing - Southmead Hospital,Permanent Nursing,Fshc  1St Floor,956.72, 16-Feb-2016
797,Revenue,CAHD,Bed Purchasing - Southmead Hospital,Permanent Nursing,Fshc  1St Floor,1306.72, 16-Feb-2016
798,Revenue,CAHD,Bed Purchasing - Southmead Hospital,Permanent Nursing,Fshc  1St Floor,1398.80, 16-Feb-2016
799,Revenue,CAHD,Bed Purchasing - Southmead Hospital,Permanent Nursing,Fshc  1St Floor,894.72, 16-Feb-2016
800,Revenue,CAHD,Bed Purchasing - South,Permanent Nursing,Fshc  1St Floor,1255.12, 16-Feb-2016
801,Revenue,CAHD,Bed Purchasing - Southmead Hospital,Permanent Residential,Fshc  1St Floor,556.52, 16-Feb-2016
802,Revenue,CAHD,Bed Purchasing - North,Permanent Nursing,Fshc  1St Floor,1356.20, 16-Feb-2016
803,Revenue,CAHD,Bed Purchasing - North,Permanent Nursing,Fshc  1St Floor,1364.16, 16-Feb-2016
804,Revenue,CAHD,Bed Purchasing - North,Permanent Nursing,Fshc  1St Floor,1430.00, 16-Feb-2016
805,Revenue,CAHD,Bed Purchasing - Southmead Hospital,Permanent Nursing,Fshc  1St Floor,1430.00, 16-Feb-2016
806,Revenue,CAHD,Bed Purchasing - North,Permanent Nursing,Fshc  1St Floor,845.84, 16-Feb-2016
807,Revenue,CAHD,Bed Purchasing - North,Permanent Nursing,Fshc  1St Floor,1506.80, 16-Feb-2016
808,Revenue,CAHD,Bed Purchasing - Southmead Hospital,Permanent Nursing,Fshc  1St Floor,3469.50, 16-Feb-2016
809,Revenue,CAHD,Bed Purchasing - Southmead Hospital,Permanent Nursing,Fshc  1St Floor,1475.00, 16-Feb-2016
810,Revenue,CAHD,Bed Purchasing - Southmead Hospital,Permanent Nursing,Fshc  1St Floor,1355.76, 16-Feb-2016
811,Revenue,CAHD,Bed Purchasing - Southmead Hospital,Permanent Nursing,Fshc  1St Floor,1506.80, 16-Feb-2016
812,Revenue,CAHD,Bed Purchasing - North,Permanent Nursing,Fshc  1St Floor,1374.32, 16-Feb-2016
813,Revenue,CAHD,Bed Purchasing - North,Permanent Nursing,Fshc  1St Floor,1302.52, 16-Feb-2016
814,Revenue,CAHD,Bed Purchasing - Southmead Hospital,Permanent Nursing,Fshc  1St Floor,1574.80, 16-Feb-2016
815,Revenue,CAHD,Bed Purchasing - Southmead Hospital,Permanent Residential,Fshc  1St Floor,1250.68, 16-Feb-2016
816,Revenue,CAHD,Bed Purchasing - Southmead Hospital,Permanent Nursing,Fshc  1St Floor,1382.28, 16-Feb-2016
817,Revenue,CAHD,Bed Purchasing - Southmead Hospital,Permanent Nursing,Fshc  1St Floor,1242.28, 16-Feb-2016
818,Revenue,CAHD,Bed Purchasing - North,Permanent Residential,Fshc  1St Floor,1128.92, 16-Feb-2016
819,Revenue,CAHD,Bed Purchasing - Southmead Hospital,Permanent Nursing,Fshc  1St Floor,950.80, 16-Feb-2016
820,Revenue,CAHD,Bed Purchasing - Elderly S117- North,Permanent Nursing,Fshc  1St Floor,2012.00, 16-Feb-2016
821,Revenue,CAHD,Bed Purchasing - North,Respite Emergency - Residential,Fshc  1St Floor,2700.00, 16-Feb-2016
822,Revenue,CAHD,Bed Purchasing - North,Respite Emergency - Nursing,Fshc  1St Floor,2700.00, 16-Feb-2016
823,Revenue,CAHD,Bed Purchasing - Southmead Hospital,Permanent Nursing,Fshc  1St Floor,2600.00, 16-Feb-2016
824,Revenue,CAHD,Bed Purchasing - Southmead Hospital,Permanent Nursing,Fshc  1St Floor,5285.95, 16-Feb-2016
825,Revenue,CAHD,Bed Purchasing - North,Permanent Nursing,Fshc  1St Floor,1506.80, 16-Feb-2016
826,Revenue,CAHD,Bed Purchasing - Southmead Hospital,Permanent Nursing,Fshc  1St Floor,1101.28, 16-Feb-2016
827,Revenue,CAHD,Bed Purchasing - North,Permanent Residential,Fshc  1St Floor,1050.88, 16-Feb-2016
828,Revenue,CAHD,Bed Purchasing - South,Permanent Residential,Fshc  1St Floor,1368.08, 16-Feb-2016
829,Revenue,CAHD,Bed Purchasing - Southmead Hospital,Permanent Residential,Fshc  1St Floor,808.44, 16-Feb-2016
830,Revenue,CAHD,CAH Assistant Directors,Agency Staff (Admin/Support Staff) Pay,Gatenby Sanderson Limited,7670.00, 05-Feb-2016
831,Revenue,CAHD,Section 117 Placements MH Younger,Permanent Residential,Gladstone House,2792.00, 16-Feb-2016
832,Revenue,CAHD,Bed Purchasing - South,Permanent Residential,Gladstone House,36381.88, 16-Feb-2016
833,Revenue,CAHD,Bed Purchasing - South,Permanent Residential,Glasallt Fawr,4666.48, 16-Feb-2016
834,Revenue,CAHD,Bed Purchasing - North,Permanent Nursing,Glebe House Nursing Home,2140.68, 16-Feb-2016
835,Revenue,CAHD,Bed Purchasing - South,Permanent Residential,Glebe House Nursing Home,2073.76, 16-Feb-2016
836,Revenue,CAHD,Bed Purchasing - North,Permanent Nursing,Glebe House Nursing Home,2257.08, 16-Feb-2016
837,Revenue,CAHD,Bed Purchasing - North,Permanent Nursing,Glebe House Nursing Home,2186.96, 16-Feb-2016
838,Revenue,CAHD,Bed Purchasing - South,Permanent Residential,Goldcare House,2232.00, 16-Feb-2016
839,Revenue,CAHD,Bed Purchasing - South,Permanent Residential,Gordena Care Home,2137.52, 16-Feb-2016
840,Revenue,CAHD,Bed Purchasing - South,Permanent Residential,Gordena Care Home,3189.84, 16-Feb-2016
841,Revenue,CAHD,Bed Purchasing - South,Permanent Residential,Gordena Care Home,2996.16, 16-Feb-2016
842,Revenue,CAHD,Bed Purchasing - South,Permanent Residential,Gordena Care Home,1950.08, 16-Feb-2016
843,Revenue,CAHD,Bed Purchasing - South,Permanent Residential,Gordena Care Home,4956.00, 16-Feb-2016
844,Revenue,CAHD,Bed Purchasing - South,Permanent Residential,Gordena Care Home,3111.40, 16-Feb-2016
845,Revenue,CAHD,Bed Purchasing - South,Permanent Residential,Gordena Care Limited,4264.60, 16-Feb-2016
846,Revenue,CAHD,Bed purchasing - S28A Under 65 - South,Permanent Residential,Gordena Care Limited,4161.28, 16-Feb-2016
847,Revenue,CAHD,Bed Purchasing - North,Permanent Residential,Gordena Care Limited,4260.48, 16-Feb-2016
848,Revenue,CAHD,Bed Purchasing - South,Permanent Nursing,Gracefields Nursing Home,1712.72, 16-Feb-2016
849,Revenue,CAHD,Bed Purchasing - Southmead Hospital,Permanent Nursing,Gracefields Nursing Home,1733.76, 16-Feb-2016
850,Revenue,CAHD,Bed Purchasing - Southmead Hospital,Permanent Nursing,Gracefields Nursing Home,1655.96, 16-Feb-2016
851,Revenue,CAHD,Bed Purchasing - Southmead Hospital,Permanent Nursing,Gracefields Nursing Home,883.28, 16-Feb-2016
852,Revenue,CAHD,Bed purchasing - Elderly S117 - South,Permanent Nursing,Gracefields Nursing Home,2381.88, 16-Feb-2016
853,Revenue,CAHD,South Glos Users in South Glos Homes,Permanent Nursing,Gracefields Nursing Home,1344.00, 16-Feb-2016
854,Revenue,CAHD,Bed Purchasing - South,Permanent Nursing,Gracefields Nursing Home,1132.40, 16-Feb-2016
855,Revenue,CAHD,Bed Purchasing - Southmead Hospital,Permanent Nursing,Gracefields Nursing Home,1586.56, 16-Feb-2016
856,Revenue,CAHD,Bed Purchasing - South,Permanent Nursing,Gracefields Nursing Home,1601.96, 16-Feb-2016
857,Revenue,CAHD,Bed Purchasing - Southmead Hospital,Permanent Nursing,Gracefields Nursing Home,1539.00, 16-Feb-2016
858,Revenue,CAHD,Bed Purchasing - Southmead Hospital,Permanent Residential,Granada House Residential Home,1043.36, 16-Feb-2016
859,Revenue,CAHD,Bed Purchasing - North,Permanent Residential,Greensleeves,1344.52, 16-Feb-2016
860,Revenue,CAHD,Bed Purchasing - South,Permanent Residential,Grove Care,1883.40, 16-Feb-2016
861,Revenue,CAHD,Bed Purchasing - South,Permanent Residential,Gwendoline House,846.44, 16-Feb-2016
862,Revenue,CAHD,Bed Purchasing - Southmead Hospital,Permanent Residential,Gwendoline House,1282.04, 16-Feb-2016
863,Revenue,CAHD,Swift Dump Code,Permanent Residential,Gwendoline House,15092.80, 16-Feb-2016
864,Revenue,CAHD,Bed Purchasing - South,Permanent Residential,Gwendoline House,1565.72, 16-Feb-2016
865,Revenue,CAHD,Bed Purchasing - South,Permanent Residential,Gwendoline House,955.96, 16-Feb-2016
866,Revenue,CAHD,Bed Purchasing - South,Permanent Residential,Gwendoline House,1159.80, 16-Feb-2016
867,Revenue,CAHD,Bed Purchasing - South,Permanent Residential,Gwendoline House,1834.80, 16-Feb-2016
868,Revenue,CAHD,Bed Purchasing - South,Permanent Residential,Gwendoline House,1179.52, 16-Feb-2016
869,Revenue,CAHD,Bed Purchasing - Southmead Hospital,Permanent Residential,Gwendoline House,1342.48, 16-Feb-2016
870,Revenue,CAHD,Supporting People Programme,Grants to Voluntary Bodies,Habinteg Housing Association,1373.26, 01-Feb-2016
871,Revenue,CAHD,Bed Purchasing - North,Permanent Nursing,Hambledon House,2988.36, 16-Feb-2016
872,Revenue,CAHD,Social Lettings Agency,Fees - General,Individual,16.46, 26-Feb-2016
873,Revenue,CAHD,Social Lettings Agency,Other Supplies & Services,Individual,559.60, 26-Feb-2016
874,Revenue,CAHD,Supporting People Programme,Grants to Voluntary Bodies,Hanover Housing Association,982.83, 01-Feb-2016
875,Revenue,CAHD,Home Care - Elderly - North,Other Supplies & Services,Hanover Housing Association,881.02, 23-Feb-2016
876,Revenue,CAHD,Bed Purchasing - South,Permanent Residential,Harefield Hall,1219.24, 16-Feb-2016
877,Revenue,CAHD,Bed Purchasing - South,Permanent Residential,Harefield Hall,1150.52, 16-Feb-2016
878,Revenue,CAHD,Bed Purchasing - South,Permanent Residential,Harefield Hall,955.96, 16-Feb-2016
879,Revenue,CAHD,Bed Purchasing - South,Permanent Residential,Harefield Hall,1039.04, 16-Feb-2016
880,Revenue,CAHD,Bed Purchasing - South,Permanent Residential,Harefield Hall,1313.12, 16-Feb-2016
881,Revenue,CAHD,Bed Purchasing - South,Permanent Residential,Harefield Hall,1254.36, 16-Feb-2016
882,Revenue,CAHD,TSG Practice Placements,Training Expenses,Harriet Tamlyn,750.00, 29-Feb-2016
883,Revenue,CAHD,Woodleaze,Equipment Maintenance,Harvey Servicing & Engineering Limited,472.50, 03-Feb-2016
884,Revenue,CAHD,Bed Purchasing - Southmead Hospital,Permanent Nursing,Hc-One Ltd,1648.40, 16-Feb-2016
885,Revenue,CAHD,Bed Purchasing - Southmead Hospital,Permanent Nursing,Hc-One Ltd,1455.24, 16-Feb-2016
886,Revenue,CAHD,Bed Purchasing - North,Permanent Nursing,Hc-One Ltd,1511.16, 16-Feb-2016
887,Revenue,CAHD,Bed Purchasing - North,Permanent Residential,Hc-One Ltd,2083.68, 16-Feb-2016
888,Revenue,CAHD,Bed Purchasing - North,Permanent Residential,Hc-One Ltd,2083.68, 16-Feb-2016
889,Revenue,CAHD,Bed Purchasing - North,Permanent Nursing,Hc-One Ltd,1032.45, 16-Feb-2016
890,Revenue,CAHD,Bed Purchasing - North,Permanent Residential,Hc-One Ltd,2083.68, 16-Feb-2016
891,Revenue,CAHD,Bed Purchasing - North,Permanent Nursing,Hc-One Ltd,822.84, 16-Feb-2016
892,Revenue,CAHD,Bed Purchasing - Southmead Hospital,Permanent Nursing,Hc-One Ltd,1540.80, 16-Feb-2016
893,Revenue,CAHD,Bed Purchasing - South,Permanent Nursing,Hc-One Ltd,2084.72, 16-Feb-2016
894,Revenue,CAHD,Bed Purchasing - South,Permanent Nursing,Hc-One Ltd,1101.36, 16-Feb-2016
895,Revenue,CAHD,Bed Purchasing - Southmead Hospital,Permanent Nursing,Hc-One Ltd,1480.04, 16-Feb-2016
896,Revenue,CAHD,Training - Adult Services,Training Expenses,HC-UK Conferences,675.25, 19-Feb-2016
897,Revenue,CAHD,Bed Purchasing - Southmead Hospital,Permanent Residential,Head Office,1694.80, 16-Feb-2016
898,Revenue,CAHD,Home Care - Elderly - South,Day Care / Social Activities,Headway Bristol,399.76, 04-Feb-2016
899,Revenue,CAHD,Home Care - Elderly - North,Day Care / Social Activities,Headway Bristol,326.12, 04-Feb-2016
900,Revenue,CAHD,Home Care - Elderly - South,Day Care / Social Activities,Headway Bristol,357.68, 09-Feb-2016
901,Revenue,CAHD,Home Care - Elderly - North,Day Care / Social Activities,Headway Bristol,631.20, 09-Feb-2016
902,Revenue,CAHD,Home Care - Elderly - South,Day Care / Social Activities,Headway Bristol,210.40, 18-Feb-2016
903,Revenue,CAHD,Home Care - Elderly - North,Day Care / Social Activities,Headway Bristol,757.44, 18-Feb-2016
904,Revenue,CAHD,Home Care - Elderly - North,Other Small Contracts,Headway Bristol,84.16, 18-Feb-2016
905,Revenue,CAHD,Home Care - Elderly - South,Day Care / Social Activities,Headway Bristol,547.04, 24-Feb-2016
906,Revenue,CAHD,Home Care - Elderly - North,Day Care / Social Activities,Headway Bristol,831.08, 24-Feb-2016
907,Revenue,CAHD,Home Care - Elderly - North,Other Small Contracts,Headway Bristol,84.16, 24-Feb-2016
908,Revenue,CAHD,Home Care - Elderly - South,Other Small Contracts,Helping Hands Homecare,1306.80, 05-Feb-2016
909,Revenue,CAHD,Home Care - Elderly - North,Day Care / Social Activities,Helping Hands Homecare,95.04, 05-Feb-2016
910,Revenue,CAHD,Home Care - Elderly - North,Other Small Contracts,Helping Hands Homecare,1275.12, 05-Feb-2016
911,Revenue,CAHD,Under 65s -MH  Home Care Purch,Other Small Contracts,Helping Hands Homecare,31.68, 05-Feb-2016
912,Revenue,CAHD,Home care - Elderly MH - North,Other Small Contracts,Helping Hands Homecare,59.40, 05-Feb-2016
913,Revenue,CAHD,Home Care - Elderly - South,Other Small Contracts,Helping Hands Homecare,1338.48, 05-Feb-2016
914,Revenue,CAHD,Home Care - Elderly - North,Other Small Contracts,Helping Hands Homecare,1477.08, 05-Feb-2016
915,Revenue,CAHD,Day Care - North,Day Care / Social Activities,Helping Hands Homecare,23.76, 05-Feb-2016
916,Revenue,CAHD,Under 65s -MH  Home Care Purch,Other Small Contracts,Helping Hands Homecare,31.68, 05-Feb-2016
917,Revenue,CAHD,Home care - Elderly MH - North,Other Small Contracts,Helping Hands Homecare,63.36, 05-Feb-2016
918,Revenue,CAHD,Home Care - Elderly - South,Other Small Contracts,Helping Hands Homecare,1429.56, 12-Feb-2016
919,Revenue,CAHD,Home Care - Elderly - North,Day Care / Social Activities,Helping Hands Homecare,201.96, 12-Feb-2016
920,Revenue,CAHD,Home Care - Elderly - North,Other Small Contracts,Helping Hands Homecare,1785.96, 12-Feb-2016
921,Revenue,CAHD,Home Care - Elderly - North,Supported Living,Helping Hands Homecare,31.68, 12-Feb-2016
922,Revenue,CAHD,Day Care - North,Day Care / Social Activities,Helping Hands Homecare,51.48, 12-Feb-2016
923,Revenue,CAHD,Under 65s -MH  Home Care Purch,Other Small Contracts,Helping Hands Homecare,31.68, 12-Feb-2016
924,Revenue,CAHD,Home care - Elderly MH - North,Other Small Contracts,Helping Hands Homecare,31.68, 12-Feb-2016
925,Revenue,CAHD,Home Care - Elderly - South,Other Small Contracts,Helping Hands Homecare,1433.52, 19-Feb-2016
926,Revenue,CAHD,Home Care - Elderly - North,Day Care / Social Activities,Helping Hands Homecare,201.96, 19-Feb-2016
927,Revenue,CAHD,Home Care - Elderly - North,Other Small Contracts,Helping Hands Homecare,1916.64, 19-Feb-2016
928,Revenue,CAHD,Day Care - North,Day Care / Social Activities,Helping Hands Homecare,87.12, 19-Feb-2016
929,Revenue,CAHD,Under 65s -MH  Home Care Purch,Other Small Contracts,Helping Hands Homecare,31.68, 19-Feb-2016
930,Revenue,CAHD,Home care - Elderly MH - North,Other Small Contracts,Helping Hands Homecare,59.40, 19-Feb-2016
931,Revenue,CAHD,Home Care - Elderly - South,Other Small Contracts,Helping Hands Homecare,1580.04, 26-Feb-2016
932,Revenue,CAHD,Home Care - Elderly - North,Day Care / Social Activities,Helping Hands Homecare,162.36, 26-Feb-2016
933,Revenue,CAHD,Home Care - Elderly - North,Other Small Contracts,Helping Hands Homecare,1698.84, 26-Feb-2016
934,Revenue,CAHD,Day Care - North,Day Care / Social Activities,Helping Hands Homecare,31.68, 26-Feb-2016
935,Revenue,CAHD,Under 65s -MH  Home Care Purch,Other Small Contracts,Helping Hands Homecare,31.68, 26-Feb-2016
936,Revenue,CAHD,Home care - Elderly MH - North,Other Small Contracts,Helping Hands Homecare,63.36, 26-Feb-2016
937,Revenue,CAHD,S117 Placements PCT,Permanent Residential,Hesley Hall,18406.20, 16-Feb-2016
938,Revenue,CAHD,Bed Purchasing - Southmead Hospital,Permanent Residential,Highfield House,2092.56, 16-Feb-2016
939,Revenue,CAHD,Bed Purchasing - Southmead Hospital,Permanent Residential,Highgate Studios,1179.08, 16-Feb-2016
940,Revenue,CAHD,Bed Purchasing - North,Permanent Residential,Holmleigh Care Homes Ltd,4115.32, 16-Feb-2016
941,Revenue,CAHD,Bed Purchasing - South,Permanent Residential,Holmleigh Care Homes Ltd,4242.44, 16-Feb-2016
942,Revenue,CAHD,Jointly Funded H&SC Packages,Permanent Residential,Holmleigh Care Homes Ltd,837.52, 16-Feb-2016
943,Revenue,CAHD,Bed Purchasing - North,Permanent Residential,Home Farm Trust Ltd  5-6 Brook Office Pa,2700.52, 16-Feb-2016
944,Revenue,CAHD,Bed Purchasing - South,Permanent Residential,Home Farm Trust Ltd  5-6 Brook Office Pa,5174.76, 16-Feb-2016
945,Revenue,CAHD,Bed Purchasing - North,Permanent Residential,Home Farm Trust Ltd  5-6 Brook Office Pa,3386.32, 16-Feb-2016
946,Revenue,CAHD,Bed Purchasing - South,Permanent Residential,Home Farm Trust Ltd  5-6 Brook Office Pa,5607.24, 16-Feb-2016
947,Revenue,CAHD,18-25 Year Olds,Permanent Residential,Home From Home Care Ltd,9086.16, 16-Feb-2016
948,Revenue,CAHD,Home Care - Elderly - South,Other Small Contracts,Homecare 4U,902.25, 15-Feb-2016
949,Revenue,CAHD,Home Care - Elderly - North,Other Small Contracts,Homecare 4U,842.10, 15-Feb-2016
950,Revenue,CAHD,Home Care - Elderly - South,Other Small Contracts,Homecare 4U,665.66, 15-Feb-2016
951,Revenue,CAHD,Home Care - Elderly - North,Other Small Contracts,Homecare 4U,793.98, 15-Feb-2016
952,Revenue,CAHD,Home Care - Elderly - South,Other Small Contracts,Homecare 4U,669.67, 16-Feb-2016
953,Revenue,CAHD,Home Care - Elderly - North,Other Small Contracts,Homecare 4U,806.01, 16-Feb-2016
954,Revenue,CAHD,Home Care - Elderly - South,Other Small Contracts,Homecare 4U,665.66, 26-Feb-2016
955,Revenue,CAHD,Home Care - Elderly - North,Other Small Contracts,Homecare 4U,785.96, 26-Feb-2016
956,Revenue,CAHD,Bed Purchasing - North,Permanent Residential,Homes Caring For Autism Ltd  Churchill H,10015.24, 16-Feb-2016
957,Revenue,CAHD,18-25 Year Olds,Permanent Residential,Homes Caring For Autism Ltd  Churchill H,13043.96, 16-Feb-2016
958,Revenue,CAHD,Bed Purchasing - North,Respite Planned - Nursing,Horfield Care Limited,1182.49, 10-Feb-2016
959,Revenue,CAHD,Bed Purchasing - Southmead Hospital,Permanent Nursing,Horfield Care Limited,1476.22, 10-Feb-2016
960,Revenue,CAHD,Bed Purchasing - Southmead Hospital,Permanent Nursing,Horfield Care Limited,1847.56, 10-Feb-2016
961,Revenue,CAHD,Bed Purchasing - Frenchay Hospital,Permanent Nursing,Horfield Care Limited,1366.92, 10-Feb-2016
962,Revenue,CAHD,Bed Purchasing - South,Permanent Nursing,Horfield Care Limited,1364.40, 10-Feb-2016
963,Revenue,CAHD,Bed Purchasing - Southmead Hospital,Respite Planned - Nursing,Horfield Care Limited,2291.08, 10-Feb-2016
964,Revenue,CAHD,Home Care - Elderly - North,Other Supplies & Services,Housing & Care 21,595.31, 29-Feb-2016
965,Revenue,CAHD,Supporting People Programme,Grants to Voluntary Bodies,Housing 21,623.07, 01-Feb-2016
966,Revenue,CAHD,Supporting People Programme,Grants to Voluntary Bodies,Housing 21,945.10, 01-Feb-2016
967,Revenue,CAHD,Home Care - Elderly - North,Private & Voluntary Home Care,Housing 21,38703.28, 10-Feb-2016
968,Revenue,CAHD,Home Care - Elderly - South,Private & Voluntary Home Care,Housing 21,24541.48, 01-Feb-2016
969,Revenue,CAHD,Homelessness Grant,Other Supplies & Services,Housing Partners Limited,4000.00, 05-Feb-2016
970,Revenue,CAHD,Social Lettings Agency,Fees - General,Individual,12.22, 11-Feb-2016
971,Revenue,CAHD,Social Lettings Agency,Other Supplies & Services,Individual,628.22, 11-Feb-2016
972,Revenue,CAHD,Social Lettings Agency,Fees - General,Individual,10.53, 01-Feb-2016
973,Revenue,CAHD,Social Lettings Agency,Other Supplies & Services,Individual,595.11, 01-Feb-2016
974,Revenue,CAHD,Training - Adult Services,Training Expenses,Jo Williams,588.00, 08-Feb-2016
975,Revenue,CAHD,Training - Adult Services,Training Expenses,Jo Williams,1312.00, 29-Feb-2016
976,Revenue,CAHD,Training - Adult Services,Training Expenses,Jonathan Coles,600.00, 25-Feb-2016
977,Revenue,CAHD,Bed Purchasing - South,Permanent Residential,Jonen House,3651.08, 16-Feb-2016
978,Revenue,CAHD,Home Care - Elderly - South,Supported Living,Julia Simone- Supp. Ind.,1178.36, 16-Feb-2016
979,Revenue,CAHD,Younger MH non-res purchasing,Supported Living,Julia Simone- Supp. Ind.,1178.36, 16-Feb-2016
980,Revenue,CAHD,Younger MH non-res purchasing,Supported Living,Julia Simone- Supp. Ind.,1178.36, 16-Feb-2016
981,Revenue,CAHD,Home Care - Elderly - North,Supported Living,Julia Simone- Supp. Ind.,1212.32, 16-Feb-2016
982,Revenue,CAHD,Younger MH non-res purchasing,Supported Living,Julia Simone- Supp. Ind.,1178.20, 16-Feb-2016
983,Revenue,CAHD,Bed Purchasing - South,Permanent Residential,Julia Simone- Supp. Ind.,4004.36, 16-Feb-2016
984,Revenue,CAHD,Bed purchasing -S28A  Under 65 - North,Permanent Residential,Julia Simone- Supp. Ind.,3533.32, 16-Feb-2016
985,Revenue,CAHD,Tenancy Start Up Scheme,Other Supplies & Services,Individual,800.00, 29-Feb-2016
986,Revenue,CAHD,Tenancy Start Up Scheme,Other Supplies & Services,Individual,800.00, 29-Feb-2016
987,Revenue,CAHD,Home Care - Elderly - South,Other Small Contracts,Kensington Community Care,1173.84, 01-Feb-2016
988,Revenue,CAHD,Home Care - Elderly - North,Other Small Contracts,Kensington Community Care,3907.44, 01-Feb-2016
989,Revenue,CAHD,Home Care - Elderly - South,Other Small Contracts,Kensington Community Care,1475.34, 10-Feb-2016
990,Revenue,CAHD,Home Care - Elderly - North,Other Small Contracts,Kensington Community Care,4144.62, 10-Feb-2016
991,Revenue,CAHD,Home Care - Elderly - South,Other Small Contracts,Kensington Community Care,812.04, 16-Feb-2016
992,Revenue,CAHD,Home Care - Elderly - North,Other Small Contracts,Kensington Community Care,4333.56, 16-Feb-2016
993,Revenue,CAHD,Home Care - Elderly - South,Other Small Contracts,Kensington Community Care,804.00, 16-Feb-2016
994,Revenue,CAHD,Home Care - Elderly - North,Other Small Contracts,Kensington Community Care,4635.06, 16-Feb-2016
995,Revenue,CAHD,Home Care - Elderly - South,Other Small Contracts,Kensington Community Care,816.06, 29-Feb-2016
996,Revenue,CAHD,Home Care - Elderly - North,Other Small Contracts,Kensington Community Care,4747.62, 29-Feb-2016
997,Revenue,CAHD,Bed Purchasing - Southmead Hospital,Permanent Residential,Kenver House Residential Home,1664.04, 16-Feb-2016
998,Revenue,CAHD,Bed Purchasing - Southmead Hospital,Permanent Residential,Kenver House Residential Home,1685.08, 16-Feb-2016
999,Revenue,CAHD,Bed Purchasing - South,Permanent Residential,Kenver House Residential Home,1153.00, 16-Feb-2016
1000,Revenue,CAHD,MH Purchasing - Younger,Permanent Residential,Kenver House Residential Home,1721.08, 16-Feb-2016
1001,Revenue,CAHD,Bed Purchasing - South,Permanent Residential,Kenver House Residential Home,1388.84, 16-Feb-2016
1002,Revenue,CAHD,Bed Purchasing - South,Permanent Residential,Kenver House Residential Home,1685.08, 16-Feb-2016
1003,Revenue,CAHD,Bed Purchasing - Southmead Hospital,Respite Planned - Residential,Kenver House Residential Home,2190.28, 16-Feb-2016
1004,Revenue,CAHD,Bed Purchasing - South,Permanent Residential,Kenver House Residential Home,1294.36, 16-Feb-2016
1005,Revenue,CAHD,Bed Purchasing - North,Permanent Residential,Kenver House Residential Home,1542.36, 16-Feb-2016
1006,Revenue,CAHD,Bed Purchasing - Southmead Hospital,Permanent Residential,Kenver House Residential Home,1748.00, 16-Feb-2016
1007,Revenue,CAHD,Bed purchasing - Elderly S117 - South,Permanent Residential,Kenver House Residential Home,4994.54, 16-Feb-2016
1008,Revenue,CAHD,Bed Purchasing - South,Permanent Residential,Kenver House Residential Home,1277.20, 16-Feb-2016
1009,Revenue,CAHD,Bed Purchasing - Southmead Hospital,Permanent Residential,Kenver House Residential Home,1462.80, 16-Feb-2016
1010,Revenue,CAHD,Bed Purchasing - Southmead Hospital,Permanent Residential,Kenver House Residential Home,1685.00, 16-Feb-2016
1011,Revenue,CAHD,Bed Purchasing - South,Permanent Residential,Kenver House Residential Home,1685.08, 16-Feb-2016
1012,Revenue,CAHD,Supporting People Programme,Grants to Voluntary Bodies,Keyring Living Support Networks,2948.50, 01-Feb-2016
1013,Revenue,CAHD,Bed Purchasing - North,Permanent Nursing,Kingfisher Lodge Care Centre,2531.88, 16-Feb-2016
1014,Revenue,CAHD,Supporting People Programme,Grants to Voluntary Bodies,Kingswood Young Homeless Project,17126.66, 01-Feb-2016
1015,Revenue,CAHD,Bed Purchasing - North,Permanent Residential,Kisimul Group,11512.80, 16-Feb-2016
1016,Revenue,CAHD,Supporting People Programme,Grants to Voluntary Bodies,Knightstone Housing Association Limited,13659.70, 01-Feb-2016
1017,Revenue,CAHD,Supporting People Programme,Grants to Voluntary Bodies,Knightstone Housing Association Limited,7684.61, 01-Feb-2016
1018,Revenue,CAHD,Supporting People Programme,Grants to Voluntary Bodies,Knightstone Housing Association Limited,1809.08, 01-Feb-2016
1019,Revenue,CAHD,Supporting People Programme,Grants to Voluntary Bodies,Knightstone Housing Association Limited,2509.56, 01-Feb-2016
1020,Revenue,CAHD,Supporting People Programme,Grants to Voluntary Bodies,Knightstone Housing Association Limited,2510.15, 01-Feb-2016
1021,Revenue,CAHD,Supporting People Programme,Grants to Voluntary Bodies,Knightstone Housing Association Limited,853.70, 01-Feb-2016
1022,Revenue,CAHD,Supporting People Programme,Grants to Voluntary Bodies,Knightstone Housing Association Limited,8630.13, 01-Feb-2016
1023,Revenue,CAHD,Home Care - Elderly - South,Other Small Contracts,Kumari Care Limited,1904.17, 15-Feb-2016
1024,Revenue,CAHD,Home Care - Elderly - North,Other Small Contracts,Kumari Care Limited,833.86, 15-Feb-2016
1025,Revenue,CAHD,Home Care - Elderly - South,Other Small Contracts,Kumari Care Limited,1642.20, 10-Feb-2016
1026,Revenue,CAHD,Home Care - Elderly - North,Other Small Contracts,Kumari Care Limited,833.86, 10-Feb-2016
1027,Revenue,CAHD,Home Care - Elderly - South,Other Small Contracts,Kumari Care Limited,1822.06, 19-Feb-2016
1028,Revenue,CAHD,Home Care - Elderly - North,Other Small Contracts,Kumari Care Limited,835.23, 19-Feb-2016
1029,Revenue,CAHD,Bed purchasing - Elderly S117 - South,Permanent Nursing,Lavender Lodge Limited,8404.52, 16-Feb-2016
1030,Revenue,CAHD,Bed Purchasing - North,Permanent Nursing,Leonard Cheshire  National Account Centr,5090.88, 16-Feb-2016
1031,Revenue,CAHD,Bed Purchasing - North,Permanent Residential,Leonard Cheshire  National Account Centr,2948.64, 16-Feb-2016
1032,Revenue,CAHD,Bed Purchasing - South,Permanent Residential,Leonard Cheshire  National Account Centr,3376.16, 16-Feb-2016
1033,Revenue,CAHD,Bed Purchasing - North,Permanent Nursing,Leonard Cheshire  National Account Centr,3559.68, 16-Feb-2016
1034,Revenue,CAHD,Bed Purchasing - North,Permanent Nursing,Leonard Cheshire  National Account Centr,2858.32, 16-Feb-2016
1035,Revenue,CAHD,18-25 Year Olds,Permanent Residential,Leonard Cheshire  National Account Centr,3231.92, 16-Feb-2016
1036,Revenue,CAHD,Bed Purchasing - North,Permanent Residential,Leonard Cheshire  National Account Centr,6024.88, 16-Feb-2016
1037,Revenue,CAHD,Bed Purchasing - North,Permanent Residential,Leonard Cheshire  National Account Centr,6023.32, 16-Feb-2016
1038,Revenue,CAHD,Bed Purchasing - South,Permanent Residential,Leonard Cheshire  National Account Centr,4544.12, 16-Feb-2016
1039,Revenue,CAHD,Bed Purchasing - North,Permanent Nursing,Leonard Cheshire  National Account Centr,2913.28, 16-Feb-2016
1040,Revenue,CAHD,Bed Purchasing - North,Permanent Nursing,Leonard Cheshire  National Account Centr,3912.16, 16-Feb-2016
1041,Revenue,CAHD,Bed Purchasing - North,Permanent Residential,Leonard Cheshire  National Account Centr,2965.36, 16-Feb-2016
1042,Revenue,CAHD,Bed Purchasing - North,Permanent Nursing,Leonard Cheshire  National Account Centr,3306.84, 16-Feb-2016
1043,Revenue,CAHD,Bed Purchasing - North,Permanent Nursing,Leonard Cheshire  National Account Centr,5663.60, 16-Feb-2016
1044,Revenue,CAHD,Bed Purchasing - South,Permanent Nursing,Leonard Cheshire  National Account Centr,2940.92, 16-Feb-2016
1045,Revenue,CAHD,Bed Purchasing - Southmead Hospital,Permanent Nursing,Leonard Cheshire  National Account Centr,3075.12, 16-Feb-2016
1046,Revenue,CAHD,South Glos Users in all other LA Homes,Permanent Nursing,Leonard Cheshire  National Account Centr,616.56, 16-Feb-2016
1047,Revenue,CAHD,Bed Purchasing - North,Permanent Nursing,Leonard Cheshire  National Account Centr,3363.96, 16-Feb-2016
1048,Revenue,CAHD,Bed Purchasing - North,Permanent Nursing,Leonard Cheshire  National Account Centr,4167.96, 16-Feb-2016
1049,Revenue,CAHD,Adult Safeguarding Board,Professional Fees,Lewis Nolan Limited,750.00, 18-Feb-2016
1050,Revenue,CAHD,Adult Safeguarding Board,Professional Fees,Lewis Nolan Limited,500.00, 18-Feb-2016
1051,Revenue,CAHD,Adult Safeguarding Board,Professional Fees,Lewis Nolan Limited,750.00, 18-Feb-2016
1052,Revenue,CAHD,Adult Safeguarding Board,Professional Fees,Lewis Nolan Limited,1000.00, 18-Feb-2016
1053,Revenue,CAHD,Adult Safeguarding Board,Professional Fees,Lewis Nolan Limited,750.00, 18-Feb-2016
1054,Revenue,CAHD,Alexandra Way,Prop.Serv. General Repairs,Lionel Saunders & Co (Bristol) Limited,2208.36, 22-Feb-2016
1055,Revenue,CAHD,Section 117 Placements MH Younger,Permanent Residential,Little Croft,8564.29, 16-Feb-2016
1056,Revenue,CAHD,Bed Purchasing - Southmead Hospital,Permanent Residential,Little Croft,1085.24, 16-Feb-2016
1057,Revenue,CAHD,Bed Purchasing - Southmead Hospital,Permanent Residential,Little Croft,1269.32, 16-Feb-2016
1058,Revenue,CAHD,Bed Purchasing - North,Permanent Residential,Little Croft,1230.92, 16-Feb-2016
1059,Revenue,CAHD,Bed Purchasing - Southmead Hospital,Permanent Residential,Little Croft,1300.28, 16-Feb-2016
1060,Revenue,CAHD,Bed Purchasing - Southmead Hospital,Permanent Residential,Little Croft,1278.80, 16-Feb-2016
1061,Revenue,CAHD,Bed Purchasing - North,Permanent Residential,Little Croft,1217.96, 16-Feb-2016
1062,Revenue,CAHD,Bed Purchasing - Southmead Hospital,Permanent Residential,Little Croft,2200.00, 16-Feb-2016
1063,Revenue,CAHD,Bed Purchasing - South,Permanent Residential,Little Croft,908.60, 16-Feb-2016
1064,Revenue,CAHD,Bed Purchasing - Southmead Hospital,Permanent Residential,Little Croft,1763.48, 16-Feb-2016
1065,Revenue,CAHD,Bed Purchasing - Southmead Hospital,Permanent Residential,Little Croft,1776.00, 16-Feb-2016
1066,Revenue,CAHD,Bed Purchasing - Southmead Hospital,Permanent Residential,Little Croft,1478.80, 16-Feb-2016
1067,Revenue,CAHD,Bed Purchasing - South,Respite Emergency - Residential,Little Croft,1878.43, 16-Feb-2016
1068,Revenue,CAHD,Bed Purchasing - Southmead Hospital,Permanent Residential,Little Croft,1442.80, 16-Feb-2016
1069,Revenue,CAHD,Bed Purchasing - Southmead Hospital,Respite Emergency - Residential,Little Croft,2750.00, 16-Feb-2016
1070,Revenue,CAHD,Bed Purchasing - Southmead Hospital,Permanent Residential,Little Croft,1233.68, 16-Feb-2016
1071,Revenue,CAHD,Bed Purchasing - North,Permanent Residential,Little Croft,1075.60, 16-Feb-2016
1072,Revenue,CAHD,Bed Purchasing - South,Permanent Residential,Little Croft,1422.92, 16-Feb-2016
1073,Revenue,CAHD,Bed Purchasing - Southmead Hospital,Permanent Residential,Little Croft,1270.80, 16-Feb-2016
1074,Revenue,CAHD,Bed Purchasing - North,Permanent Residential,Little Croft,1408.44, 16-Feb-2016
1075,Revenue,CAHD,Bed Purchasing - Southmead Hospital,Permanent Residential,Little Croft,1270.80, 16-Feb-2016
1076,Revenue,CAHD,Bed Purchasing - Southmead Hospital,Permanent Residential,Little Croft,1494.80, 16-Feb-2016
1077,Revenue,CAHD,Bed Purchasing - North,Permanent Residential,Littlecroft Residential Homes  Longcroft,6478.92, 16-Feb-2016
1078,Revenue,CAHD,Home Care - Elderly - South,Day Care / Social Activities,Lloyds TSB Commercial Finance Limited,4924.70, 23-Feb-2016
1079,Revenue,CAHD,Home Care - Elderly - South,Other Small Contracts,Lloyds TSB Commercial Finance Limited,5378.06, 23-Feb-2016
1080,Revenue,CAHD,Home Care - Elderly - South,Supported Living,Lloyds TSB Commercial Finance Limited,8137.22, 23-Feb-2016
1081,Revenue,CAHD,Home Care - Elderly - North,Day Care / Social Activities,Lloyds TSB Commercial Finance Limited,276.76, 23-Feb-2016
1082,Revenue,CAHD,Home Care - Elderly - North,Supported Living,Lloyds TSB Commercial Finance Limited,1823.36, 23-Feb-2016
1083,Revenue,CAHD,Younger MH non-res purchasing,Other Small Contracts,Lloyds TSB Commercial Finance Limited,10625.78, 23-Feb-2016
1084,Revenue,CAHD,Younger MH non-res purchasing,Supported Living,Lloyds TSB Commercial Finance Limited,105.20, 23-Feb-2016
1085,Revenue,CAHD,Home Care - Elderly - South,Day Care / Social Activities,Lloyds TSB Commercial Finance Limited,4884.00, 23-Feb-2016
1086,Revenue,CAHD,Home Care - Elderly - South,Other Small Contracts,Lloyds TSB Commercial Finance Limited,5369.92, 23-Feb-2016
1087,Revenue,CAHD,Home Care - Elderly - South,Supported Living,Lloyds TSB Commercial Finance Limited,8083.10, 23-Feb-2016
1088,Revenue,CAHD,Home Care - Elderly - North,Day Care / Social Activities,Lloyds TSB Commercial Finance Limited,325.60, 23-Feb-2016
1089,Revenue,CAHD,Home Care - Elderly - North,Supported Living,Lloyds TSB Commercial Finance Limited,1493.69, 23-Feb-2016
1090,Revenue,CAHD,Younger MH non-res purchasing,Other Small Contracts,Lloyds TSB Commercial Finance Limited,10636.30, 23-Feb-2016
1091,Revenue,CAHD,Younger MH non-res purchasing,Supported Living,Lloyds TSB Commercial Finance Limited,105.20, 23-Feb-2016
1092,Revenue,CAHD,Home Care - Elderly - South,Day Care / Social Activities,Lloyds TSB Commercial Finance Limited,4945.05, 25-Feb-2016
1093,Revenue,CAHD,Home Care - Elderly - South,Other Small Contracts,Lloyds TSB Commercial Finance Limited,5463.09, 25-Feb-2016
1094,Revenue,CAHD,Home Care - Elderly - South,Supported Living,Lloyds TSB Commercial Finance Limited,8437.33, 25-Feb-2016
1095,Revenue,CAHD,Home Care - Elderly - North,Day Care / Social Activities,Lloyds TSB Commercial Finance Limited,325.60, 25-Feb-2016
1096,Revenue,CAHD,Home Care - Elderly - North,Supported Living,Lloyds TSB Commercial Finance Limited,1823.36, 25-Feb-2016
1097,Revenue,CAHD,Younger MH non-res purchasing,Other Small Contracts,Lloyds TSB Commercial Finance Limited,10620.52, 25-Feb-2016
1098,Revenue,CAHD,Younger MH non-res purchasing,Supported Living,Lloyds TSB Commercial Finance Limited,105.20, 25-Feb-2016
1099,Revenue,CAHD,Home Care - Elderly - South,Day Care / Social Activities,Lloyds TSB Commercial Finance Limited,4940.98, 25-Feb-2016
1100,Revenue,CAHD,Home Care - Elderly - South,Other Small Contracts,Lloyds TSB Commercial Finance Limited,5369.92, 25-Feb-2016
1101,Revenue,CAHD,Home Care - Elderly - South,Supported Living,Lloyds TSB Commercial Finance Limited,8023.84, 25-Feb-2016
1102,Revenue,CAHD,Home Care - Elderly - North,Day Care / Social Activities,Lloyds TSB Commercial Finance Limited,309.32, 25-Feb-2016
1103,Revenue,CAHD,Home Care - Elderly - North,Supported Living,Lloyds TSB Commercial Finance Limited,1481.48, 25-Feb-2016
1104,Revenue,CAHD,Younger MH non-res purchasing,Other Small Contracts,Lloyds TSB Commercial Finance Limited,10657.34, 25-Feb-2016
1105,Revenue,CAHD,Younger MH non-res purchasing,Supported Living,Lloyds TSB Commercial Finance Limited,105.20, 25-Feb-2016
1106,Revenue,CAHD,Home Care - Elderly - South,Day Care / Social Activities,Lloyds TSB Commercial Finance Limited,4916.56, 25-Feb-2016
1107,Revenue,CAHD,Home Care - Elderly - South,Other Small Contracts,Lloyds TSB Commercial Finance Limited,5369.92, 25-Feb-2016
1108,Revenue,CAHD,Home Care - Elderly - South,Supported Living,Lloyds TSB Commercial Finance Limited,7557.62, 25-Feb-2016
1109,Revenue,CAHD,Home Care - Elderly - North,Day Care / Social Activities,Lloyds TSB Commercial Finance Limited,317.46, 25-Feb-2016
1110,Revenue,CAHD,Home Care - Elderly - North,Supported Living,Lloyds TSB Commercial Finance Limited,1823.36, 25-Feb-2016
1111,Revenue,CAHD,Younger MH non-res purchasing,Other Small Contracts,Lloyds TSB Commercial Finance Limited,10652.08, 25-Feb-2016
1112,Revenue,CAHD,Younger MH non-res purchasing,Supported Living,Lloyds TSB Commercial Finance Limited,105.20, 25-Feb-2016
1113,Revenue,CAHD,Access Team,Care Management/Assessment Staff Pay,Lloyds TSB Commercial Finance Limited,1879.13, 08-Feb-2016
1114,Revenue,CAHD,Access Team,Care Management/Assessment Staff Pay,Lloyds TSB Commercial Finance Limited,1867.61, 12-Feb-2016
1115,Revenue,CAHD,Access Team,Care Management/Assessment Staff Pay,Lloyds TSB Commercial Finance Limited,1883.36, 19-Feb-2016
1116,Revenue,CAHD,Home Care - Elderly - North,Day Care / Social Activities,Lower Kilcott,1481.84, 16-Feb-2016
1117,Revenue,CAHD,Home Care - Elderly - North,Day Care / Social Activities,Lower Kilcott,710.16, 16-Feb-2016
1118,Revenue,CAHD,Home Care - Elderly - North,Day Care / Social Activities,Lower Kilcott,566.68, 16-Feb-2016
1119,Revenue,CAHD,Social Lettings Agency,Fees - General,Individual,13.60, 10-Feb-2016
1120,Revenue,CAHD,Social Lettings Agency,Other Supplies & Services,Individual,768.40, 10-Feb-2016
1121,Revenue,CAHD,Bed Purchasing - Southmead Hospital,Permanent Nursing,Majestic 3 Limited,1004.20, 16-Feb-2016
1122,Revenue,CAHD,Bed Purchasing - South,Permanent Residential,Manor Cottage,1865.68, 16-Feb-2016
1123,Revenue,CAHD,Bed Purchasing - Southmead Hospital,Permanent Residential,Manor Cottage,1270.80, 16-Feb-2016
1124,Revenue,CAHD,Bed Purchasing - South,Permanent Residential,Manor Cottage,1814.80, 16-Feb-2016
1125,Revenue,CAHD,Bed Purchasing - Southmead Hospital,Permanent Residential,Manor Cottage,1041.92, 16-Feb-2016
1126,Revenue,CAHD,Bed Purchasing - South,Permanent Residential,Manor Cottage,1464.20, 16-Feb-2016
1127,Revenue,CAHD,Bed Purchasing - South,Permanent Residential,Manor Cottage,1516.40, 16-Feb-2016
1128,Revenue,CAHD,Bed Purchasing - North,Permanent Residential,Manton Hall Residential Home,1542.80, 16-Feb-2016
1129,Revenue,CAHD,Home Care - Elderly - South,Supported Living,Maples Community Care Limited,12245.83, 26-Feb-2016
1130,Revenue,CAHD,Younger MH non-res purchasing,Supported Living,Maples Community Care Limited,1400.00, 16-Feb-2016
1131,Revenue,CAHD,Home Care - Elderly - South,Supported Living,Maples Community Care Limited,1400.00, 16-Feb-2016
1132,Revenue,CAHD,Home Care - Elderly - South,Supported Living,Maples Community Care Limited,1400.00, 16-Feb-2016
1133,Revenue,CAHD,Younger MH non-res purchasing,Supported Living,Maples Community Care Limited,1400.00, 16-Feb-2016
1134,Revenue,CAHD,Younger MH non-res purchasing,Supported Living,Maples Community Care Limited,1400.00, 16-Feb-2016
1135,Revenue,CAHD,Younger MH non-res purchasing,Supported Living,Maples Community Care Limited,1400.00, 16-Feb-2016
1136,Revenue,CAHD,Social Lettings Agency,Fees - General,Individual,12.22, 19-Feb-2016
1137,Revenue,CAHD,Social Lettings Agency,Other Supplies & Services,Individual,690.32, 19-Feb-2016
1138,Revenue,CAHD,Bed Purchasing - South,Permanent Residential,Marsden Healthcare Ltd,1276.04, 16-Feb-2016
1139,Revenue,CAHD,Bed Purchasing - South,Permanent Residential,Marsden Healthcare Ltd,3278.84, 16-Feb-2016
1140,Revenue,CAHD,Bed Purchasing - South,Permanent Residential,Marsden Healthcare Ltd,1538.08, 16-Feb-2016
1141,Revenue,CAHD,Bed Purchasing - South,Permanent Nursing,Meadow Care Home,1552.32, 16-Feb-2016
1142,Revenue,CAHD,Bed Purchasing - Elderly S117- North,Permanent Nursing,Meadow Care Home,3800.00, 16-Feb-2016
1143,Revenue,CAHD,Bed purchasing - Elderly S117 - South,Permanent Nursing,Meadow Care Home,2420.00, 16-Feb-2016
1144,Revenue,CAHD,Home Care - Elderly - South,Day Care / Social Activities,Mears Care,42.90, 10-Feb-2016
1145,Revenue,CAHD,Home Care - Elderly - South,Other Small Contracts,Mears Care,1041.30, 10-Feb-2016
1146,Revenue,CAHD,Home Care - Elderly - North,Other Small Contracts,Mears Care,2983.50, 10-Feb-2016
1147,Revenue,CAHD,Home Care - Elderly - South,Other Small Contracts,Mears Care,1162.20, 10-Feb-2016
1148,Revenue,CAHD,Home Care - Elderly - North,Other Small Contracts,Mears Care,3151.20, 10-Feb-2016
1149,Revenue,CAHD,Home Care - Elderly - South,Day Care / Social Activities,Mears Care,93.60, 10-Feb-2016
1150,Revenue,CAHD,Home Care - Elderly - South,Other Small Contracts,Mears Care,1220.70, 10-Feb-2016
1151,Revenue,CAHD,Home Care - Elderly - North,Other Small Contracts,Mears Care,3240.90, 10-Feb-2016
1152,Revenue,CAHD,Home Care - Elderly - South,Day Care / Social Activities,Mears Care,81.90, 10-Feb-2016
1153,Revenue,CAHD,Home Care - Elderly - South,Other Small Contracts,Mears Care,1158.30, 10-Feb-2016
1154,Revenue,CAHD,Home Care - Elderly - North,Other Small Contracts,Mears Care,3404.70, 10-Feb-2016
1155,Revenue,CAHD,Home Care - Elderly - South,Day Care / Social Activities,Mears Care,42.90, 25-Feb-2016
1156,Revenue,CAHD,Home Care - Elderly - South,Other Small Contracts,Mears Care,1138.80, 25-Feb-2016
1157,Revenue,CAHD,Home Care - Elderly - North,Other Small Contracts,Mears Care,3385.20, 25-Feb-2016
1158,Revenue,CAHD,Home Care - Elderly - South,Day Care / Social Activities,Mears Care,46.80, 25-Feb-2016
1159,Revenue,CAHD,Home Care - Elderly - South,Other Small Contracts,Mears Care,1103.70, 25-Feb-2016
1160,Revenue,CAHD,Home Care - Elderly - North,Other Small Contracts,Mears Care,3322.80, 25-Feb-2016
1161,Revenue,CAHD,Home Care - Elderly - South,Day Care / Social Activities,Mears Care,85.80, 25-Feb-2016
1162,Revenue,CAHD,Home Care - Elderly - South,Other Small Contracts,Mears Care,1095.90, 25-Feb-2016
1163,Revenue,CAHD,Home Care - Elderly - North,Other Small Contracts,Mears Care,3330.60, 25-Feb-2016
1164,Revenue,CAHD,Home Care - Elderly - South,Private & Voluntary Home Care,Mears Care,49770.25, 26-Feb-2016
1165,Revenue,CAHD,Home Care - Elderly - South,Other Small Contracts,Medacs Home Care,35.40, 03-Feb-2016
1166,Revenue,CAHD,Home Care - Elderly - North,Other Small Contracts,Medacs Home Care,651.36, 03-Feb-2016
1167,Revenue,CAHD,Home Care - Elderly - South,Other Small Contracts,Medacs Home Care,35.40, 10-Feb-2016
1168,Revenue,CAHD,Home Care - Elderly - North,Other Small Contracts,Medacs Home Care,658.44, 10-Feb-2016
1169,Revenue,CAHD,Home Care - Elderly - South,Other Small Contracts,Medacs Home Care,35.40, 16-Feb-2016
1170,Revenue,CAHD,Home Care - Elderly - North,Other Small Contracts,Medacs Home Care,654.90, 16-Feb-2016
1171,Revenue,CAHD,Home Care - Elderly - South,Other Small Contracts,Medacs Home Care,31.86, 23-Feb-2016
1172,Revenue,CAHD,Home Care - Elderly - North,Other Small Contracts,Medacs Home Care,626.58, 23-Feb-2016
1173,Revenue,CAHD,ICES / NRS Contract,Daily Living Equipment,Medequip Assistive Technology Limited,11614.41, 19-Feb-2016
1174,Revenue,CAHD,ICES / NRS Contract,Daily Living Equipment,Medequip Assistive Technology Limited,104212.59, 19-Feb-2016
1175,Revenue,CAHD,Bed Purchasing - South,Permanent Residential,Mencap,2277.84, 16-Feb-2016
1176,Revenue,CAHD,Supported Living (S28a) South,Private & Voluntary Home Care,Mencap - PS Central & Cymru,3841.88, 03-Feb-2016
1177,Revenue,CAHD,Supported Living (S28a) South,Private & Voluntary Home Care,Mencap - PS Central & Cymru,3841.88, 24-Feb-2016
1178,Revenue,CAHD,Supporting People Programme,Grants to Voluntary Bodies,Merlin Housing Society,14786.49, 01-Feb-2016
1179,Revenue,CAHD,Supporting People Programme,Grants to Voluntary Bodies,Merlin Housing Society,2485.47, 01-Feb-2016
1180,Revenue,CAHD,Supporting People Programme,Grants to Voluntary Bodies,Merlin Housing Society,47076.50, 01-Feb-2016
1181,Revenue,CAHD,Supporting People Programme,Grants to Voluntary Bodies,Merlin Housing Society,1053.09, 01-Feb-2016
1182,Revenue,CAHD,Under 65s -MH  Home Care Purch,Other Small Contracts,Mike Durrant - Cherry Orchards,2225.00, 16-Feb-2016
1183,Revenue,CAHD,Home Care - Elderly - South,Supported Living,Milestones - Unit 10,8939.28, 16-Feb-2016
1184,Revenue,CAHD,Home Care - Elderly - South,Supported Living,Milestones - Unit 10,2103.36, 16-Feb-2016
1185,Revenue,CAHD,Home Care - Elderly - South,Supported Living,Milestones - Unit 10,3631.76, 16-Feb-2016
1186,Revenue,CAHD,Home Care - Elderly - North,Supported Living,Milestones - Unit 10,4304.16, 16-Feb-2016
1187,Revenue,CAHD,Home Care - Elderly - South,Supported Living,Milestones - Unit 10,3631.76, 16-Feb-2016
1188,Revenue,CAHD,Supported Living (S28a) North,Private & Voluntary Home Care,Milestones - Unit 10,4076.32, 16-Feb-2016
1189,Revenue,CAHD,Home Care - Elderly - South,Supported Living,Milestones - Unit 10,3643.60, 16-Feb-2016
1190,Revenue,CAHD,Home Care - Elderly - South,Supported Living,Milestones - Unit 10,2317.68, 16-Feb-2016
1191,Revenue,CAHD,Home Care - Elderly - South,Supported Living,Milestones - Unit 10,3715.52, 16-Feb-2016
1192,Revenue,CAHD,Home Care - Elderly - South,Other Small Contracts,Milestones - Unit 10,3719.52, 16-Feb-2016
1193,Revenue,CAHD,Supported Living (S28a) North,Private & Voluntary Home Care,Milestones - Unit 10,4076.32, 16-Feb-2016
1194,Revenue,CAHD,Supported Living (S28a) South,Supported Living,Milestones - Unit 10,3881.32, 16-Feb-2016
1195,Revenue,CAHD,Supported Living (S28a) North,Private & Voluntary Home Care,Milestones - Unit 10,3603.08, 16-Feb-2016
1196,Revenue,CAHD,Supported Living (S28a) North,Private & Voluntary Home Care,Milestones - Unit 10,3603.08, 16-Feb-2016
1197,Revenue,CAHD,Home Care - Elderly - South,Supported Living,Milestones - Unit 10,1251.04, 16-Feb-2016
1198,Revenue,CAHD,Supported Living (S28a) South,Supported Living,Milestones - Unit 10,5505.80, 16-Feb-2016
1199,Revenue,CAHD,Home Care - Elderly - South,Supported Living,Milestones - Unit 10,2232.52, 16-Feb-2016
1200,Revenue,CAHD,Supported Living (S28a) South,Supported Living,Milestones - Unit 10,2232.52, 16-Feb-2016
1201,Revenue,CAHD,Home Care - Elderly - North,Supported Living,Milestones - Unit 10,4304.16, 16-Feb-2016
1202,Revenue,CAHD,Home Care - Elderly - South,Supported Living,Milestones - Unit 10,8939.28, 16-Feb-2016
1203,Revenue,CAHD,Home Care - Elderly - South,Supported Living,Milestones - Unit 10,2103.36, 16-Feb-2016
1204,Revenue,CAHD,Supported Living (S28a) North,Private & Voluntary Home Care,Milestones - Unit 10,3615.20, 16-Feb-2016
1205,Revenue,CAHD,Supported Living (S28a) South,Supported Living,Milestones - Unit 10,2232.52, 16-Feb-2016
1206,Revenue,CAHD,Supported Living (S28a) South,Supported Living,Milestones - Unit 10,2232.52, 16-Feb-2016
1207,Revenue,CAHD,Bed Purchasing - North,Permanent Residential,Milestones - Unit 10,3496.32, 16-Feb-2016
1208,Revenue,CAHD,Bed Purchasing - South,Permanent Residential,Milestones - Unit 10,4921.56, 16-Feb-2016
1209,Revenue,CAHD,Bed Purchasing - South,Permanent Residential,Milestones - Unit 10,6443.92, 16-Feb-2016
1210,Revenue,CAHD,Bed Purchasing - South,Permanent Nursing,Milestones - Unit 10,2763.44, 16-Feb-2016
1211,Revenue,CAHD,Bed Purchasing - South,Permanent Nursing,Milestones - Unit 10,1286.44, 16-Feb-2016
1212,Revenue,CAHD,Bed Purchasing - South,Permanent Residential,Milestones - Unit 10,3640.84, 16-Feb-2016
1213,Revenue,CAHD,Bed purchasing - Elderly S117 - South,Permanent Nursing,Milestones - Unit 10,7711.36, 16-Feb-2016
1214,Revenue,CAHD,Bed Purchasing - North,Permanent Nursing,Milestones - Unit 10,1440.08, 16-Feb-2016
1215,Revenue,CAHD,Bed Purchasing - North,Permanent Residential,Milestones - Unit 10,8845.08, 16-Feb-2016
1216,Revenue,CAHD,Bed Purchasing - South,Permanent Residential,Milestones - Unit 10,4165.64, 16-Feb-2016
1217,Revenue,CAHD,Bed Purchasing - North,Permanent Nursing,Milestones - Unit 10,4246.80, 16-Feb-2016
1218,Revenue,CAHD,Bed purchasing -S28A  Under 65 - North,Permanent Residential,Milestones - Unit 10,5387.68, 16-Feb-2016
1219,Revenue,CAHD,Bed purchasing - S28A Under 65 - South,Permanent Residential,Milestones - Unit 10,5588.64, 16-Feb-2016
1220,Revenue,CAHD,Bed Purchasing - South,Permanent Residential,Milestones - Unit 10,1317.44, 16-Feb-2016
1221,Revenue,CAHD,Bed Purchasing - South,Permanent Residential,Milestones - Unit 10,5042.32, 16-Feb-2016
1222,Revenue,CAHD,Bed Purchasing - South,Permanent Residential,Milestones - Unit 10,5595.76, 16-Feb-2016
1223,Revenue,CAHD,Bed purchasing - S28A Under 65 - South,Permanent Nursing,Milestones - Unit 10,7369.04, 16-Feb-2016
1224,Revenue,CAHD,MH Purchasing - Younger,Permanent Residential,Milestones - Unit 10,866.80, 16-Feb-2016
1225,Revenue,CAHD,Bed purchasing - Elderly PWLD - South,Permanent Residential,Milestones - Unit 10,16294.00, 16-Feb-2016
1226,Revenue,CAHD,Bed Purchasing - South,Permanent Residential,Milestones - Unit 10,5126.20, 16-Feb-2016
1227,Revenue,CAHD,Bed Purchasing - South,Permanent Residential,Milestones - Unit 10,5175.80, 16-Feb-2016
1228,Revenue,CAHD,Bed Purchasing - North,Permanent Residential,Milestones - Unit 10,4062.96, 16-Feb-2016
1229,Revenue,CAHD,Bed purchasing -S28A  Under 65 - North,Permanent Nursing,Milestones - Unit 10,5316.80, 16-Feb-2016
1230,Revenue,CAHD,South Glos Users in South Glos Homes,Permanent Nursing,Milestones - Unit 10,1984.00, 16-Feb-2016
1231,Revenue,CAHD,Bed Purchasing - North,Permanent Residential,Milestones - Unit 10,4685.96, 16-Feb-2016
1232,Revenue,CAHD,Bed purchasing -S28A  Under 65 - North,Permanent Residential,Milestones - Unit 10,7136.00, 16-Feb-2016
1233,Revenue,CAHD,Bed purchasing -S28A  Under 65 - North,Permanent Nursing,Milestones - Unit 10,5865.04, 16-Feb-2016
1234,Revenue,CAHD,Bed Purchasing - South,Permanent Residential,Milestones - Unit 10,3245.72, 16-Feb-2016
1235,Revenue,CAHD,Bed purchasing -S28A  Under 65 - North,Permanent Residential,Milestones - Unit 10,6829.12, 16-Feb-2016
1236,Revenue,CAHD,Bed purchasing - S28A Under 65 - South,Permanent Residential,Milestones - Unit 10,4575.80, 16-Feb-2016
1237,Revenue,CAHD,Bed Purchasing - S28A - Over 65- North,Permanent Residential,Milestones - Unit 10,6670.00, 16-Feb-2016
1238,Revenue,CAHD,Bed purchasing -S28A  Under 65 - North,Permanent Residential,Milestones - Unit 10,7089.20, 16-Feb-2016
1239,Revenue,CAHD,Bed purchasing -S28A  Under 65 - North,Permanent Residential,Milestones - Unit 10,7136.20, 16-Feb-2016
1240,Revenue,CAHD,Bed Purchasing - LD S28A- Over 65- South,Permanent Residential,Milestones - Unit 10,4134.48, 16-Feb-2016
1241,Revenue,CAHD,Bed purchasing - S28A Under 65 - South,Permanent Residential,Milestones - Unit 10,4527.72, 16-Feb-2016
1242,Revenue,CAHD,Bed purchasing - S28A Under 65 - South,Permanent Residential,Milestones - Unit 10,3704.60, 16-Feb-2016
1243,Revenue,CAHD,Bed Purchasing - LD S28A- Over 65- South,Permanent Residential,Milestones - Unit 10,5142.04, 16-Feb-2016
1244,Revenue,CAHD,Bed Purchasing - LD S28A- Over 65- South,Permanent Residential,Milestones - Unit 10,4798.80, 16-Feb-2016
1245,Revenue,CAHD,Bed Purchasing - LD S28A- Over 65- South,Permanent Residential,Milestones - Unit 10,5126.08, 16-Feb-2016
1246,Revenue,CAHD,Bed Purchasing - LD S28A- Over 65- South,Permanent Residential,Milestones - Unit 10,4396.24, 16-Feb-2016
1247,Revenue,CAHD,Bed Purchasing - LD S28A- Over 65- South,Permanent Residential,Milestones - Unit 10,5222.00, 16-Feb-2016
1248,Revenue,CAHD,Bed Purchasing - S28A - Over 65- North,Permanent Residential,Milestones - Unit 10,2902.08, 16-Feb-2016
1249,Revenue,CAHD,Section 117 Placements MH Younger,Permanent Residential,Milestones - Unit 10,1372.00, 16-Feb-2016
1250,Revenue,CAHD,Bed Purchasing - South,Permanent Residential,Milestones - Unit 10,866.80, 16-Feb-2016
1251,Revenue,CAHD,Bed purchasing - S28A Under 65 - South,Permanent Residential,Milestones - Unit 10,4988.84, 16-Feb-2016
1252,Revenue,CAHD,Bed Purchasing - North,Permanent Residential,Milestones - Unit 10,4349.92, 16-Feb-2016
1253,Revenue,CAHD,Bed Purchasing - North,Permanent Nursing,Milestones - Unit 10,6971.80, 16-Feb-2016
1254,Revenue,CAHD,Bed Purchasing - South,Permanent Residential,Milestones - Unit 10,4318.72, 16-Feb-2016
1255,Revenue,CAHD,Bed purchasing -S28A  Under 65 - North,Permanent Residential,Milestones - Unit 10,5737.92, 16-Feb-2016
1256,Revenue,CAHD,Bed Purchasing - S28A - Over 65- North,Permanent Residential,Milestones - Unit 10,3633.92, 16-Feb-2016
1257,Revenue,CAHD,MH Purchasing - Younger,Permanent Residential,Milestones - Unit 10,1050.20, 16-Feb-2016
1258,Revenue,CAHD,Bed Purchasing - S28A - Over 65- North,Permanent Residential,Milestones - Unit 10,3245.24, 16-Feb-2016
1259,Revenue,CAHD,Bed Purchasing - LD S28A- Over 65- South,Permanent Residential,Milestones - Unit 10,3919.96, 16-Feb-2016
1260,Revenue,CAHD,Bed purchasing - S28A Under 65 - South,Permanent Residential,Milestones - Unit 10,5228.28, 16-Feb-2016
1261,Revenue,CAHD,Bed purchasing - S28A Under 65 - South,Permanent Nursing,Milestones - Unit 10,5239.84, 16-Feb-2016
1262,Revenue,CAHD,Bed Purchasing - LD S28A- Over 65- South,Permanent Nursing,Milestones - Unit 10,5277.92, 16-Feb-2016
1263,Revenue,CAHD,Bed Purchasing - LD S28A- Over 65- South,Permanent Residential,Milestones - Unit 10,4800.72, 16-Feb-2016
1264,Revenue,CAHD,Bed Purchasing - LD S28A- Over 65- South,Permanent Residential,Milestones - Unit 10,4645.48, 16-Feb-2016
1265,Revenue,CAHD,Bed purchasing - S28A Under 65 - South,Permanent Residential,Milestones - Unit 10,6111.04, 16-Feb-2016
1266,Revenue,CAHD,Bed Purchasing - LD S28A- Over 65- South,Permanent Residential,Milestones - Unit 10,4713.52, 16-Feb-2016
1267,Revenue,CAHD,Bed Purchasing - S28A - Over 65- North,Permanent Nursing,Milestones - Unit 10,4776.40, 16-Feb-2016
1268,Revenue,CAHD,South Glos Users in South Glos Homes,Permanent Nursing,Milestones - Unit 10,2192.00, 16-Feb-2016
1269,Revenue,CAHD,Bed Purchasing - South,Permanent Nursing,Milestones - Unit 10,3319.80, 16-Feb-2016
1270,Revenue,CAHD,Bed Purchasing - S28A - Over 65- North,Permanent Residential,Milestones - Unit 10,4634.04, 16-Feb-2016
1271,Revenue,CAHD,Bed Purchasing - S28A - Over 65- North,Permanent Residential,Milestones - Unit 10,4806.64, 16-Feb-2016
1272,Revenue,CAHD,Bed purchasing - S28A Under 65 - South,Permanent Residential,Milestones - Unit 10,4808.68, 16-Feb-2016
1273,Revenue,CAHD,Bed Purchasing - S28A - Over 65- North,Permanent Residential,Milestones - Unit 10,4547.76, 16-Feb-2016
1274,Revenue,CAHD,Bed purchasing -S28A  Under 65 - North,Permanent Residential,Milestones - Unit 10,7136.20, 16-Feb-2016
1275,Revenue,CAHD,Bed purchasing -S28A  Under 65 - North,Permanent Residential,Milestones - Unit 10,3340.76, 16-Feb-2016
1276,Revenue,CAHD,Bed Purchasing - North,Permanent Residential,Milestones - Unit 10,3162.44, 16-Feb-2016
1277,Revenue,CAHD,Bed Purchasing - S28A - Over 65- North,Permanent Residential,Milestones - Unit 10,3464.24, 16-Feb-2016
1278,Revenue,CAHD,Bed Purchasing - North,Respite Emergency - Residential,Milestones - Unit 10,9790.44, 16-Feb-2016
1279,Revenue,CAHD,Bed Purchasing - North,Permanent Nursing,Milestones - Unit 10,1330.80, 16-Feb-2016
1280,Revenue,CAHD,MH Purchasing - Younger,Permanent Nursing,Milestones - Unit 10,950.96, 16-Feb-2016
1281,Revenue,CAHD,MH Purchasing - Younger,Permanent Nursing,Milestones - Unit 10,958.80, 16-Feb-2016
1282,Revenue,CAHD,Bed Purchasing - South,Permanent Residential,Milestones - Unit 10,3285.36, 16-Feb-2016
1283,Revenue,CAHD,Bed purchasing - S28A Under 65 - South,Permanent Residential,Milestones - Unit 10,5984.08, 16-Feb-2016
1284,Revenue,CAHD,Bed purchasing - S28A Under 65 - South,Permanent Residential,Milestones - Unit 10,6071.04, 16-Feb-2016
1285,Revenue,CAHD,Bed Purchasing - Southmead Hospital,Permanent Nursing,Milestones - Unit 10,26264.88, 16-Feb-2016
1286,Revenue,CAHD,Bed Purchasing - Southmead Hospital,Permanent Nursing,Milestones - Unit 10,5836.64, 16-Feb-2016
1287,Revenue,CAHD,Bed Purchasing - LD S28A- Over 65- South,Permanent Residential,Milestones - Unit 10,4396.24, 16-Feb-2016
1288,Revenue,CAHD,Bed Purchasing - South,Permanent Residential,Milestones - Unit 10,5984.52, 16-Feb-2016
1289,Revenue,CAHD,Bed Purchasing - LD S28A- Over 65- South,Permanent Nursing,Milestones - Unit 10,5277.92, 16-Feb-2016
1290,Revenue,CAHD,Bed Purchasing - LD S28A- Over 65- South,Permanent Residential,Milestones - Unit 10,3575.16, 16-Feb-2016
1291,Revenue,CAHD,Bed Purchasing - South,Permanent Residential,Milestones - Unit 10,4386.24, 16-Feb-2016
1292,Revenue,CAHD,Bed Purchasing - South,Permanent Residential,Milestones - Unit 10,1239.36, 16-Feb-2016
1293,Revenue,CAHD,Bed purchasing -S28A  Under 65 - North,Permanent Nursing,Milestones - Unit 10,7697.08, 16-Feb-2016
1294,Revenue,CAHD,Bed Purchasing - Southmead Hospital,Permanent Nursing,Milestones - Unit 10,1368.08, 16-Feb-2016
1295,Revenue,CAHD,Bed Purchasing - South,Permanent Residential,Milestones - Unit 10,5319.52, 16-Feb-2016
1296,Revenue,CAHD,Bed Purchasing - North,Permanent Nursing,Milestones - Unit 10,1460.24, 16-Feb-2016
1297,Revenue,CAHD,Bed Purchasing - North,Permanent Nursing,Milestones - Unit 10,834.36, 16-Feb-2016
1298,Revenue,CAHD,18-25 Year Olds,Permanent Residential,Milestones - Unit 10,9919.20, 16-Feb-2016
1299,Revenue,CAHD,Section 117 Placements MH Younger,Permanent Residential,Milestones - Unit 10,1372.00, 16-Feb-2016
1300,Revenue,CAHD,Bed Purchasing - South,Permanent Nursing,Milestones - Unit 10,3399.64, 16-Feb-2016
1301,Revenue,CAHD,Bed Purchasing - South,Permanent Nursing,Milestones - Unit 10,2808.92, 16-Feb-2016
1302,Revenue,CAHD,Bed Purchasing - LD S28A- Over 65- South,Permanent Nursing,Milestones - Unit 10,2793.28, 16-Feb-2016
1303,Revenue,CAHD,Bed Purchasing - S28A - Over 65- North,Permanent Nursing,Milestones - Unit 10,3670.84, 16-Feb-2016
1304,Revenue,CAHD,Bed Purchasing - S28A - Over 65- North,Permanent Nursing,Milestones - Unit 10,3666.84, 16-Feb-2016
1305,Revenue,CAHD,Home Care - Elderly - South,Other Small Contracts,Milestones Homecare & Dementia Service,919.62, 17-Feb-2016
1306,Revenue,CAHD,Home Care - Elderly - North,Other Small Contracts,Milestones Homecare & Dementia Service,1711.78, 17-Feb-2016
1307,Revenue,CAHD,Home care - Elderly MH - North,Other Small Contracts,Milestones Homecare & Dementia Service,43.23, 17-Feb-2016
1308,Revenue,CAHD,Home Care - Elderly - South,Other Small Contracts,Milestones Homecare & Dementia Service,793.86, 05-Feb-2016
1309,Revenue,CAHD,Home Care - Elderly - North,Other Small Contracts,Milestones Homecare & Dementia Service,1621.49, 05-Feb-2016
1310,Revenue,CAHD,Home care - Elderly MH - North,Other Small Contracts,Milestones Homecare & Dementia Service,43.23, 05-Feb-2016
1311,Revenue,CAHD,Home Care - Elderly - South,Other Small Contracts,Milestones Homecare & Dementia Service,782.07, 19-Feb-2016
1312,Revenue,CAHD,Home Care - Elderly - North,Other Small Contracts,Milestones Homecare & Dementia Service,1878.54, 19-Feb-2016
1313,Revenue,CAHD,Home care - Elderly MH - North,Other Small Contracts,Milestones Homecare & Dementia Service,55.02, 19-Feb-2016
1314,Revenue,CAHD,Home Care - Elderly - South,Other Small Contracts,Milestones Homecare & Dementia Service,919.62, 25-Feb-2016
1315,Revenue,CAHD,Home Care - Elderly - North,Other Small Contracts,Milestones Homecare & Dementia Service,1886.40, 25-Feb-2016
1316,Revenue,CAHD,Home care - Elderly MH - North,Other Small Contracts,Milestones Homecare & Dementia Service,55.02, 25-Feb-2016
1317,Revenue,CAHD,Supported Living - South,Private & Voluntary Home Care,Milestones Trust,15948.00, 02-Feb-2016
1318,Revenue,CAHD,Bed Purchasing - North,Permanent Residential,Millennium House,1429.56, 16-Feb-2016
1319,Revenue,CAHD,18-25 Year Olds,Permanent Residential,Modus Care Ltd,18210.08, 16-Feb-2016
1320,Revenue,CAHD,Bed Purchasing - Southmead Hospital,Permanent Residential,Mostyn Lodge Residential Home,1143.20, 16-Feb-2016
1321,Revenue,CAHD,Bed Purchasing - North,Permanent Residential,Mostyn Lodge Residential Home,1239.80, 16-Feb-2016
1322,Revenue,CAHD,Home Care - Elderly - South,Supported Living,Moving On (UK) Limited,2415.28, 16-Feb-2016
1323,Revenue,CAHD,Home Care - Elderly - South,Supported Living,Moving On (UK) Limited,2415.28, 16-Feb-2016
1324,Revenue,CAHD,Social Lettings Agency,Fees - General,Individual,10.53, 05-Feb-2016
1325,Revenue,CAHD,Social Lettings Agency,Other Supplies & Services,Individual,582.10, 05-Feb-2016
1326,Revenue,CAHD,Social Lettings Agency,Fees - General,Individual,10.00, 12-Feb-2016
1327,Revenue,CAHD,Social Lettings Agency,Other Supplies & Services,Individual,595.11, 12-Feb-2016
1328,Revenue,CAHD,Social Lettings Agency,Fees - General,Individual,10.53, 05-Feb-2016
1329,Revenue,CAHD,Social Lettings Agency,Other Supplies & Services,Individual,595.11, 05-Feb-2016
1330,Revenue,CAHD,Social Lettings Agency,Fees - General,Individual,10.53, 05-Feb-2016
1331,Revenue,CAHD,Social Lettings Agency,Other Supplies & Services,Individual,595.11, 05-Feb-2016
1332,Revenue,CAHD,Social Lettings Agency,Fees - General,Individual,10.53, 22-Feb-2016
1333,Revenue,CAHD,Social Lettings Agency,Other Supplies & Services,Individual,595.11, 22-Feb-2016
1334,Revenue,CAHD,Social Lettings Agency,Fees - General,Individual,7.24, 22-Feb-2016
1335,Revenue,CAHD,Social Lettings Agency,Other Supplies & Services,Individual,614.85, 22-Feb-2016
1336,Revenue,CAHD,Supporting People Programme,Grants to Voluntary Bodies,Mr & Mrs Watts,1009.70, 01-Feb-2016
1337,Revenue,CAHD,Social Lettings Agency,Fees - General,Individual,12.22, 01-Feb-2016
1338,Revenue,CAHD,Social Lettings Agency,Other Supplies & Services,Individual,690.32, 01-Feb-2016
1339,Revenue,CAHD,Social Lettings Agency,Fees - General,Individual,12.22, 01-Feb-2016
1340,Revenue,CAHD,Social Lettings Agency,Other Supplies & Services,Individual,690.32, 01-Feb-2016
1341,Revenue,CAHD,Social Lettings Agency,Fees - General,Individual,12.22, 01-Feb-2016
1342,Revenue,CAHD,Social Lettings Agency,Other Supplies & Services,Individual,690.32, 01-Feb-2016
1343,Revenue,CAHD,Social Lettings Agency,Fees - General,Individual,12.22, 29-Feb-2016
1344,Revenue,CAHD,Social Lettings Agency,Other Supplies & Services,Individual,690.32, 29-Feb-2016
1345,Revenue,CAHD,Homeless - Private Sector Leasing,Other Supplies & Services,Individual,595.00, 23-Feb-2016
1346,Revenue,CAHD,Social Lettings Agency,Fees - General,Individual,10.53, 08-Feb-2016
1347,Revenue,CAHD,Social Lettings Agency,Other Supplies & Services,Individual,533.01, 08-Feb-2016
1348,Revenue,CAHD,Social Lettings Agency,Fees - General,Individual,12.22, 10-Feb-2016
1349,Revenue,CAHD,Social Lettings Agency,Other Supplies & Services,Individual,628.22, 10-Feb-2016
1350,Revenue,CAHD,Social Lettings Agency,Fees - General,Individual,12.22, 02-Feb-2016
1351,Revenue,CAHD,Social Lettings Agency,Other Supplies & Services,Individual,690.32, 02-Feb-2016
1352,Revenue,CAHD,Social Lettings Agency,Fees - General,Individual,10.53, 22-Feb-2016
1353,Revenue,CAHD,Social Lettings Agency,Other Supplies & Services,Individual,595.11, 22-Feb-2016
1354,Revenue,CAHD,Management & Support costs,Legal Fees,Mr Peter Lockley,2000.00, 22-Feb-2016
1355,Revenue,CAHD,Social Lettings Agency,Fees - General,Individual,10.53, 16-Feb-2016
1356,Revenue,CAHD,Social Lettings Agency,Other Supplies & Services,Individual,595.11, 16-Feb-2016
1357,Revenue,CAHD,Social Lettings Agency,Fees - General,Individual,10.53, 01-Feb-2016
1358,Revenue,CAHD,Social Lettings Agency,Other Supplies & Services,Individual,595.11, 01-Feb-2016
1359,Revenue,CAHD,Social Lettings Agency,Fees - General,Individual,16.85, 22-Feb-2016
1360,Revenue,CAHD,Social Lettings Agency,Other Supplies & Services,Individual,951.90, 22-Feb-2016
1361,Revenue,CAHD,Social Lettings Agency,Fees - General,Individual,12.22, 19-Feb-2016
1362,Revenue,CAHD,Social Lettings Agency,Other Supplies & Services,Individual,680.32, 19-Feb-2016
1363,Revenue,CAHD,Social Lettings Agency,Fees - General,Individual,10.53, 29-Feb-2016
1364,Revenue,CAHD,Social Lettings Agency,Other Supplies & Services,Individual,595.11, 29-Feb-2016
1365,Revenue,CAHD,Home Care - Elderly - South,Day Care / Social Activities,Mrs B Kimber -  CM2000,1669.76, 01-Feb-2016
1366,Revenue,CAHD,Home Care - Elderly - South,Other Small Contracts,Mrs B Kimber -  CM2000,9218.24, 01-Feb-2016
1367,Revenue,CAHD,Home Care - Elderly - South,Supported Living,Mrs B Kimber -  CM2000,33.28, 01-Feb-2016
1368,Revenue,CAHD,Home Care - Elderly - North,Day Care / Social Activities,Mrs B Kimber -  CM2000,245.44, 01-Feb-2016
1369,Revenue,CAHD,Home Care - Elderly - North,Other Small Contracts,Mrs B Kimber -  CM2000,4284.80, 01-Feb-2016
1370,Revenue,CAHD,Under 65s -MH  Home Care Purch,Other Small Contracts,Mrs B Kimber -  CM2000,33.28, 01-Feb-2016
1371,Revenue,CAHD,Home Care - Elderly - South,Day Care / Social Activities,Mrs B Kimber -  CM2000,1902.72, 01-Feb-2016
1372,Revenue,CAHD,Home Care - Elderly - South,Other Small Contracts,Mrs B Kimber -  CM2000,9552.64, 01-Feb-2016
1373,Revenue,CAHD,Home Care - Elderly - South,Supported Living,Mrs B Kimber -  CM2000,33.28, 01-Feb-2016
1374,Revenue,CAHD,Home Care - Elderly - North,Day Care / Social Activities,Mrs B Kimber -  CM2000,366.08, 01-Feb-2016
1375,Revenue,CAHD,Home Care - Elderly - North,Other Small Contracts,Mrs B Kimber -  CM2000,5100.16, 01-Feb-2016
1376,Revenue,CAHD,Under 65s -MH  Home Care Purch,Other Small Contracts,Mrs B Kimber -  CM2000,66.56, 01-Feb-2016
1377,Revenue,CAHD,Home Care - Elderly - South,Day Care / Social Activities,Mrs B Kimber -  CM2000,2108.80, 01-Feb-2016
1378,Revenue,CAHD,Home Care - Elderly - South,Other Small Contracts,Mrs B Kimber -  CM2000,9662.40, 01-Feb-2016
1379,Revenue,CAHD,Home Care - Elderly - South,Supported Living,Mrs B Kimber -  CM2000,33.28, 01-Feb-2016
1380,Revenue,CAHD,Home Care - Elderly - North,Day Care / Social Activities,Mrs B Kimber -  CM2000,391.04, 01-Feb-2016
1381,Revenue,CAHD,Home Care - Elderly - North,Other Small Contracts,Mrs B Kimber -  CM2000,4792.32, 01-Feb-2016
1382,Revenue,CAHD,Under 65s -MH  Home Care Purch,Other Small Contracts,Mrs B Kimber -  CM2000,33.28, 01-Feb-2016
1383,Revenue,CAHD,Home Care - Elderly - South,Day Care / Social Activities,Mrs B Kimber -  CM2000,2031.68, 29-Feb-2016
1384,Revenue,CAHD,Home Care - Elderly - South,Other Small Contracts,Mrs B Kimber -  CM2000,9314.24, 29-Feb-2016
1385,Revenue,CAHD,Home Care - Elderly - South,Supported Living,Mrs B Kimber -  CM2000,29.12, 29-Feb-2016
1386,Revenue,CAHD,Home Care - Elderly - North,Day Care / Social Activities,Mrs B Kimber -  CM2000,307.84, 29-Feb-2016
1387,Revenue,CAHD,Home Care - Elderly - North,Other Small Contracts,Mrs B Kimber -  CM2000,4513.60, 29-Feb-2016
1388,Revenue,CAHD,Under 65s -MH  Home Care Purch,Other Small Contracts,Mrs B Kimber -  CM2000,66.56, 29-Feb-2016
1389,Revenue,CAHD,Home Care - Elderly - South,Day Care / Social Activities,Mrs B Kimber -  CM2000,1990.08, 29-Feb-2016
1390,Revenue,CAHD,Home Care - Elderly - South,Other Small Contracts,Mrs B Kimber -  CM2000,9947.52, 29-Feb-2016
1391,Revenue,CAHD,Home Care - Elderly - South,Supported Living,Mrs B Kimber -  CM2000,33.28, 29-Feb-2016
1392,Revenue,CAHD,Home Care - Elderly - North,Day Care / Social Activities,Mrs B Kimber -  CM2000,291.20, 29-Feb-2016
1393,Revenue,CAHD,Home Care - Elderly - North,Other Small Contracts,Mrs B Kimber -  CM2000,4405.44, 29-Feb-2016
1394,Revenue,CAHD,Under 65s -MH  Home Care Purch,Other Small Contracts,Mrs B Kimber -  CM2000,33.28, 29-Feb-2016
1395,Revenue,CAHD,Home Care - Elderly - South,Day Care / Social Activities,Mrs B Kimber -  CM2000,2021.12, 29-Feb-2016
1396,Revenue,CAHD,Home Care - Elderly - South,Other Small Contracts,Mrs B Kimber -  CM2000,9403.20, 29-Feb-2016
1397,Revenue,CAHD,Home Care - Elderly - South,Supported Living,Mrs B Kimber -  CM2000,24.96, 29-Feb-2016
1398,Revenue,CAHD,Home Care - Elderly - North,Day Care / Social Activities,Mrs B Kimber -  CM2000,357.76, 29-Feb-2016
1399,Revenue,CAHD,Home Care - Elderly - North,Other Small Contracts,Mrs B Kimber -  CM2000,4742.40, 29-Feb-2016
1400,Revenue,CAHD,Under 65s -MH  Home Care Purch,Other Small Contracts,Mrs B Kimber -  CM2000,66.56, 29-Feb-2016
1401,Revenue,CAHD,Home Care - Elderly - South,Day Care / Social Activities,Mrs B Kimber -  CM2000,2048.64, 29-Feb-2016
1402,Revenue,CAHD,Home Care - Elderly - South,Other Small Contracts,Mrs B Kimber -  CM2000,9355.52, 29-Feb-2016
1403,Revenue,CAHD,Home Care - Elderly - South,Supported Living,Mrs B Kimber -  CM2000,29.12, 29-Feb-2016
1404,Revenue,CAHD,Home Care - Elderly - North,Day Care / Social Activities,Mrs B Kimber -  CM2000,303.68, 29-Feb-2016
1405,Revenue,CAHD,Home Care - Elderly - North,Other Small Contracts,Mrs B Kimber -  CM2000,4912.96, 29-Feb-2016
1406,Revenue,CAHD,Under 65s -MH  Home Care Purch,Other Small Contracts,Mrs B Kimber -  CM2000,62.40, 29-Feb-2016
1407,Revenue,CAHD,Social Lettings Agency,Fees - General,Individual,10.53, 12-Feb-2016
1408,Revenue,CAHD,Social Lettings Agency,Other Supplies & Services,Individual,595.11, 12-Feb-2016
1409,Revenue,CAHD,Social Lettings Agency,Fees - General,Individual,10.00, 24-Feb-2016
1410,Revenue,CAHD,Social Lettings Agency,Other Supplies & Services,Individual,565.00, 24-Feb-2016
1411,Revenue,CAHD,Social Lettings Agency,Fees - General,Individual,10.53, 01-Feb-2016
1412,Revenue,CAHD,Social Lettings Agency,Other Supplies & Services,Individual,595.11, 01-Feb-2016
1413,Revenue,CAHD,Social Lettings Agency,Fees - General,Individual,10.53, 12-Feb-2016
1414,Revenue,CAHD,Social Lettings Agency,Other Supplies & Services,Individual,595.11, 12-Feb-2016
1415,Revenue,CAHD,Social Lettings Agency,Fees - General,Individual,10.53, 12-Feb-2016
1416,Revenue,CAHD,Social Lettings Agency,Other Supplies & Services,Individual,595.11, 12-Feb-2016
1417,Revenue,CAHD,Social Lettings Agency,Fees - General,Individual,10.53, 08-Feb-2016
1418,Revenue,CAHD,Social Lettings Agency,Other Supplies & Services,Individual,595.11, 08-Feb-2016
1419,Revenue,CAHD,Social Lettings Agency,Fees - General,Individual,16.85, 11-Feb-2016
1420,Revenue,CAHD,Social Lettings Agency,Other Supplies & Services,Individual,1000.00, 11-Feb-2016
1421,Revenue,CAHD,Alexandra Way,Cleaning & Domestic Services,Muzzell Healthcare,418.89, 26-Feb-2016
1422,Revenue,CAHD,Bed Purchasing - North,Permanent Residential,Nas Services  Church House,10621.16, 16-Feb-2016
1423,Revenue,CAHD,Bed Purchasing - North,Permanent Residential,Nas Services  Church House,5984.56, 16-Feb-2016
1424,Revenue,CAHD,Section 117 Placements MH Younger,Permanent Residential,Nas Services  Church House,7649.04, 16-Feb-2016
1425,Revenue,CAHD,Home Care - Elderly - South,Day Care / Social Activities,NAS Services Limited,404.88, 04-Feb-2016
1426,Revenue,CAHD,Home Care - Elderly - South,Supported Living,NAS Services Limited,28.92, 04-Feb-2016
1427,Revenue,CAHD,Home Care - Elderly - North,Day Care / Social Activities,NAS Services Limited,771.20, 04-Feb-2016
1428,Revenue,CAHD,Home Care - Elderly - North,Supported Living,NAS Services Limited,347.04, 04-Feb-2016
1429,Revenue,CAHD,Younger MH non-res purchasing,Day Care / Social Activities,NAS Services Limited,154.24, 04-Feb-2016
1430,Revenue,CAHD,Home Care - Elderly - South,Day Care / Social Activities,NAS Services Limited,438.62, 05-Feb-2016
1431,Revenue,CAHD,Home Care - Elderly - South,Supported Living,NAS Services Limited,19.28, 05-Feb-2016
1432,Revenue,CAHD,Home Care - Elderly - North,Day Care / Social Activities,NAS Services Limited,467.54, 05-Feb-2016
1433,Revenue,CAHD,Home Care - Elderly - North,Supported Living,NAS Services Limited,298.84, 05-Feb-2016
1434,Revenue,CAHD,Younger MH non-res purchasing,Day Care / Social Activities,NAS Services Limited,231.36, 05-Feb-2016
1435,Revenue,CAHD,Home Care - Elderly - South,Day Care / Social Activities,NAS Services Limited,616.96, 10-Feb-2016
1436,Revenue,CAHD,Home Care - Elderly - South,Other Small Contracts,NAS Services Limited,38.56, 10-Feb-2016
1437,Revenue,CAHD,Home Care - Elderly - South,Supported Living,NAS Services Limited,28.92, 10-Feb-2016
1438,Revenue,CAHD,Home Care - Elderly - North,Day Care / Social Activities,NAS Services Limited,954.36, 10-Feb-2016
1439,Revenue,CAHD,Home Care - Elderly - North,Supported Living,NAS Services Limited,260.28, 10-Feb-2016
1440,Revenue,CAHD,Younger MH non-res purchasing,Day Care / Social Activities,NAS Services Limited,231.36, 10-Feb-2016
1441,Revenue,CAHD,Home Care - Elderly - South,Day Care / Social Activities,NAS Services Limited,636.24, 19-Feb-2016
1442,Revenue,CAHD,Home Care - Elderly - South,Supported Living,NAS Services Limited,19.28, 19-Feb-2016
1443,Revenue,CAHD,Home Care - Elderly - North,Day Care / Social Activities,NAS Services Limited,1142.34, 19-Feb-2016
1444,Revenue,CAHD,Home Care - Elderly - North,Supported Living,NAS Services Limited,347.04, 19-Feb-2016
1445,Revenue,CAHD,Younger MH non-res purchasing,Day Care / Social Activities,NAS Services Limited,221.72, 19-Feb-2016
1446,Revenue,CAHD,Home Care - Elderly - South,Day Care / Social Activities,NAS Services Limited,539.84, 22-Feb-2016
1447,Revenue,CAHD,Home Care - Elderly - South,Supported Living,NAS Services Limited,28.92, 22-Feb-2016
1448,Revenue,CAHD,Home Care - Elderly - North,Day Care / Social Activities,NAS Services Limited,1118.24, 22-Feb-2016
1449,Revenue,CAHD,Home Care - Elderly - North,Supported Living,NAS Services Limited,347.04, 22-Feb-2016
1450,Revenue,CAHD,Home Care - Elderly - South,Day Care / Social Activities,NAS Services Limited,636.24, 22-Feb-2016
1451,Revenue,CAHD,Home Care - Elderly - South,Supported Living,NAS Services Limited,19.28, 22-Feb-2016
1452,Revenue,CAHD,Home Care - Elderly - North,Day Care / Social Activities,NAS Services Limited,1161.62, 22-Feb-2016
1453,Revenue,CAHD,Home Care - Elderly - North,Supported Living,NAS Services Limited,318.12, 22-Feb-2016
1454,Revenue,CAHD,Home Care - Elderly - South,Day Care / Social Activities,NAS Services Limited,467.54, 22-Feb-2016
1455,Revenue,CAHD,Home Care - Elderly - South,Supported Living,NAS Services Limited,28.92, 22-Feb-2016
1456,Revenue,CAHD,Home Care - Elderly - North,Day Care / Social Activities,NAS Services Limited,1021.84, 22-Feb-2016
1457,Revenue,CAHD,Home Care - Elderly - North,Supported Living,NAS Services Limited,289.20, 22-Feb-2016
1458,Revenue,CAHD,Bed Purchasing - Southmead Hospital,Permanent Residential,Nashley House Retirement Home,1270.80, 16-Feb-2016
1459,Revenue,CAHD,Newton House,Security Systems,National Security Group,70.20, 26-Feb-2016
1460,Revenue,CAHD,Bed Purchasing - North,Permanent Residential,National Star College,5035.04, 16-Feb-2016
1461,Revenue,CAHD,Training - Adult Services,Training Expenses,Nelson Training Limited,1171.49, 08-Feb-2016
1462,Revenue,CAHD,Home Care - Elderly - South,Day Care / Social Activities,Nestor T/A Allied Healthcare,69.30, 05-Feb-2016
1463,Revenue,CAHD,Home Care - Elderly - South,Other Small Contracts,Nestor T/A Allied Healthcare,2357.80, 05-Feb-2016
1464,Revenue,CAHD,Home Care - Elderly - North,Other Small Contracts,Nestor T/A Allied Healthcare,7241.85, 05-Feb-2016
1465,Revenue,CAHD,Day Care - North,Day Care / Social Activities,Nestor T/A Allied Healthcare,38.50, 05-Feb-2016
1466,Revenue,CAHD,Home care - Elderly MH - North,Other Small Contracts,Nestor T/A Allied Healthcare,46.20, 05-Feb-2016
1467,Revenue,CAHD,Home Care - Elderly - South,Day Care / Social Activities,Nestor T/A Allied Healthcare,69.30, 15-Feb-2016
1468,Revenue,CAHD,Home Care - Elderly - South,Other Small Contracts,Nestor T/A Allied Healthcare,2430.92, 15-Feb-2016
1469,Revenue,CAHD,Home Care - Elderly - North,Other Small Contracts,Nestor T/A Allied Healthcare,7099.40, 15-Feb-2016
1470,Revenue,CAHD,Day Care - North,Day Care / Social Activities,Nestor T/A Allied Healthcare,38.50, 15-Feb-2016
1471,Revenue,CAHD,Home care - Elderly MH - North,Other Small Contracts,Nestor T/A Allied Healthcare,53.90, 15-Feb-2016
1472,Revenue,CAHD,Home Care - Elderly - South,Day Care / Social Activities,Nestor T/A Allied Healthcare,69.30, 17-Feb-2016
1473,Revenue,CAHD,Home Care - Elderly - South,Other Small Contracts,Nestor T/A Allied Healthcare,2450.24, 17-Feb-2016
1474,Revenue,CAHD,Home Care - Elderly - North,Other Small Contracts,Nestor T/A Allied Healthcare,7153.30, 17-Feb-2016
1475,Revenue,CAHD,Day Care - North,Day Care / Social Activities,Nestor T/A Allied Healthcare,38.50, 17-Feb-2016
1476,Revenue,CAHD,Home care - Elderly MH - North,Other Small Contracts,Nestor T/A Allied Healthcare,46.20, 17-Feb-2016
1477,Revenue,CAHD,Home Care - Elderly - South,Other Small Contracts,Network Health & Social Care T/A Network Ventures,985.52, 25-Feb-2016
1478,Revenue,CAHD,Home Care - Elderly - North,Other Small Contracts,Network Health & Social Care T/A Network Ventures,2033.12, 25-Feb-2016
1479,Revenue,CAHD,Home Care - Elderly - South,Other Small Contracts,Network Health & Social Care T/A Network Ventures,1819.72, 25-Feb-2016
1480,Revenue,CAHD,Home Care - Elderly - North,Other Small Contracts,Network Health & Social Care T/A Network Ventures,2079.68, 25-Feb-2016
1481,Revenue,CAHD,Home Care - Elderly - South,Other Small Contracts,Network Health & Social Care T/A Network Ventures,1881.80, 25-Feb-2016
1482,Revenue,CAHD,Home Care - Elderly - North,Other Small Contracts,Network Health & Social Care T/A Network Ventures,1986.56, 25-Feb-2016
1483,Revenue,CAHD,Home Care - Elderly - South,Other Small Contracts,Network Health & Social Care T/A Network Ventures,1877.92, 25-Feb-2016
1484,Revenue,CAHD,Home Care - Elderly - North,Other Small Contracts,Network Health & Social Care T/A Network Ventures,2102.96, 25-Feb-2016
1485,Revenue,CAHD,Home Care - Elderly - South,Other Small Contracts,Network Health & Social Care T/A Network Ventures,1908.96, 25-Feb-2016
1486,Revenue,CAHD,Home Care - Elderly - North,Other Small Contracts,Network Health & Social Care T/A Network Ventures,2068.04, 25-Feb-2016
1487,Revenue,CAHD,Social Lettings Agency,Fees - General,Individual,10.00, 04-Feb-2016
1488,Revenue,CAHD,Social Lettings Agency,Other Supplies & Services,Individual,565.00, 04-Feb-2016
1489,Revenue,CAHD,Purchase of Non-Res Care - North,Day Care / Social Activities,Newcross Healthcare Solutions Limited,1642.20, 19-Feb-2016
1490,Revenue,CAHD,Purchase of RAC places,Other L.A.'s - General,North Somerset Council,20462.40, 05-Feb-2016
1491,Revenue,CAHD,Purchase of RAC places,Other L.A.'s - General,North Somerset Council,10474.80, 05-Feb-2016
1492,Revenue,CAHD,Information Systems - Software,Software Support & Maintenance,Northgate Public Services (UK) Ltd,4500.00, 25-Feb-2016
1493,Revenue,CAHD,Bed Purchasing - South,Permanent Residential,Norwood   Broadway House,5027.16, 16-Feb-2016
1494,Revenue,CAHD,Bed Purchasing - Southmead Hospital,Respite Planned - Residential,Notaro Homes Ltd  Queensmead Court,3080.00, 16-Feb-2016
1495,Revenue,CAHD,Bed Purchasing - Southmead Hospital,Respite Emergency - Residential,Notaro Homes Ltd  Queensmead Court,3080.00, 16-Feb-2016
1496,Revenue,CAHD,Bed Purchasing - South,Permanent Residential,Notaro Homes Ltd  Queensmead Court,1905.16, 16-Feb-2016
1497,Revenue,CAHD,Bed Purchasing - Southmead Hospital,Permanent Residential,Notaro Homes Ltd  Queensmead Court,1399.96, 16-Feb-2016
1498,Revenue,CAHD,MH Purchasing - Younger,Permanent Residential,Notaro Homes Ltd  Queensmead Court,3032.40, 16-Feb-2016
1499,Revenue,CAHD,Bed Purchasing - South,Permanent Residential,Nova House Care Home,954.84, 16-Feb-2016
1500,Revenue,CAHD,Home Care - Elderly - South,Day Care / Social Activities,Nursing Solutions Limited,47.64, 03-Feb-2016
1501,Revenue,CAHD,Home Care - Elderly - South,Other Small Contracts,Nursing Solutions Limited,1286.28, 03-Feb-2016
1502,Revenue,CAHD,Home Care - Elderly - South,Day Care / Social Activities,Nursing Solutions Limited,47.64, 10-Feb-2016
1503,Revenue,CAHD,Home Care - Elderly - South,Other Small Contracts,Nursing Solutions Limited,1278.34, 10-Feb-2016
1504,Revenue,CAHD,Home Care - Elderly - South,Day Care / Social Activities,Nursing Solutions Limited,47.64, 16-Feb-2016
1505,Revenue,CAHD,Home Care - Elderly - South,Other Small Contracts,Nursing Solutions Limited,1516.54, 16-Feb-2016
1506,Revenue,CAHD,Home Care - Elderly - South,Day Care / Social Activities,Nursing Solutions Limited,23.82, 23-Feb-2016
1507,Revenue,CAHD,Home Care - Elderly - South,Other Small Contracts,Nursing Solutions Limited,1528.45, 23-Feb-2016
1508,Revenue,CAHD,Section 117 Placements MH Younger,Permanent Nursing,Oaklands,6154.56, 16-Feb-2016
1509,Revenue,CAHD,Alexandra Way,Refuse Collection Charges,OCS Group UK Ltd,481.26, 19-Feb-2016
1510,Revenue,CAHD,Bed purchasing -S28A  Under 65 - North,Permanent Residential,Orchard End Limited,7645.60, 16-Feb-2016
1511,Revenue,CAHD,Bed Purchasing - North,Permanent Residential,Osbourne Court,2006.16, 16-Feb-2016
1512,Revenue,CAHD,Bed Purchasing - North,Permanent Residential,Osbourne Court,14034.41, 16-Feb-2016
1513,Revenue,CAHD,Bed Purchasing - North,Permanent Residential,Osbourne Court,2256.48, 16-Feb-2016
1514,Revenue,CAHD,Swift Dump Code,Permanent Residential,Osbourne Court,1298.79, 16-Feb-2016
1515,Revenue,CAHD,Bed Purchasing - Southmead Hospital,Permanent Residential,Osbourne Court,973.08, 16-Feb-2016
1516,Revenue,CAHD,Bed Purchasing - North,Permanent Residential,Osbourne Court,2204.80, 16-Feb-2016
1517,Revenue,CAHD,Bed Purchasing - North,Permanent Residential,Osbourne Court,1831.04, 16-Feb-2016
1518,Revenue,CAHD,Bed Purchasing - North,Permanent Residential,Osbourne Court,2063.12, 16-Feb-2016
1519,Revenue,CAHD,Bed Purchasing - North,Permanent Residential,Osbourne Court,2683.08, 16-Feb-2016
1520,Revenue,CAHD,Bed Purchasing - Elderly S117- North,Permanent Residential,Osbourne Court,1948.00, 16-Feb-2016
1521,Revenue,CAHD,Bed Purchasing - Southmead Hospital,Permanent Nursing,Palm Court Nursing Home,1617.72, 16-Feb-2016
1522,Revenue,CAHD,Bed Purchasing - South,Permanent Residential,Park Farm House,1800.16, 16-Feb-2016
1523,Revenue,CAHD,Bed Purchasing - North,Permanent Residential,Park Farm House,826.76, 16-Feb-2016
1524,Revenue,CAHD,Bed Purchasing - South,Permanent Residential,Park Farm House,1627.56, 16-Feb-2016
1525,Revenue,CAHD,Bed Purchasing - Southmead Hospital,Permanent Residential,Park Farm House,2600.00, 16-Feb-2016
1526,Revenue,CAHD,Bed Purchasing - South,Permanent Residential,Park Hall,5617.76, 16-Feb-2016
1527,Revenue,CAHD,Bed Purchasing - North,Permanent Residential,Park Hall,5258.76, 16-Feb-2016
1528,Revenue,CAHD,Bed Purchasing - South,Permanent Residential,Park Hall,4903.60, 16-Feb-2016
1529,Revenue,CAHD,Bed Purchasing - South,Permanent Residential,Park Hall,2579.24, 16-Feb-2016
1530,Revenue,CAHD,Bed purchasing - S28A Under 65 - South,Permanent Residential,Park Hall,4734.56, 16-Feb-2016
1531,Revenue,CAHD,Bed Purchasing - South,Permanent Residential,Park Hall,4966.56, 16-Feb-2016
1532,Revenue,CAHD,Bed Purchasing - North,Permanent Residential,Park Hall,4371.04, 16-Feb-2016
1533,Revenue,CAHD,Bed Purchasing - South,Permanent Residential,Park Hall,10884.24, 16-Feb-2016
1534,Revenue,CAHD,Bed purchasing -S28A  Under 65 - North,Permanent Residential,Park Hall,5996.24, 16-Feb-2016
1535,Revenue,CAHD,Bed purchasing - S28A Under 65 - South,Permanent Residential,Park Hall,5733.80, 16-Feb-2016
1536,Revenue,CAHD,18-25 Year Olds,Permanent Residential,Park Hall,7259.36, 16-Feb-2016
1537,Revenue,CAHD,Social Lettings Agency,Fees - General,Individual,10.00, 26-Feb-2016
1538,Revenue,CAHD,Social Lettings Agency,Other Supplies & Services,Individual,565.00, 26-Feb-2016
1539,Revenue,CAHD,Bed Purchasing - South,Permanent Residential,Penleigh House Care Home,4610.80, 16-Feb-2016
1540,Revenue,CAHD,Bed Purchasing - South,Permanent Residential,Penleigh House Care Home,6501.16, 16-Feb-2016
1541,Revenue,CAHD,Bed Purchasing - South,Permanent Residential,Penleigh House Care Home,4361.48, 16-Feb-2016
1542,Revenue,CAHD,Bed purchasing - S28A Under 65 - South,Permanent Residential,Penleigh House Care Home,5558.12, 16-Feb-2016
1543,Revenue,CAHD,Bed Purchasing - South,Permanent Residential,Penleigh House Care Home,5020.84, 16-Feb-2016
1544,Revenue,CAHD,Information Systems - Software,Agency Staff (Admin/Support Staff) Pay,Permanent Futures Ltd,9000.00, 29-Feb-2016
1545,Revenue,CAHD,Community Promoting Independence Team,Care Management/Assessment Staff Pay,Piers Meadows Recruitment Limited,1208.18, 24-Feb-2016
1546,Revenue,CAHD,Community Promoting Independence Team,Care Management/Assessment Staff Pay,Piers Meadows Recruitment Limited,1183.88, 12-Feb-2016
1547,Revenue,CAHD,Community Promoting Independence Team,Care Management/Assessment Staff Pay,Piers Meadows Recruitment Limited,1218.53, 19-Feb-2016
1548,Revenue,CAHD,Community Promoting Independence Team,Care Management/Assessment Staff Pay,Piers Meadows Recruitment Limited,696.40, 26-Feb-2016
1549,Revenue,CAHD,Supporting People Programme,Grants to Voluntary Bodies,Places for People,1146.50, 01-Feb-2016
1550,Revenue,CAHD,Home Care - Elderly - North,Day Care / Social Activities,Premier Homecare Limited,82.98, 01-Feb-2016
1551,Revenue,CAHD,Home Care - Elderly - North,Other Small Contracts,Premier Homecare Limited,10736.69, 01-Feb-2016
1552,Revenue,CAHD,Home care - Elderly MH - North,Other Small Contracts,Premier Homecare Limited,129.08, 01-Feb-2016
1553,Revenue,CAHD,Elderly MH Day Care North,Day Care / Social Activities,Premier Homecare Limited,73.76, 01-Feb-2016
1554,Revenue,CAHD,Home Care - Elderly - North,Day Care / Social Activities,Premier Homecare Limited,82.98, 10-Feb-2016
1555,Revenue,CAHD,Home Care - Elderly - North,Other Small Contracts,Premier Homecare Limited,10815.06, 10-Feb-2016
1556,Revenue,CAHD,Home care - Elderly MH - North,Other Small Contracts,Premier Homecare Limited,129.08, 10-Feb-2016
1557,Revenue,CAHD,Elderly MH Day Care North,Day Care / Social Activities,Premier Homecare Limited,73.76, 10-Feb-2016
1558,Revenue,CAHD,Home Care - Elderly - North,Day Care / Social Activities,Premier Homecare Limited,82.98, 15-Feb-2016
1559,Revenue,CAHD,Home Care - Elderly - North,Other Small Contracts,Premier Homecare Limited,10520.02, 15-Feb-2016
1560,Revenue,CAHD,Home care - Elderly MH - North,Other Small Contracts,Premier Homecare Limited,124.47, 15-Feb-2016
1561,Revenue,CAHD,Elderly MH Day Care North,Day Care / Social Activities,Premier Homecare Limited,73.76, 15-Feb-2016
1562,Revenue,CAHD,Home Care - Elderly - North,Day Care / Social Activities,Premier Homecare Limited,82.98, 19-Feb-2016
1563,Revenue,CAHD,Home Care - Elderly - North,Other Small Contracts,Premier Homecare Limited,10538.46, 19-Feb-2016
1564,Revenue,CAHD,Home care - Elderly MH - North,Other Small Contracts,Premier Homecare Limited,129.08, 19-Feb-2016
1565,Revenue,CAHD,Elderly MH Day Care North,Day Care / Social Activities,Premier Homecare Limited,69.15, 19-Feb-2016
1566,Revenue,CAHD,Home Care - Elderly - North,Day Care / Social Activities,Premier Homecare Limited,82.98, 26-Feb-2016
1567,Revenue,CAHD,Home Care - Elderly - North,Other Small Contracts,Premier Homecare Limited,10132.78, 26-Feb-2016
1568,Revenue,CAHD,Home care - Elderly MH - North,Other Small Contracts,Premier Homecare Limited,129.08, 26-Feb-2016
1569,Revenue,CAHD,Elderly MH Day Care North,Day Care / Social Activities,Premier Homecare Limited,73.76, 26-Feb-2016
1570,Revenue,CAHD,Home Care - Elderly - South,Other Small Contracts,Prestige Nursing,411.99, 10-Feb-2016
1571,Revenue,CAHD,Home Care - Elderly - North,Other Small Contracts,Prestige Nursing,1382.16, 10-Feb-2016
1572,Revenue,CAHD,Day Care - South,Day Care / Social Activities,Prestige Nursing,124.04, 10-Feb-2016
1573,Revenue,CAHD,Home Care - Elderly - South,Other Small Contracts,Prestige Nursing,354.40, 10-Feb-2016
1574,Revenue,CAHD,Home Care - Elderly - North,Other Small Contracts,Prestige Nursing,992.32, 10-Feb-2016
1575,Revenue,CAHD,Day Care - South,Day Care / Social Activities,Prestige Nursing,119.61, 10-Feb-2016
1576,Revenue,CAHD,Home Care - Elderly - South,Other Small Contracts,Prestige Nursing,345.54, 10-Feb-2016
1577,Revenue,CAHD,Home Care - Elderly - North,Other Small Contracts,Prestige Nursing,1545.17, 10-Feb-2016
1578,Revenue,CAHD,Day Care - South,Day Care / Social Activities,Prestige Nursing,124.04, 10-Feb-2016
1579,Revenue,CAHD,Home Care - Elderly - South,Other Small Contracts,Prestige Nursing,653.45, 10-Feb-2016
1580,Revenue,CAHD,Home Care - Elderly - North,Other Small Contracts,Prestige Nursing,1377.73, 10-Feb-2016
1581,Revenue,CAHD,Day Care - South,Day Care / Social Activities,Prestige Nursing,124.04, 10-Feb-2016
1582,Revenue,CAHD,Home Care - Elderly - South,Other Small Contracts,Prestige Nursing,649.02, 10-Feb-2016
1583,Revenue,CAHD,Home Care - Elderly - North,Other Small Contracts,Prestige Nursing,1409.40, 10-Feb-2016
1584,Revenue,CAHD,Day Care - South,Day Care / Social Activities,Prestige Nursing,124.04, 10-Feb-2016
1585,Revenue,CAHD,Home Care - Elderly - South,Other Small Contracts,Prestige Nursing,657.88, 10-Feb-2016
1586,Revenue,CAHD,Home Care - Elderly - North,Other Small Contracts,Prestige Nursing,1382.16, 10-Feb-2016
1587,Revenue,CAHD,Day Care - South,Day Care / Social Activities,Prestige Nursing,124.04, 10-Feb-2016
1588,Revenue,CAHD,Home Care - Elderly - South,Other Small Contracts,Prestige Nursing,649.02, 19-Feb-2016
1589,Revenue,CAHD,Home Care - Elderly - North,Other Small Contracts,Prestige Nursing,1377.73, 19-Feb-2016
1590,Revenue,CAHD,Day Care - South,Day Care / Social Activities,Prestige Nursing,124.04, 19-Feb-2016
1591,Revenue,CAHD,Home Care - Elderly - South,Other Small Contracts,Prestige Nursing,631.30, 19-Feb-2016
1592,Revenue,CAHD,Home Care - Elderly - North,Other Small Contracts,Prestige Nursing,1395.45, 19-Feb-2016
1593,Revenue,CAHD,Day Care - South,Day Care / Social Activities,Prestige Nursing,119.61, 19-Feb-2016
1594,Revenue,CAHD,Kingswood Centre - Maple Suite,Agency Staff (Operational)/PCT Pay,Prestige Nursing,579.60, 17-Feb-2016
1595,Revenue,CAHD,Kingswood Centre - Maple Suite,Agency Staff (Operational)/PCT Pay,Prestige Nursing,1255.80, 17-Feb-2016
1596,Revenue,CAHD,Kingswood Centre - Maple Suite,Agency Staff (Operational)/PCT Pay,Prestige Nursing,686.20, 17-Feb-2016
1597,Revenue,CAHD,Kingswood Centre - Maple Suite,Agency Staff (Operational)/PCT Pay,Prestige Nursing,656.20, 16-Feb-2016
1598,Revenue,CAHD,Turnberries,Agency Staff (Operational)/PCT Pay,Prestige Nursing,1502.90, 05-Feb-2016
1599,Revenue,CAHD,Turnberries,Agency Staff (Operational)/PCT Pay,Prestige Nursing,706.20, 05-Feb-2016
1600,Revenue,CAHD,Turnberries,Agency Staff (Operational)/PCT Pay,Prestige Nursing,1500.90, 08-Feb-2016
1601,Revenue,CAHD,Turnberries,Agency Staff (Operational)/PCT Pay,Prestige Nursing,1380.20, 08-Feb-2016
1602,Revenue,CAHD,Turnberries,Agency Staff (Operational)/PCT Pay,Prestige Nursing,994.90, 12-Feb-2016
1603,Revenue,CAHD,Bed Purchasing - North,Permanent Nursing,Ravenswood,2218.80, 16-Feb-2016
1604,Revenue,CAHD,Bed Purchasing - Elderly S117- North,Permanent Residential,Real Life Options,6704.28, 16-Feb-2016
1605,Revenue,CAHD,Bed Purchasing - Elderly S117- North,Permanent Nursing,Redholme Memory Care Limited,2013.36, 16-Feb-2016
1606,Revenue,CAHD,Supporting People Programme,Grants to Voluntary Bodies,Redland Housing Association Ltd,745.72, 01-Feb-2016
1607,Revenue,CAHD,Bed Purchasing - Southmead Hospital,Permanent Nursing,Regent House,1306.84, 16-Feb-2016
1608,Revenue,CAHD,Bed Purchasing - South,Permanent Nursing,Regent House,2121.60, 16-Feb-2016
1609,Revenue,CAHD,Bed Purchasing - South,Permanent Nursing,Regent House,2412.72, 16-Feb-2016
1610,Revenue,CAHD,Bed Purchasing - South,Permanent Nursing,Regent House,1684.88, 16-Feb-2016
1611,Revenue,CAHD,Bed Purchasing - South,Permanent Nursing,Regent House,1992.36, 16-Feb-2016
1612,Revenue,CAHD,Bed Purchasing - South,Permanent Nursing,Regent House,2038.84, 16-Feb-2016
1613,Revenue,CAHD,Bed Purchasing - South,Permanent Nursing,Regent House,1695.80, 16-Feb-2016
1614,Revenue,CAHD,Bed Purchasing - South,Permanent Nursing,Regent House,1766.68, 16-Feb-2016
1615,Revenue,CAHD,Bed Purchasing - Southmead Hospital,Permanent Nursing,Regent House,3164.00, 16-Feb-2016
1616,Revenue,CAHD,Bed Purchasing - Southmead Hospital,Permanent Nursing,Regent House,1795.81, 16-Feb-2016
1617,Revenue,CAHD,Bed Purchasing - Southmead Hospital,Permanent Nursing,Regent House,2007.40, 16-Feb-2016
1618,Revenue,CAHD,Bed Purchasing - North,Permanent Nursing,Regent House,2018.20, 16-Feb-2016
1619,Revenue,CAHD,Bed Purchasing - North,Permanent Nursing,Regent House,2081.48, 16-Feb-2016
1620,Revenue,CAHD,Bed Purchasing - Southmead Hospital,Permanent Nursing,Regent House,3164.00, 16-Feb-2016
1621,Revenue,CAHD,Bed Purchasing - South,Permanent Nursing,Regent House,1687.76, 16-Feb-2016
1622,Revenue,CAHD,Bed Purchasing - South,Permanent Nursing,Regent House,1202.68, 16-Feb-2016
1623,Revenue,CAHD,Bed Purchasing - South,Permanent Nursing,Regent House,2374.16, 16-Feb-2016
1624,Revenue,CAHD,Bed Purchasing - South,Permanent Residential,Ridgeway House,3540.96, 16-Feb-2016
1625,Revenue,CAHD,Bed Purchasing - Southmead Hospital,Permanent Nursing,Riversway Nursing Home,896.00, 16-Feb-2016
1626,Revenue,CAHD,Bed Purchasing - Southmead Hospital,Permanent Nursing,Riversway Nursing Home,2715.32, 16-Feb-2016
1627,Revenue,CAHD,Bed Purchasing - LD S28A- Over 65- South,Permanent Residential,Rockleaze,2100.48, 16-Feb-2016
1628,Revenue,CAHD,Bed Purchasing - South,Permanent Residential,Rockleaze,2437.00, 16-Feb-2016
1629,Revenue,CAHD,Bed Purchasing - South,Permanent Residential,Rockleaze,1438.16, 16-Feb-2016
1630,Revenue,CAHD,Bed Purchasing - South,Permanent Residential,Rosedale House,1527.28, 16-Feb-2016
1631,Revenue,CAHD,Bed Purchasing - South,Permanent Residential,Rosewood Lodge & Brook House,4620.12, 16-Feb-2016
1632,Revenue,CAHD,Bed and Breakfast,Storage & Removal,Safestore Ltd,453.08, 25-Feb-2016
1633,Revenue,CAHD,Bed Purchasing - South,Permanent Nursing,Saffron Gardens Nursing Home,3234.55, 16-Feb-2016
1634,Revenue,CAHD,Bed Purchasing - South,Permanent Nursing,Saffron Gardens Nursing Home,2011.96, 16-Feb-2016
1635,Revenue,CAHD,Bed Purchasing - South,Permanent Nursing,Saffron Gardens Nursing Home,2113.48, 16-Feb-2016
1636,Revenue,CAHD,Bed Purchasing - South,Permanent Nursing,Saffron Gardens Nursing Home,2659.20, 16-Feb-2016
1637,Revenue,CAHD,Bed Purchasing - South,Permanent Nursing,Saffron Gardens Nursing Home,2326.80, 16-Feb-2016
1638,Revenue,CAHD,Bed Purchasing - Southmead Hospital,Permanent Nursing,Saffron Gardens Nursing Home,2003.92, 16-Feb-2016
1639,Revenue,CAHD,Bed purchasing - Elderly S117 - South,Permanent Nursing,Saffron Gardens Nursing Home,2832.00, 16-Feb-2016
1640,Revenue,CAHD,Bed Purchasing - Southmead Hospital,Permanent Nursing,Saffron Gardens Nursing Home,1166.80, 16-Feb-2016
1641,Revenue,CAHD,Bed Purchasing - Southmead Hospital,Permanent Nursing,Saffron Gardens Nursing Home,1176.04, 16-Feb-2016
1642,Revenue,CAHD,Bed Purchasing - South,Permanent Nursing,Saffron Gardens Nursing Home,2090.64, 16-Feb-2016
1643,Revenue,CAHD,Bed Purchasing - North,Permanent Nursing,Saffron Gardens Nursing Home,2617.92, 16-Feb-2016
1644,Revenue,CAHD,Bed Purchasing - North,Permanent Nursing,Saffron Gardens Nursing Home,2290.68, 16-Feb-2016
1645,Revenue,CAHD,South Glos Users in South Glos Homes,Permanent Nursing,Saffron Gardens Nursing Home,960.00, 16-Feb-2016
1646,Revenue,CAHD,Bed Purchasing - Southmead Hospital,Permanent Nursing,Saffron Gardens Nursing Home,2072.60, 16-Feb-2016
1647,Revenue,CAHD,Bed Purchasing - South,Permanent Nursing,Saffron Gardens Nursing Home,1890.76, 16-Feb-2016
1648,Revenue,CAHD,Bed Purchasing - South,Permanent Residential,Saffron Gardens Nursing Home,1308.56, 16-Feb-2016
1649,Revenue,CAHD,Bed Purchasing - South,Permanent Residential,Salters Hill Barn,2027.52, 16-Feb-2016
1650,Revenue,CAHD,Bed Purchasing - Southmead Hospital,Permanent Residential,Sanctuary Care Ltd,1924.64, 16-Feb-2016
1651,Revenue,CAHD,Learning Difficulties PSL,Rent,Individual,1650.00, 01-Feb-2016
1652,Revenue,CAHD,Bed Purchasing - South,Permanent Residential,Scope   Accounts Dept,3107.40, 16-Feb-2016
1653,Revenue,CAHD,Supporting People Programme,Grants to Voluntary Bodies,Second Step Housing Association,13599.72, 01-Feb-2016
1654,Revenue,CAHD,Supporting People Programme,Grants to Voluntary Bodies,Second Step Housing Association,12004.51, 01-Feb-2016
1655,Revenue,CAHD,Home Care - Elderly - South,Day Care / Social Activities,Selborne Care Ltd,799.00, 11-Feb-2016
1656,Revenue,CAHD,Home Care - Elderly - South,Other Small Contracts,Selborne Care Ltd,68.00, 11-Feb-2016
1657,Revenue,CAHD,Home Care - Elderly - South,Supported Living,Selborne Care Ltd,1908.25, 11-Feb-2016
1658,Revenue,CAHD,Home Care - Elderly - North,Day Care / Social Activities,Selborne Care Ltd,603.50, 11-Feb-2016
1659,Revenue,CAHD,Home Care - Elderly - North,Supported Living,Selborne Care Ltd,102.00, 11-Feb-2016
1660,Revenue,CAHD,Home Care - Elderly - South,Day Care / Social Activities,Selborne Care Ltd,790.50, 12-Feb-2016
1661,Revenue,CAHD,Home Care - Elderly - South,Supported Living,Selborne Care Ltd,1691.50, 12-Feb-2016
1662,Revenue,CAHD,Home Care - Elderly - North,Day Care / Social Activities,Selborne Care Ltd,603.50, 12-Feb-2016
1663,Revenue,CAHD,Home Care - Elderly - North,Supported Living,Selborne Care Ltd,102.00, 12-Feb-2016
1664,Revenue,CAHD,Home Care - Elderly - South,Day Care / Social Activities,Selborne Care Ltd,790.50, 12-Feb-2016
1665,Revenue,CAHD,Home Care - Elderly - South,Supported Living,Selborne Care Ltd,1780.75, 12-Feb-2016
1666,Revenue,CAHD,Home Care - Elderly - North,Day Care / Social Activities,Selborne Care Ltd,603.50, 12-Feb-2016
1667,Revenue,CAHD,Home Care - Elderly - North,Supported Living,Selborne Care Ltd,102.00, 12-Feb-2016
1668,Revenue,CAHD,Purchase of Non-Res Care - North,Day Care / Social Activities,Selborne Care Ltd,952.00, 26-Feb-2016
1669,Revenue,CAHD,Purchase of Non-Res Care - North,Day Care / Social Activities,Selborne Care Ltd,714.00, 16-Feb-2016
1670,Revenue,CAHD,Home Care - Elderly - South,Supported Living,Selborrne House,3491.36, 16-Feb-2016
1671,Revenue,CAHD,Home Care - Elderly - South,Supported Living,Selborrne House,3491.36, 16-Feb-2016
1672,Revenue,CAHD,Home Care - Elderly - South,Supported Living,Selborrne House,1820.92, 16-Feb-2016
1673,Revenue,CAHD,Bed Purchasing - South,Permanent Residential,Shaldon House (Positive Care Ltd),2252.04, 16-Feb-2016
1674,Revenue,CAHD,Bed Purchasing - South,Permanent Nursing,Shaw Healthcare Ltd,2110.72, 16-Feb-2016
1675,Revenue,CAHD,Bed Purchasing - South,Permanent Nursing,Shaw Healthcare Ltd,2100.88, 16-Feb-2016
1676,Revenue,CAHD,Bed purchasing - S28A Under 65 - South,Permanent Residential,Shaw Healthcare Ltd,9998.32, 16-Feb-2016
1677,Revenue,CAHD,Bed purchasing - S28A Under 65 - South,Permanent Residential,Shaw Healthcare Ltd,9865.72, 16-Feb-2016
1678,Revenue,CAHD,Bed Purchasing - South,Permanent Residential,Shaw Healthcare Ltd,10013.56, 16-Feb-2016
1679,Revenue,CAHD,Bed Purchasing - South,Permanent Residential,Shaw Healthcare Ltd,4001.68, 16-Feb-2016
1680,Revenue,CAHD,Bed Purchasing - S28A - Over 65- North,Permanent Residential,Shaw Healthcare Ltd,4325.44, 16-Feb-2016
1681,Revenue,CAHD,Bed Purchasing - S28A - Over 65- North,Permanent Residential,Shaw Healthcare Ltd,4360.12, 16-Feb-2016
1682,Revenue,CAHD,Bed Purchasing - LD S28A- Over 65- South,Permanent Residential,Shaw Healthcare Ltd,1099.67, 16-Feb-2016
1683,Revenue,CAHD,Bed Purchasing - LD S28A- Over 65- South,Permanent Residential,Shaw Healthcare Ltd,4537.04, 16-Feb-2016
1684,Revenue,CAHD,Bed Purchasing - S28A - Over 65- North,Permanent Residential,Shaw Healthcare Ltd,6895.88, 16-Feb-2016
1685,Revenue,CAHD,Bed Purchasing - North,Permanent Residential,Shaw Healthcare Ltd,4185.36, 16-Feb-2016
1686,Revenue,CAHD,Bed Purchasing - Elderly S117- North,Permanent Nursing,Shaw Healthcare Ltd,2872.00, 16-Feb-2016
1687,Revenue,CAHD,Home Care - Elderly - North,Day Care / Social Activities,Silva Care Limited,1082.62, 03-Feb-2016
1688,Revenue,CAHD,Supported Living - South,Private & Voluntary Home Care,Silva Care Limited,4415.44, 17-Feb-2016
1689,Revenue,CAHD,Purchase of Non-Res Care - North,Day Care / Social Activities,Silva Care Limited,5359.36, 17-Feb-2016
1690,Revenue,CAHD,Social Lettings Agency,Other Supplies & Services,Individual,640.72, 02-Feb-2016
1691,Revenue,CAHD,Home Care - Elderly - North,Supported Living,Smile Ind Living Support Limited,3060.80, 16-Feb-2016
1692,Revenue,CAHD,Home Care - Elderly - North,Supported Living,Smile Ind Living Support Limited,3060.80, 16-Feb-2016
1693,Revenue,CAHD,Home Care - Elderly - North,Supported Living,Smile Ind Living Support Limited,3060.80, 16-Feb-2016
1694,Revenue,CAHD,Home Care - Elderly - South,Day Care / Social Activities,Smile Independent Living Support Limited,317.56, 10-Feb-2016
1695,Revenue,CAHD,Home Care - Elderly - South,Other Small Contracts,Smile Independent Living Support Limited,233.50, 10-Feb-2016
1696,Revenue,CAHD,Home Care - Elderly - North,Day Care / Social Activities,Smile Independent Living Support Limited,663.14, 10-Feb-2016
1697,Revenue,CAHD,Home Care - Elderly - North,Other Small Contracts,Smile Independent Living Support Limited,280.20, 10-Feb-2016
1698,Revenue,CAHD,Home Care - Elderly - North,Supported Living,Smile Independent Living Support Limited,205.48, 10-Feb-2016
1699,Revenue,CAHD,Home Care - Elderly - South,Day Care / Social Activities,Smile Independent Living Support Limited,326.90, 08-Feb-2016
1700,Revenue,CAHD,Home Care - Elderly - South,Other Small Contracts,Smile Independent Living Support Limited,233.50, 08-Feb-2016
1701,Revenue,CAHD,Home Care - Elderly - North,Day Care / Social Activities,Smile Independent Living Support Limited,667.81, 08-Feb-2016
1702,Revenue,CAHD,Home Care - Elderly - North,Other Small Contracts,Smile Independent Living Support Limited,280.20, 08-Feb-2016
1703,Revenue,CAHD,Home Care - Elderly - North,Supported Living,Smile Independent Living Support Limited,163.45, 08-Feb-2016
1704,Revenue,CAHD,Home Care - Elderly - South,Day Care / Social Activities,Smile Independent Living Support Limited,317.56, 15-Feb-2016
1705,Revenue,CAHD,Home Care - Elderly - South,Other Small Contracts,Smile Independent Living Support Limited,238.17, 15-Feb-2016
1706,Revenue,CAHD,Home Care - Elderly - North,Day Care / Social Activities,Smile Independent Living Support Limited,667.81, 15-Feb-2016
1707,Revenue,CAHD,Home Care - Elderly - North,Other Small Contracts,Smile Independent Living Support Limited,280.20, 15-Feb-2016
1708,Revenue,CAHD,Home Care - Elderly - North,Supported Living,Smile Independent Living Support Limited,205.48, 15-Feb-2016
1709,Revenue,CAHD,Home Care - Elderly - South,Day Care / Social Activities,Smile Independent Living Support Limited,317.56, 22-Feb-2016
1710,Revenue,CAHD,Home Care - Elderly - South,Other Small Contracts,Smile Independent Living Support Limited,275.53, 22-Feb-2016
1711,Revenue,CAHD,Home Care - Elderly - North,Day Care / Social Activities,Smile Independent Living Support Limited,663.14, 22-Feb-2016
1712,Revenue,CAHD,Home Care - Elderly - North,Supported Living,Smile Independent Living Support Limited,205.48, 22-Feb-2016
1713,Revenue,CAHD,Bed Purchasing - South,Permanent Residential,St Brigas,2036.64, 16-Feb-2016
1714,Revenue,CAHD,Bed Purchasing - South,Permanent Residential,St Brigas,3053.76, 16-Feb-2016
1715,Revenue,CAHD,Bed Purchasing - South,Permanent Residential,St Brigas,2056.44, 16-Feb-2016
1716,Revenue,CAHD,Bed Purchasing - Southmead Hospital,Permanent Nursing,St George Nursing Home,1330.80, 16-Feb-2016
1717,Revenue,CAHD,Bed Purchasing - South,Permanent Nursing,St George Nursing Home,1330.80, 16-Feb-2016
1718,Revenue,CAHD,Bed Purchasing - Southmead Hospital,Permanent Nursing,St George Nursing Home,1330.80, 16-Feb-2016
1719,Revenue,CAHD,Bed Purchasing - South,Permanent Nursing,St George Nursing Home,1330.80, 16-Feb-2016
1720,Revenue,CAHD,Bed Purchasing - Southmead Hospital,Permanent Nursing,St George Nursing Home,776.68, 16-Feb-2016
1721,Revenue,CAHD,Bed Purchasing - Southmead Hospital,Permanent Nursing,St George Nursing Home,1311.36, 16-Feb-2016
1722,Revenue,CAHD,Bed Purchasing - Southmead Hospital,Permanent Nursing,St George Nursing Home,1350.80, 16-Feb-2016
1723,Revenue,CAHD,Bed Purchasing - South,Permanent Nursing,St George Nursing Home,1330.80, 16-Feb-2016
1724,Revenue,CAHD,Bed Purchasing - Southmead Hospital,Permanent Nursing,St George Nursing Home,1330.80, 16-Feb-2016
1725,Revenue,CAHD,Bed Purchasing - North,Permanent Nursing,St Georges Nursing Home,2162.12, 16-Feb-2016
1726,Revenue,CAHD,Bed Purchasing - South,Permanent Nursing,St Monicas Trust,9802.78, 16-Feb-2016
1727,Revenue,CAHD,Bed Purchasing - Southmead Hospital,Permanent Nursing,St Monicas Trust,1691.40, 16-Feb-2016
1728,Revenue,CAHD,18-25 Year Olds,Day Care / Social Activities,St Roses School,1428.00, 18-Feb-2016
1729,Revenue,CAHD,18-25 Year Olds,Permanent Nursing,St Roses School,4086.00, 16-Feb-2016
1730,Revenue,CAHD,18-25 Year Olds,Respite Planned - Residential,St Roses School,553.92, 16-Feb-2016
1731,Revenue,CAHD,Bed Purchasing - Southmead Hospital,Permanent Nursing,St Teresa`S Nursing Home,2009.88, 16-Feb-2016
1732,Revenue,CAHD,Bed Purchasing - Southmead Hospital,Permanent Nursing,St Teresa`S Nursing Home,2400.00, 16-Feb-2016
1733,Revenue,CAHD,Bed Purchasing - Southmead Hospital,Permanent Nursing,St Teresa`S Nursing Home,2598.17, 16-Feb-2016
1734,Revenue,CAHD,Bed Purchasing - Southmead Hospital,Permanent Nursing,St Teresa`S Nursing Home,2400.00, 16-Feb-2016
1735,Revenue,CAHD,Bed Purchasing - Southmead Hospital,Permanent Nursing,St Teresa`S Nursing Home,919.72, 16-Feb-2016
1736,Revenue,CAHD,Tenancy Start Up Scheme,Other Supplies & Services,Individual,736.26, 08-Feb-2016
1737,Revenue,CAHD,Bed Purchasing - North,Permanent Nursing,Stanley House,6432.28, 16-Feb-2016
1738,Revenue,CAHD,Bed Purchasing - South,Permanent Nursing,Stanley House,7456.12, 16-Feb-2016
1739,Revenue,CAHD,MH Purchasing - Younger,Permanent Nursing,Stanley House,4422.40, 16-Feb-2016
1740,Revenue,CAHD,Bed Purchasing - South,Permanent Residential,Stepping Stones Re-Sett. Unit,7679.12, 16-Feb-2016
1741,Revenue,CAHD,Bed Purchasing - Elderly S117- North,Permanent Nursing,Stinchcombe Manor,5100.00, 16-Feb-2016
1742,Revenue,CAHD,Bed Purchasing - North,Permanent Nursing,Stinchcombe Manor,6314.29, 16-Feb-2016
1743,Revenue,CAHD,Younger MH non-res purchasing,Day Care / Social Activities,Supported Independence Ltd,2509.76, 18-Feb-2016
1744,Revenue,CAHD,Supported Living - North,Private & Voluntary Home Care,Supported Independence Ltd,1042.36, 05-Feb-2016
1745,Revenue,CAHD,Supporting People Programme,Grants to Voluntary Bodies,Supported Independence Ltd,3063.90, 01-Feb-2016
1746,Revenue,CAHD,Supporting People Programme,Grants to Voluntary Bodies,Supported Independent Living Schemes,4757.58, 01-Feb-2016
1747,Revenue,CAHD,Supporting People Programme,Grants to Voluntary Bodies,Supported Independent Living Schemes,6163.69, 01-Feb-2016
1748,Revenue,CAHD,Bed Purchasing - Elderly S117- North,Permanent Residential,Templemore Care Home,2256.68, 16-Feb-2016
1749,Revenue,CAHD,Home Care - Elderly - North,Day Care / Social Activities,The Ann Coleman Centre,2301.60, 16-Feb-2016
1750,Revenue,CAHD,Home Care - Elderly - North,Day Care / Social Activities,The Ann Coleman Centre,3378.20, 16-Feb-2016
1751,Revenue,CAHD,18-25 Year Olds,Permanent Residential,The Ann Coleman Centre,6122.56, 16-Feb-2016
1752,Revenue,CAHD,Bed Purchasing - North,Permanent Residential,The Beeches,1473.56, 16-Feb-2016
1753,Revenue,CAHD,Bed Purchasing - Southmead Hospital,Permanent Residential,The Beeches,1563.64, 16-Feb-2016
1754,Revenue,CAHD,Home Care - Elderly - South,Day Care / Social Activities,The Brandon Trust,3781.19, 19-Feb-2016
1755,Revenue,CAHD,Home Care - Elderly - North,Day Care / Social Activities,The Brandon Trust,535.58, 19-Feb-2016
1756,Revenue,CAHD,Home Care - Elderly - North,Other Small Contracts,The Brandon Trust,158.04, 19-Feb-2016
1757,Revenue,CAHD,Home Care - Elderly - North,Supported Living,The Brandon Trust,1826.72, 19-Feb-2016
1758,Revenue,CAHD,Home Care - Elderly - South,Day Care / Social Activities,The Brandon Trust,3803.68, 19-Feb-2016
1759,Revenue,CAHD,Home Care - Elderly - North,Day Care / Social Activities,The Brandon Trust,693.62, 19-Feb-2016
1760,Revenue,CAHD,Home Care - Elderly - North,Other Small Contracts,The Brandon Trust,140.48, 19-Feb-2016
1761,Revenue,CAHD,Home Care - Elderly - North,Supported Living,The Brandon Trust,1826.72, 19-Feb-2016
1762,Revenue,CAHD,Home Care - Elderly - South,Day Care / Social Activities,The Brandon Trust,3380.62, 19-Feb-2016
1763,Revenue,CAHD,Home Care - Elderly - North,Day Care / Social Activities,The Brandon Trust,623.38, 19-Feb-2016
1764,Revenue,CAHD,Home Care - Elderly - North,Other Small Contracts,The Brandon Trust,144.87, 19-Feb-2016
1765,Revenue,CAHD,Home Care - Elderly - North,Supported Living,The Brandon Trust,1829.62, 19-Feb-2016
1766,Revenue,CAHD,Home Care - Elderly - South,Day Care / Social Activities,The Brandon Trust,3592.42, 19-Feb-2016
1767,Revenue,CAHD,Home Care - Elderly - North,Day Care / Social Activities,The Brandon Trust,698.01, 19-Feb-2016
1768,Revenue,CAHD,Home Care - Elderly - North,Other Small Contracts,The Brandon Trust,144.87, 19-Feb-2016
1769,Revenue,CAHD,Home Care - Elderly - North,Supported Living,The Brandon Trust,1826.72, 19-Feb-2016
1770,Revenue,CAHD,Home Care - Elderly - South,Day Care / Social Activities,The Brandon Trust,3892.56, 24-Feb-2016
1771,Revenue,CAHD,Home Care - Elderly - North,Day Care / Social Activities,The Brandon Trust,408.27, 24-Feb-2016
1772,Revenue,CAHD,Home Care - Elderly - North,Other Small Contracts,The Brandon Trust,144.87, 24-Feb-2016
1773,Revenue,CAHD,Home Care - Elderly - North,Supported Living,The Brandon Trust,1826.72, 24-Feb-2016
1774,Revenue,CAHD,Bed purchasing - S28A Under 65 - South,Permanent Residential,The Brandon Trust,28640.82, 12-Feb-2016
1775,Revenue,CAHD,Community Support - North,Preventative Assistance,The Brandon Trust,2737.02, 10-Feb-2016
1776,Revenue,CAHD,Training - Adult Services,Training Expenses,The Chartered Institute of Marketing,525.00, 16-Feb-2016
1777,Revenue,CAHD,Training - Adult Services,Training Expenses,The Chartered Institute of Marketing,695.00, 16-Feb-2016
1778,Revenue,CAHD,Bed Purchasing - North,Permanent Residential,The Cidermill,1442.80, 16-Feb-2016
1779,Revenue,CAHD,Bed Purchasing - North,Permanent Nursing,The Cidermill,1098.88, 16-Feb-2016
1780,Revenue,CAHD,Bed Purchasing - North,Permanent Nursing,The Cidermill,1839.40, 16-Feb-2016
1781,Revenue,CAHD,Bed Purchasing - North,Permanent Nursing,The Cidermill,1514.80, 16-Feb-2016
1782,Revenue,CAHD,South Glos Users in South Glos Homes,Permanent Nursing,The Cidermill,544.00, 16-Feb-2016
1783,Revenue,CAHD,Bed Purchasing - Southmead Hospital,Permanent Nursing,The Cidermill,1836.00, 16-Feb-2016
1784,Revenue,CAHD,Bed Purchasing - North,Permanent Nursing,The Cidermill,962.00, 16-Feb-2016
1785,Revenue,CAHD,Bed Purchasing - North,Respite Planned - Nursing,The Cidermill,1006.00, 16-Feb-2016
1786,Revenue,CAHD,Bed Purchasing - North,Permanent Nursing,The Cidermill,1225.44, 16-Feb-2016
1787,Revenue,CAHD,Home Care - Elderly - North,Day Care / Social Activities,The Cottage,660.72, 16-Feb-2016
1788,Revenue,CAHD,Home Care - Elderly - North,Day Care / Social Activities,The Cottage,540.72, 16-Feb-2016
1789,Revenue,CAHD,18-25 Year Olds,Permanent Residential,The David Lewis Centre,5967.52, 16-Feb-2016
1790,Revenue,CAHD,Bed Purchasing - North,Permanent Residential,The Elms,1419.04, 16-Feb-2016
1791,Revenue,CAHD,Bed Purchasing - South,Permanent Residential,The Elms,8595.05, 16-Feb-2016
1792,Revenue,CAHD,Bed Purchasing - South,Respite Planned - Residential,The Gables Residential Home,982.14, 16-Feb-2016
1793,Revenue,CAHD,Bed Purchasing - Southmead Hospital,Permanent Residential,The Gables Residential Home,1385.20, 16-Feb-2016
1794,Revenue,CAHD,Bed purchasing - Elderly S117 - South,Permanent Residential,The Gables Residential Home,2271.16, 16-Feb-2016
1795,Revenue,CAHD,Bed Purchasing - Southmead Hospital,Permanent Residential,The Gables Residential Home,982.80, 16-Feb-2016
1796,Revenue,CAHD,Bed Purchasing - South,Permanent Residential,The Gables Residential Home,1045.80, 16-Feb-2016
1797,Revenue,CAHD,Bed Purchasing - South,Permanent Residential,The Garden House,755.44, 16-Feb-2016
1798,Revenue,CAHD,Bed Purchasing - South,Permanent Residential,The Garden House,1951.32, 16-Feb-2016
1799,Revenue,CAHD,Bed Purchasing - South,Respite Emergency - Residential,The Garden House,1300.00, 16-Feb-2016
1800,Revenue,CAHD,Bed Purchasing - North,Permanent Residential,The Garden House,1411.36, 16-Feb-2016
1801,Revenue,CAHD,Bed Purchasing - North,Permanent Residential,The Garden House,2830.24, 16-Feb-2016
1802,Revenue,CAHD,Bed Purchasing - North,Permanent Residential,The Garden House,23519.26, 16-Feb-2016
1803,Revenue,CAHD,South Glos Users in South Glos Homes,Permanent Nursing,The Garden House,1104.00, 16-Feb-2016
1804,Revenue,CAHD,Bed Purchasing - South,Permanent Residential,The Garden House,871.08, 16-Feb-2016
1805,Revenue,CAHD,Bed Purchasing - South,Respite Planned - Residential,The Garden House,2412.00, 16-Feb-2016
1806,Revenue,CAHD,Bed Purchasing - South,Respite Planned - Residential,The Garden House,804.00, 16-Feb-2016
1807,Revenue,CAHD,Bed Purchasing - North,Permanent Residential,The Garden House,1280.84, 16-Feb-2016
1808,Revenue,CAHD,Bed Purchasing - South,Permanent Residential,The Garden House,1202.52, 16-Feb-2016
1809,Revenue,CAHD,Bed Purchasing - North,Permanent Residential,The Garden House,17129.00, 16-Feb-2016
1810,Revenue,CAHD,Bed Purchasing - North,Permanent Residential,The Garden House,1328.56, 16-Feb-2016
1811,Revenue,CAHD,Pathway 3 - (Complex Beds),Permanent Nursing,The Grove,5600.00, 22-Feb-2016
1812,Revenue,CAHD,Bed Purchasing - Southmead Hospital,Permanent Residential,The Grove,1997.68, 16-Feb-2016
1813,Revenue,CAHD,Bed Purchasing - North,Permanent Residential,The Grove,2138.08, 16-Feb-2016
1814,Revenue,CAHD,Bed Purchasing - North,Permanent Residential,The Grove,1333.60, 16-Feb-2016
1815,Revenue,CAHD,Bed Purchasing - South,Permanent Residential,The Grove,1714.64, 16-Feb-2016
1816,Revenue,CAHD,Bed Purchasing - Elderly S117- North,Permanent Residential,The Grove,2148.16, 16-Feb-2016
1817,Revenue,CAHD,Bed Purchasing - Elderly S117- North,Permanent Residential,The Grove,2800.00, 16-Feb-2016
1818,Revenue,CAHD,Bed purchasing - Elderly S117 - South,Permanent Residential,The Grove,2381.88, 16-Feb-2016
1819,Revenue,CAHD,Bed Purchasing - North,Permanent Residential,The Grove,2163.32, 16-Feb-2016
1820,Revenue,CAHD,Bed Purchasing - North,Permanent Residential,The Grove,1932.40, 16-Feb-2016
1821,Revenue,CAHD,Bed purchasing - Elderly S117 - South,Permanent Residential,The Grove,2830.24, 16-Feb-2016
1822,Revenue,CAHD,Bed Purchasing - North,Permanent Residential,The Grove,1474.80, 16-Feb-2016
1823,Revenue,CAHD,Bed Purchasing - Southmead Hospital,Respite Planned - Residential,The Grove,535.71, 16-Feb-2016
1824,Revenue,CAHD,Bed Purchasing - North,Permanent Residential,The Grove,2246.64, 16-Feb-2016
1825,Revenue,CAHD,Supporting People Programme,Grants to Voluntary Bodies,The Hatch Camphill Community,2103.05, 01-Feb-2016
1826,Revenue,CAHD,Home Care - Elderly - North,Supported Living,The Hatch Camphill Community,2038.56, 16-Feb-2016
1827,Revenue,CAHD,Home Care - Elderly - North,Supported Living,The Hatch Camphill Community,2162.60, 16-Feb-2016
1828,Revenue,CAHD,Home Care - Elderly - North,Supported Living,The Hatch Camphill Community,2322.40, 16-Feb-2016
1829,Revenue,CAHD,Home Care - Elderly - North,Supported Living,The Hatch Camphill Community,2309.76, 16-Feb-2016
1830,Revenue,CAHD,Home Care - Elderly - North,Supported Living,The Hatch Camphill Community,2283.28, 16-Feb-2016
1831,Revenue,CAHD,Home Care - Elderly - North,Supported Living,The Hatch Camphill Community,1815.28, 16-Feb-2016
1832,Revenue,CAHD,Home Care - Elderly - North,Supported Living,The Hatch Camphill Community,2078.52, 16-Feb-2016
1833,Revenue,CAHD,Home Care - Elderly - North,Supported Living,The Hatch Camphill Community,1893.52, 16-Feb-2016
